{"text_format":"1","workbook":"xlsx","n_sheets":8,"sheets":["Instructions","Roll Up","Case Aide","Provider Level","Fee Table","Offices","Drop Down","IndexMatch"],"not_rendered":{"charts":0,"images":2,"macros":0,"external_links":1,"defined_names":15,"comments":0,"pivot_tables":0},"unopened":[],"bounds":{"document_bytes":16777216,"sheet_cells":100000,"rows_first":2000,"rows_last":500,"rows_between":2000,"halvings":0,"cell_chars":16384,"cell_head_chars":4096},"cells_cut":0,"cells_raw":0,"read":"whole","date_system":"1900"}

{"sheet":"Instructions","index":0,"n_rows":70,"n_cols":4,"rows_kept":70,"cut":false,"hidden":false,"merged":[[1,1,2,19]]}
[]
[null,"Catchment Case Aide & Provider Resource billing form Instructions"]
[]
[]
[]
[]
[null,null,"Catchment Case Aide & Provider Resource Roll Up "]
[null,null,"The Roll-Up tab is a billing summary using the data from the \"Case Aide\" tab and \"Provider Level\" tab to generate the invoice broken down by DCYF Region."]
[]
[null,null,"The only action required on this tab is the completion of the header:"]
[]
[]
[]
[]
[]
[]
[]
[]
[]
[]
[null,null,"Simpl"]
[]
[null,null,"With the basic provider information."]
[]
[]
[]
[null,null,"Catchment Case Aide / Case Specific  - by column"]
[]
[null,null,"Please Note, this is not a complete roster of youths in the Cathcment Area, rather it only for youths for which you provided case aide hours"]
[]
[null,null,"Column A","Month of Service"]
[null,null,"Columns B - E","Case Specific Information"]
[null,null,"Columns F-G","Tribal Information - Is the youth a member of a tribe in and if so which tribe do they belong to"]
[null,null,"Columns H-I","Opt In/Out Dates - Since caregivers are able to opt in and out you will need to provider the dates if applicable"]
[null,null,"Column J","The County in which the Youth is sleeping - This is very important as it impacts the rate for case aide (See Fee Table for Specifics)"]
[null,null,"Columns K-M","DCYF Region/Office Information"]
[null,null,"Column N","Child Support Level - Important as it impacts the allowed amount of Case Aide Hours"]
[]
[]
[]
[]
[]
[]
[]
[]
[null,null,"Column O","The Number of Case Aide Hours Provided (Must Fall Within the above table)"]
[null,null,"Column Q","The Number of Case Aide Travel Time Hours Provided (Does Not Count Towards the Authorized Hours of Case Services Allowed)"]
[null,null,"Column R","The Sum of Columns O and Q Used to Determine the total amount owed"]
[null,null,"Column S","The Total Dollar Amount Owed using Column R and Column J to determine the applicable hourly rate"]
[null,null,"Column T","A Check to ensure that the amount of hours (Column Q) does not exceed the maximum allowed in the fee table"]
[null,null,"Column U","Mileage Associted with the case over the month of service"]
[]
[null,null,"If these columns have been filled out correclty the dollar amounts will sum and be brought forward to the \"Roll Up\" tab"]
[]
[]
[]
[null,null,"Catchment Provider Resource Support Level / Case Specific  - by Column "]
[]
[null,null,"Please Note, this is not a complete roster of youths in the Cathcment Area, rather it only for youths for which you have not received payment for the \"Catchment Provider Level\""]
[]
[null,null,"Column A","Month of Service"]
[null,null,"Columns B - E","Case Specific Information"]
[null,null,"Columns F-G","Tribal Information - Is the youth a member of a tribe in and if so which tribe do they belong to"]
[null,null,"Columns H-I","Opt In/Out Dates - Since caregivers are able to opt in and out you will need to provider the dates if applicable"]
[null,null,"Column J","The County in which the Youth is sleeping"]
[null,null,"Columns K-M","DCYF Region/Office Information"]
[null,null,"Column N","Child Support Level - Important as it determines what service will need to be opened"]
[null,null,"Column O","A Yes/No Check for if you have received the \"Catchment Provider Level\" Payment fo the youth"]
[]
[null,null,"This generates a count on the \"Roll Up\" tab that indicates to the DCYF Fiduciary that need to open up the payment on the case file."]

{"sheet":"Roll Up","index":1,"n_rows":98,"n_cols":10,"rows_kept":98,"cut":false,"hidden":false,"merged":[[9,1,9,10],[30,4,30,6],[18,9,19,10],[18,8,19,8],[21,4,21,6],[12,2,15,10],[18,2,19,6],[27,2,28,6],[22,4,22,6],[23,4,23,6],[27,8,28,8],[91,9,93,9],[92,1,93,5],[63,2,64,6],[77,4,77,6],[75,4,75,6],[76,4,76,6],[72,2,73,2],[72,8,73,8],[72,9,73,10],[66,4,66,6],[67,4,67,6],[68,4,68,6],[63,8,64,8],[63,9,64,10],[89,1,90,8],[27,9,28,10],[31,4,31,6],[32,4,32,6],[57,4,57,6],[58,4,58,6],[54,9,55,10],[45,9,46,10],[48,4,48,6],[49,4,49,6],[54,2,55,6],[39,4,39,6],[40,4,40,6],[36,8,37,8],[36,2,37,6],[36,9,37,10],[59,4,59,6],[54,8,55,8],[41,4,41,6],[45,8,46,8],[45,2,46,6],[50,4,50,6]]}
[null,null,null,null,"WASHINGTON STATE DEPARTMENT OF CHILDREN, YOUTH, AND FAMILIES"]
[null,null,null,null,"Catchment Provider Billing Form"]
[]
[null,null,"Month of Service:",null,"Select",null,"Year:",null,"Select"]
[]
[null,null,"Provider Name:"]
[]
[null,null,"FamLink Provider #:"]
[]
[null,"Please Complete the \"Case Aide\" and \"Provider Level\" Tab"]
[]
[]
[null,null,"- This Billing Form is Meant to provide a monthly invoice for case aide.\n- Provider Resource Support Levels will be opened independently without the need for paperwork; however, this form allows for the catchment to note which cases have not received an invoice for Provider Resource Support to reduce delays in payment."]
[]
[]
[]
[]
[]
[null,null,"Region 1: Mileage is Paid Lump Sum",null,null,null,null,null,"Dollar Amounts","Count"]
[]
[]
[null,null,"One",null,"Provider Resource Support",null,null,null,"-",{"$f":"COUNTIFS('Provider Level'!$K:$K,'Roll Up'!C22,'Provider Level'!$N:$N,\"No\")","v":0}]
[null,null,null,null,"Case Aide",null,null,null,{"$f":"SUMIFS('Case Aide'!$R:$R,'Case Aide'!$K:$K,$C$22)","v":0},{"$f":"COUNTIFS('Case Aide'!$K:$K,'Roll Up'!C22,'Case Aide'!$N:$N,\">0\")","v":0}]
[null,null,null,null,"Mileage",null,null,null,{"$f":"SUMIFS('Case Aide'!$U:$U,'Case Aide'!$K:$K,$C$22)","v":0},{"$f":"COUNTIFS('Case Aide'!$K:$K,'Roll Up'!C22,'Case Aide'!$T:$T,\">0\")","v":0}]
[null,null,null,null,null,null,"Total:",null,{"$f":"SUM(I22:I24)","v":0},{"$f":"SUM(J22:J24)","v":0}]
[]
[]
[null,null,"Region 2: Mileage is Paid Lump Sum",null,null,null,null,null,"Dollar Amounts","Count"]
[null,null,"Region 2",null,null,null,null,null,"Dollar Amounts","Count"]
[]
[null,null,"Two",null,"Provider Resource Support",null,null,null,"-",{"$f":"COUNTIFS('Provider Level'!$K:$K,'Roll Up'!C31,'Provider Level'!$N:$N,\"No\")","v":0}]
[null,null,null,null,"Case Aide",null,null,null,{"$f":"SUMIFS('Case Aide'!R:R,'Case Aide'!$K:$K,$C$31)","v":0},{"$f":"COUNTIFS('Case Aide'!$K:$K,'Roll Up'!C31,'Case Aide'!$N:$N,\">0\")","v":0}]
[null,null,null,null,"Mileage",null,null,null,{"$f":"SUMIFS('Case Aide'!$U:$U,'Case Aide'!$K:$K,$C$31)","v":0},{"$f":"COUNTIFS('Case Aide'!$K:$K,'Roll Up'!C31,'Case Aide'!$T:$T,\">0\")","v":0}]
[null,null,null,null,null,null,"Total:",null,{"$f":"SUM(I31:I33)","v":0},{"$f":"SUM(J31:J33)","v":0}]
[]
[]
[null,null,"Region 3: Mileage is Paid Lump Sum",null,null,null,null,null,"Dollar Amounts","Count"]
[null,null,"Region 3",null,null,null,null,null,"Dollar Amounts","Count"]
[]
[null,null,"Three",null,"Provider Resource Support",null,null,null,"-",{"$f":"COUNTIFS('Provider Level'!$K:$K,'Roll Up'!C40,'Provider Level'!$N:$N,\"No\")","v":0}]
[null,null,null,null,"Case Aide",null,null,null,{"$f":"SUMIFS('Case Aide'!$R:$R,'Case Aide'!$K:$K,$C$40)","v":0},{"$f":"COUNTIFS('Case Aide'!$K:$K,'Roll Up'!C40,'Case Aide'!$N:$N,\">0\")","v":0}]
[null,null,null,null,"Mileage",null,null,null,{"$f":"SUMIFS('Case Aide'!$U:$U,'Case Aide'!$K:$K,$C$40)","v":0},{"$f":"COUNTIFS('Case Aide'!$K:$K,'Roll Up'!C40,'Case Aide'!$T:$T,\">0\")","v":0}]
[null,null,null,null,null,null,"Total:",null,{"$f":"SUM(I40:I42)","v":0},{"$f":"SUM(J40:J42)","v":0}]
[]
[]
[null,null,"Region 4: Mileage is Paid Lump Sum",null,null,null,null,null,"Dollar Amounts","Count"]
[null,null,"Region 4",null,null,null,null,null,"Dollar Amounts","Count"]
[]
[null,null,"Four",null,"Provider Resource Support",null,null,null,"-",{"$f":"COUNTIFS('Provider Level'!$K:$K,'Roll Up'!C49,'Provider Level'!$N:$N,\"No\")","v":0}]
[null,null,null,null,"Case Aide",null,null,null,{"$f":"SUMIFS('Case Aide'!$R:$R,'Case Aide'!$K:$K,$C$49)","v":0},{"$f":"COUNTIFS('Case Aide'!$K:$K,'Roll Up'!C49,'Case Aide'!$N:$N,\">0\")","v":0}]
[null,null,null,null,"Mileage",null,null,null,{"$f":"SUMIFS('Case Aide'!$U:$U,'Case Aide'!$K:$K,$C$49)","v":0},{"$f":"COUNTIFS('Case Aide'!$K:$K,'Roll Up'!C49,'Case Aide'!$T:$T,\">0\")","v":0}]
[null,null,null,null,null,null,"Total:",null,{"$f":"SUM(I49:I51)","v":0},{"$f":"SUM(J49:J51)","v":0}]
[]
[]
[null,null,"Region 5: Mileage is Paid Lump Sum",null,null,null,null,null,"Dollar Amounts","Count"]
[null,null,"Region 5",null,null,null,null,null,"Dollar Amounts","Count"]
[]
[null,null,"Five",null,"Provider Resource Support",null,null,null,"-",{"$f":"COUNTIFS('Provider Level'!$K:$K,'Roll Up'!C58,'Provider Level'!$N:$N,\"No\")","v":0}]
[null,null,null,null,"Case Aide",null,null,null,{"$f":"SUMIFS('Case Aide'!$R:$R,'Case Aide'!$K:$K,$C$58)","v":0},{"$f":"COUNTIFS('Case Aide'!$K:$K,'Roll Up'!C58,'Case Aide'!$N:$N,\">0\")","v":0}]
[null,null,null,null,"Mileage",null,null,null,{"$f":"SUMIFS('Case Aide'!$U:$U,'Case Aide'!$K:$K,$C$58)","v":0},{"$f":"COUNTIFS('Case Aide'!$K:$K,'Roll Up'!C58,'Case Aide'!$T:$T,\">0\")","v":0}]
[null,null,null,null,null,null,"Total:",null,{"$f":"SUM(I58:I60)","v":0},{"$f":"SUM(J58:J60)","v":0}]
[]
[]
[null,null,"Region 6: Mileage is Paid Lump Sum",null,null,null,null,null,"Dollar Amounts","Count"]
[null,null,"Region 6",null,null,null,null,null,"Dollar Amounts","Count"]
[]
[null,null,"Six",null,"Provider Resource Support",null,null,null,"-",{"$f":"COUNTIFS('Provider Level'!$K:$K,'Roll Up'!C67,'Provider Level'!$N:$N,\"No\")","v":0}]
[null,null,null,null,"Case Aide",null,null,null,{"$f":"SUMIFS('Case Aide'!$R:$R,'Case Aide'!$K:$K,$C$67)","v":0},{"$f":"COUNTIFS('Case Aide'!$K:$K,'Roll Up'!C67,'Case Aide'!$N:$N,\">0\")","v":0}]
[null,null,null,null,"Mileage",null,null,null,{"$f":"SUMIFS('Case Aide'!$U:$U,'Case Aide'!$K:$K,$C$67)","v":0},{"$f":"COUNTIFS('Case Aide'!$K:$K,'Roll Up'!C67,'Case Aide'!$T:$T,\">0\")","v":0}]
[null,null,null,null,null,null,"Total:",null,{"$f":"SUM(I67:I69)","v":0},{"$f":"SUM(J67:J69)","v":0}]
[]
[]
[null,null,"State-Wide",null,null,null,null,null,"Dollar Amounts","Count"]
[null,null,"Region 6",null,null,null,null,null,"Dollar Amounts","Count"]
[]
[null,null,null,null,"Provider Resource Support",null,null,null,"-",{"$f":"SUM(J67,J58,J49,J40,J31,J22)","v":0}]
[null,null,null,null,"Case Aide",null,null,null,0,0]
[null,null,null,null,"Mileage",null,null,null,0,0]
[null,null,null,null,null,null,"Total:",null,{"$f":"SUM(I76:I78)","v":0},{"$f":"SUM(J76:J78)","v":0}]
[]
[]
[]
[null,"Comments"]
[]
[]
[]
[]
[null,"Provider's Certification"]
[]
[null,"I hereby certify under penalty of perjury that the invoice above are correct and are proper charges for services furnished to the State of Washington DCYF."]
[]
[]
[]
[]
[null,"Provider Authorized Signature",null,null,null,null,null,null,null,"Date"]
[]
[null,"FAMLINK INVOICE FORM (1/08/2025)"]
[null,"Created by the Fiscal Integrity Unit"]

{"sheet":"Case Aide","index":2,"n_rows":494,"n_cols":21,"rows_kept":494,"cut":false,"hidden":false,"merged":[]}
["Month of Service","Child Name","Child ID","Case Name","Case Number","Is Youth TPO?","Tribe Name","Opt in Date","Opt Out Date","County Where Youth Resides","DCYF Case Region","DCYF Case Office","Child Support Level","Case Aide Hours","Hide Column","Case Aide Travel Time","Total Case Aide","Case Aide Due","Is Billing Allowed","Mileage","Mileage Due (Paid by Lump Sum)"]
["Select","-","-","-","-","Select",null,"DD/MM/YYYY","DD/MM/YYYY","Select","Select","Select","Select",0,{"$f":"IF(N2>VLOOKUP(M2,'Drop Down'!$A$3:$B$10,2,0),\"1\",\"0\")","v":"0"},0,{"$f":"SUM($N2,$P2)","v":0},{"$f":"IFERROR(IF(M2=\"Select\",\"Select Support Level\", PRODUCT($Q2,VLOOKUP($J2,'Drop Down'!K:M,3,0))),\"-\")","v":"Select Support Level"},{"$f":"IF(O2=\"1\",\"Cannot Bill\",\"Ok\")","v":"Ok"},0,{"$f":"IF($T2=\"\",0,ROUND(PRODUCT(T2,0.7),2))","v":0}]
["Select","-","-","-","-","Select",null,"DD/MM/YYYY","DD/MM/YYYY","Select","Select","Select","Select",0,{"$f":"IF(N3>VLOOKUP(M3,'Drop Down'!$A$3:$B$10,2,0),\"1\",\"0\")","v":"0"},0,0,{"$f":"IFERROR(IF(M3=\"Select\",\"Select Support Level\", PRODUCT($Q3,VLOOKUP($J3,'Drop Down'!K:M,3,0))),\"-\")","v":"Select Support Level"},"Ok",0,0]
["Select","-","-","-","-","Select",null,"DD/MM/YYYY","DD/MM/YYYY","Select","Select","Select","Select",0,{"$f":"IF(N4>VLOOKUP(M4,'Drop Down'!$A$3:$B$10,2,0),\"1\",\"0\")","v":"0"},0,0,{"$f":"IFERROR(IF(M4=\"Select\",\"Select Support Level\", PRODUCT($Q4,VLOOKUP($J4,'Drop Down'!K:M,3,0))),\"-\")","v":"Select Support Level"},"Ok",0,0]
["Select","-","-","-","-","Select",null,"DD/MM/YYYY","DD/MM/YYYY","Select","Select","Select","Select",0,{"$f":"IF(N5>VLOOKUP(M5,'Drop Down'!$A$3:$B$10,2,0),\"1\",\"0\")","v":"0"},0,0,{"$f":"IFERROR(IF(M5=\"Select\",\"Select Support Level\", PRODUCT($Q5,VLOOKUP($J5,'Drop Down'!K:M,3,0))),\"-\")","v":"Select Support Level"},"Ok",0,0]
["Select","-","-","-","-","Select",null,"DD/MM/YYYY","DD/MM/YYYY","Select","Select","Select","Select",0,{"$f":"IF(N6>VLOOKUP(M6,'Drop Down'!$A$3:$B$10,2,0),\"1\",\"0\")","v":"0"},0,0,{"$f":"IFERROR(IF(M6=\"Select\",\"Select Support Level\", PRODUCT($Q6,VLOOKUP($J6,'Drop Down'!K:M,3,0))),\"-\")","v":"Select Support Level"},"Ok",0,0]
["Select","-","-","-","-","Select",null,"DD/MM/YYYY","DD/MM/YYYY","Select","Select","Select","Select",0,{"$f":"IF(N7>VLOOKUP(M7,'Drop Down'!$A$3:$B$10,2,0),\"1\",\"0\")","v":"0"},0,0,{"$f":"IFERROR(IF(M7=\"Select\",\"Select Support Level\", PRODUCT($Q7,VLOOKUP($J7,'Drop Down'!K:M,3,0))),\"-\")","v":"Select Support Level"},"Ok",0,0]
["Select","-","-","-","-","Select",null,"DD/MM/YYYY","DD/MM/YYYY","Select","Select","Select","Select",0,{"$f":"IF(N8>VLOOKUP(M8,'Drop Down'!$A$3:$B$10,2,0),\"1\",\"0\")","v":"0"},0,0,{"$f":"IFERROR(IF(M8=\"Select\",\"Select Support Level\", PRODUCT($Q8,VLOOKUP($J8,'Drop Down'!K:M,3,0))),\"-\")","v":"Select Support Level"},"Ok",0,0]
["Select","-","-","-","-","Select",null,"DD/MM/YYYY","DD/MM/YYYY","Select","Select","Select","Select",0,{"$f":"IF(N9>VLOOKUP(M9,'Drop Down'!$A$3:$B$10,2,0),\"1\",\"0\")","v":"0"},0,0,{"$f":"IFERROR(IF(M9=\"Select\",\"Select Support Level\", PRODUCT($Q9,VLOOKUP($J9,'Drop Down'!K:M,3,0))),\"-\")","v":"Select Support Level"},"Ok",0,0]
["Select","-","-","-","-","Select",null,"DD/MM/YYYY","DD/MM/YYYY","Select","Select","Select","Select",0,{"$f":"IF(N10>VLOOKUP(M10,'Drop Down'!$A$3:$B$10,2,0),\"1\",\"0\")","v":"0"},0,0,{"$f":"IFERROR(IF(M10=\"Select\",\"Select Support Level\", PRODUCT($Q10,VLOOKUP($J10,'Drop Down'!K:M,3,0))),\"-\")","v":"Select Support Level"},"Ok",0,0]
["Select","-","-","-","-","Select",null,"DD/MM/YYYY","DD/MM/YYYY","Select","Select","Select","Select",0,{"$f":"IF(N11>VLOOKUP(M11,'Drop Down'!$A$3:$B$10,2,0),\"1\",\"0\")","v":"0"},0,0,{"$f":"IFERROR(IF(M11=\"Select\",\"Select Support Level\", PRODUCT($Q11,VLOOKUP($J11,'Drop Down'!K:M,3,0))),\"-\")","v":"Select Support Level"},"Ok",0,0]
["Select","-","-","-","-","Select",null,"DD/MM/YYYY","DD/MM/YYYY","Select","Select","Select","Select",0,{"$f":"IF(N12>VLOOKUP(M12,'Drop Down'!$A$3:$B$10,2,0),\"1\",\"0\")","v":"0"},0,0,{"$f":"IFERROR(IF(M12=\"Select\",\"Select Support Level\", PRODUCT($Q12,VLOOKUP($J12,'Drop Down'!K:M,3,0))),\"-\")","v":"Select Support Level"},"Ok",0,0]
["Select","-","-","-","-","Select",null,"DD/MM/YYYY","DD/MM/YYYY","Select","Select","Select","Select",0,{"$f":"IF(N13>VLOOKUP(M13,'Drop Down'!$A$3:$B$10,2,0),\"1\",\"0\")","v":"0"},0,0,{"$f":"IFERROR(IF(M13=\"Select\",\"Select Support Level\", PRODUCT($Q13,VLOOKUP($J13,'Drop Down'!K:M,3,0))),\"-\")","v":"Select Support Level"},"Ok",0,0]
["Select","-","-","-","-","Select",null,"DD/MM/YYYY","DD/MM/YYYY","Select","Select","Select","Select",0,{"$f":"IF(N14>VLOOKUP(M14,'Drop Down'!$A$3:$B$10,2,0),\"1\",\"0\")","v":"0"},0,0,{"$f":"IFERROR(IF(M14=\"Select\",\"Select Support Level\", PRODUCT($Q14,VLOOKUP($J14,'Drop Down'!K:M,3,0))),\"-\")","v":"Select Support Level"},"Ok",0,0]
["Select","-","-","-","-","Select",null,"DD/MM/YYYY","DD/MM/YYYY","Select","Select","Select","Select",0,{"$f":"IF(N15>VLOOKUP(M15,'Drop Down'!$A$3:$B$10,2,0),\"1\",\"0\")","v":"0"},0,0,{"$f":"IFERROR(IF(M15=\"Select\",\"Select Support Level\", PRODUCT($Q15,VLOOKUP($J15,'Drop Down'!K:M,3,0))),\"-\")","v":"Select Support Level"},"Ok",0,0]
["Select","-","-","-","-","Select",null,"DD/MM/YYYY","DD/MM/YYYY","Select","Select","Select","Select",0,{"$f":"IF(N16>VLOOKUP(M16,'Drop Down'!$A$3:$B$10,2,0),\"1\",\"0\")","v":"0"},0,0,{"$f":"IFERROR(IF(M16=\"Select\",\"Select Support Level\", PRODUCT($Q16,VLOOKUP($J16,'Drop Down'!K:M,3,0))),\"-\")","v":"Select Support Level"},"Ok",0,0]
["Select","-","-","-","-","Select",null,"DD/MM/YYYY","DD/MM/YYYY","Select","Select","Select","Select",0,{"$f":"IF(N17>VLOOKUP(M17,'Drop Down'!$A$3:$B$10,2,0),\"1\",\"0\")","v":"0"},0,0,{"$f":"IFERROR(IF(M17=\"Select\",\"Select Support Level\", PRODUCT($Q17,VLOOKUP($J17,'Drop Down'!K:M,3,0))),\"-\")","v":"Select Support Level"},"Ok",0,0]
["Select","-","-","-","-","Select",null,"DD/MM/YYYY","DD/MM/YYYY","Select","Select","Select","Select",0,{"$f":"IF(N18>VLOOKUP(M18,'Drop Down'!$A$3:$B$10,2,0),\"1\",\"0\")","v":"0"},0,0,{"$f":"IFERROR(IF(M18=\"Select\",\"Select Support Level\", PRODUCT($Q18,VLOOKUP($J18,'Drop Down'!K:M,3,0))),\"-\")","v":"Select Support Level"},"Ok",0,0]
["Select","-","-","-","-","Select",null,"DD/MM/YYYY","DD/MM/YYYY","Select","Select","Select","Select",0,{"$f":"IF(N19>VLOOKUP(M19,'Drop Down'!$A$3:$B$10,2,0),\"1\",\"0\")","v":"0"},0,0,{"$f":"IFERROR(IF(M19=\"Select\",\"Select Support Level\", PRODUCT($Q19,VLOOKUP($J19,'Drop Down'!K:M,3,0))),\"-\")","v":"Select Support Level"},"Ok",0,0]
["Select","-","-","-","-","Select",null,"DD/MM/YYYY","DD/MM/YYYY","Select","Select","Select","Select",0,{"$f":"IF(N20>VLOOKUP(M20,'Drop Down'!$A$3:$B$10,2,0),\"1\",\"0\")","v":"0"},0,0,{"$f":"IFERROR(IF(M20=\"Select\",\"Select Support Level\", PRODUCT($Q20,VLOOKUP($J20,'Drop Down'!K:M,3,0))),\"-\")","v":"Select Support Level"},"Ok",0,0]
["Select","-","-","-","-","Select",null,"DD/MM/YYYY","DD/MM/YYYY","Select","Select","Select","Select",0,{"$f":"IF(N21>VLOOKUP(M21,'Drop Down'!$A$3:$B$10,2,0),\"1\",\"0\")","v":"0"},0,0,{"$f":"IFERROR(IF(M21=\"Select\",\"Select Support Level\", PRODUCT($Q21,VLOOKUP($J21,'Drop Down'!K:M,3,0))),\"-\")","v":"Select Support Level"},"Ok",0,0]
["Select","-","-","-","-","Select",null,"DD/MM/YYYY","DD/MM/YYYY","Select","Select","Select","Select",0,{"$f":"IF(N22>VLOOKUP(M22,'Drop Down'!$A$3:$B$10,2,0),\"1\",\"0\")","v":"0"},0,0,{"$f":"IFERROR(IF(M22=\"Select\",\"Select Support Level\", PRODUCT($Q22,VLOOKUP($J22,'Drop Down'!K:M,3,0))),\"-\")","v":"Select Support Level"},"Ok",0,0]
["Select","-","-","-","-","Select",null,"DD/MM/YYYY","DD/MM/YYYY","Select","Select","Select","Select",0,{"$f":"IF(N23>VLOOKUP(M23,'Drop Down'!$A$3:$B$10,2,0),\"1\",\"0\")","v":"0"},0,0,{"$f":"IFERROR(IF(M23=\"Select\",\"Select Support Level\", PRODUCT($Q23,VLOOKUP($J23,'Drop Down'!K:M,3,0))),\"-\")","v":"Select Support Level"},"Ok",0,0]
["Select","-","-","-","-","Select",null,"DD/MM/YYYY","DD/MM/YYYY","Select","Select","Select","Select",0,{"$f":"IF(N24>VLOOKUP(M24,'Drop Down'!$A$3:$B$10,2,0),\"1\",\"0\")","v":"0"},0,0,{"$f":"IFERROR(IF(M24=\"Select\",\"Select Support Level\", PRODUCT($Q24,VLOOKUP($J24,'Drop Down'!K:M,3,0))),\"-\")","v":"Select Support Level"},"Ok",0,0]
["Select","-","-","-","-","Select",null,"DD/MM/YYYY","DD/MM/YYYY","Select","Select","Select","Select",0,{"$f":"IF(N25>VLOOKUP(M25,'Drop Down'!$A$3:$B$10,2,0),\"1\",\"0\")","v":"0"},0,0,{"$f":"IFERROR(IF(M25=\"Select\",\"Select Support Level\", PRODUCT($Q25,VLOOKUP($J25,'Drop Down'!K:M,3,0))),\"-\")","v":"Select Support Level"},"Ok",0,0]
["Select","-","-","-","-","Select",null,"DD/MM/YYYY","DD/MM/YYYY","Select","Select","Select","Select",0,{"$f":"IF(N26>VLOOKUP(M26,'Drop Down'!$A$3:$B$10,2,0),\"1\",\"0\")","v":"0"},0,0,{"$f":"IFERROR(IF(M26=\"Select\",\"Select Support Level\", PRODUCT($Q26,VLOOKUP($J26,'Drop Down'!K:M,3,0))),\"-\")","v":"Select Support Level"},"Ok",0,0]
["Select","-","-","-","-","Select",null,"DD/MM/YYYY","DD/MM/YYYY","Select","Select","Select","Select",0,{"$f":"IF(N27>VLOOKUP(M27,'Drop Down'!$A$3:$B$10,2,0),\"1\",\"0\")","v":"0"},0,0,{"$f":"IFERROR(IF(M27=\"Select\",\"Select Support Level\", PRODUCT($Q27,VLOOKUP($J27,'Drop Down'!K:M,3,0))),\"-\")","v":"Select Support Level"},"Ok",0,0]
["Select","-","-","-","-","Select",null,"DD/MM/YYYY","DD/MM/YYYY","Select","Select","Select","Select",0,{"$f":"IF(N28>VLOOKUP(M28,'Drop Down'!$A$3:$B$10,2,0),\"1\",\"0\")","v":"0"},0,0,{"$f":"IFERROR(IF(M28=\"Select\",\"Select Support Level\", PRODUCT($Q28,VLOOKUP($J28,'Drop Down'!K:M,3,0))),\"-\")","v":"Select Support Level"},"Ok",0,0]
["Select","-","-","-","-","Select",null,"DD/MM/YYYY","DD/MM/YYYY","Select","Select","Select","Select",0,{"$f":"IF(N29>VLOOKUP(M29,'Drop Down'!$A$3:$B$10,2,0),\"1\",\"0\")","v":"0"},0,0,{"$f":"IFERROR(IF(M29=\"Select\",\"Select Support Level\", PRODUCT($Q29,VLOOKUP($J29,'Drop Down'!K:M,3,0))),\"-\")","v":"Select Support Level"},"Ok",0,0]
["Select","-","-","-","-","Select",null,"DD/MM/YYYY","DD/MM/YYYY","Select","Select","Select","Select",0,{"$f":"IF(N30>VLOOKUP(M30,'Drop Down'!$A$3:$B$10,2,0),\"1\",\"0\")","v":"0"},0,0,{"$f":"IFERROR(IF(M30=\"Select\",\"Select Support Level\", PRODUCT($Q30,VLOOKUP($J30,'Drop Down'!K:M,3,0))),\"-\")","v":"Select Support Level"},"Ok",0,0]
["Select","-","-","-","-","Select",null,"DD/MM/YYYY","DD/MM/YYYY","Select","Select","Select","Select",0,{"$f":"IF(N31>VLOOKUP(M31,'Drop Down'!$A$3:$B$10,2,0),\"1\",\"0\")","v":"0"},0,0,{"$f":"IFERROR(IF(M31=\"Select\",\"Select Support Level\", PRODUCT($Q31,VLOOKUP($J31,'Drop Down'!K:M,3,0))),\"-\")","v":"Select Support Level"},"Ok",0,0]
["Select","-","-","-","-","Select",null,"DD/MM/YYYY","DD/MM/YYYY","Select","Select","Select","Select",0,{"$f":"IF(N32>VLOOKUP(M32,'Drop Down'!$A$3:$B$10,2,0),\"1\",\"0\")","v":"0"},0,0,{"$f":"IFERROR(IF(M32=\"Select\",\"Select Support Level\", PRODUCT($Q32,VLOOKUP($J32,'Drop Down'!K:M,3,0))),\"-\")","v":"Select Support Level"},"Ok",0,0]
["Select","-","-","-","-","Select",null,"DD/MM/YYYY","DD/MM/YYYY","Select","Select","Select","Select",0,{"$f":"IF(N33>VLOOKUP(M33,'Drop Down'!$A$3:$B$10,2,0),\"1\",\"0\")","v":"0"},0,0,{"$f":"IFERROR(IF(M33=\"Select\",\"Select Support Level\", PRODUCT($Q33,VLOOKUP($J33,'Drop Down'!K:M,3,0))),\"-\")","v":"Select Support Level"},"Ok",0,0]
["Select","-","-","-","-","Select",null,"DD/MM/YYYY","DD/MM/YYYY","Select","Select","Select","Select",0,{"$f":"IF(N34>VLOOKUP(M34,'Drop Down'!$A$3:$B$10,2,0),\"1\",\"0\")","v":"0"},0,0,{"$f":"IFERROR(IF(M34=\"Select\",\"Select Support Level\", PRODUCT($Q34,VLOOKUP($J34,'Drop Down'!K:M,3,0))),\"-\")","v":"Select Support Level"},"Ok",0,0]
["Select","-","-","-","-","Select",null,"DD/MM/YYYY","DD/MM/YYYY","Select","Select","Select","Select",0,{"$f":"IF(N35>VLOOKUP(M35,'Drop Down'!$A$3:$B$10,2,0),\"1\",\"0\")","v":"0"},0,0,{"$f":"IFERROR(IF(M35=\"Select\",\"Select Support Level\", PRODUCT($Q35,VLOOKUP($J35,'Drop Down'!K:M,3,0))),\"-\")","v":"Select Support Level"},"Ok",0,0]
["Select","-","-","-","-","Select",null,"DD/MM/YYYY","DD/MM/YYYY","Select","Select","Select","Select",0,{"$f":"IF(N36>VLOOKUP(M36,'Drop Down'!$A$3:$B$10,2,0),\"1\",\"0\")","v":"0"},0,0,{"$f":"IFERROR(IF(M36=\"Select\",\"Select Support Level\", PRODUCT($Q36,VLOOKUP($J36,'Drop Down'!K:M,3,0))),\"-\")","v":"Select Support Level"},"Ok",0,0]
["Select","-","-","-","-","Select",null,"DD/MM/YYYY","DD/MM/YYYY","Select","Select","Select","Select",0,{"$f":"IF(N37>VLOOKUP(M37,'Drop Down'!$A$3:$B$10,2,0),\"1\",\"0\")","v":"0"},0,0,{"$f":"IFERROR(IF(M37=\"Select\",\"Select Support Level\", PRODUCT($Q37,VLOOKUP($J37,'Drop Down'!K:M,3,0))),\"-\")","v":"Select Support Level"},"Ok",0,0]
["Select","-","-","-","-","Select",null,"DD/MM/YYYY","DD/MM/YYYY","Select","Select","Select","Select",0,{"$f":"IF(N38>VLOOKUP(M38,'Drop Down'!$A$3:$B$10,2,0),\"1\",\"0\")","v":"0"},0,0,{"$f":"IFERROR(IF(M38=\"Select\",\"Select Support Level\", PRODUCT($Q38,VLOOKUP($J38,'Drop Down'!K:M,3,0))),\"-\")","v":"Select Support Level"},"Ok",0,0]
["Select","-","-","-","-","Select",null,"DD/MM/YYYY","DD/MM/YYYY","Select","Select","Select","Select",0,{"$f":"IF(N39>VLOOKUP(M39,'Drop Down'!$A$3:$B$10,2,0),\"1\",\"0\")","v":"0"},0,0,{"$f":"IFERROR(IF(M39=\"Select\",\"Select Support Level\", PRODUCT($Q39,VLOOKUP($J39,'Drop Down'!K:M,3,0))),\"-\")","v":"Select Support Level"},"Ok",0,0]
["Select","-","-","-","-","Select",null,"DD/MM/YYYY","DD/MM/YYYY","Select","Select","Select","Select",0,{"$f":"IF(N40>VLOOKUP(M40,'Drop Down'!$A$3:$B$10,2,0),\"1\",\"0\")","v":"0"},0,0,{"$f":"IFERROR(IF(M40=\"Select\",\"Select Support Level\", PRODUCT($Q40,VLOOKUP($J40,'Drop Down'!K:M,3,0))),\"-\")","v":"Select Support Level"},"Ok",0,0]
["Select","-","-","-","-","Select",null,"DD/MM/YYYY","DD/MM/YYYY","Select","Select","Select","Select",0,{"$f":"IF(N41>VLOOKUP(M41,'Drop Down'!$A$3:$B$10,2,0),\"1\",\"0\")","v":"0"},0,0,{"$f":"IFERROR(IF(M41=\"Select\",\"Select Support Level\", PRODUCT($Q41,VLOOKUP($J41,'Drop Down'!K:M,3,0))),\"-\")","v":"Select Support Level"},"Ok",0,0]
["Select","-","-","-","-","Select",null,"DD/MM/YYYY","DD/MM/YYYY","Select","Select","Select","Select",0,{"$f":"IF(N42>VLOOKUP(M42,'Drop Down'!$A$3:$B$10,2,0),\"1\",\"0\")","v":"0"},0,0,{"$f":"IFERROR(IF(M42=\"Select\",\"Select Support Level\", PRODUCT($Q42,VLOOKUP($J42,'Drop Down'!K:M,3,0))),\"-\")","v":"Select Support Level"},"Ok",0,0]
["Select","-","-","-","-","Select",null,"DD/MM/YYYY","DD/MM/YYYY","Select","Select","Select","Select",0,{"$f":"IF(N43>VLOOKUP(M43,'Drop Down'!$A$3:$B$10,2,0),\"1\",\"0\")","v":"0"},0,0,{"$f":"IFERROR(IF(M43=\"Select\",\"Select Support Level\", PRODUCT($Q43,VLOOKUP($J43,'Drop Down'!K:M,3,0))),\"-\")","v":"Select Support Level"},"Ok",0,0]
["Select","-","-","-","-","Select",null,"DD/MM/YYYY","DD/MM/YYYY","Select","Select","Select","Select",0,{"$f":"IF(N44>VLOOKUP(M44,'Drop Down'!$A$3:$B$10,2,0),\"1\",\"0\")","v":"0"},0,0,{"$f":"IFERROR(IF(M44=\"Select\",\"Select Support Level\", PRODUCT($Q44,VLOOKUP($J44,'Drop Down'!K:M,3,0))),\"-\")","v":"Select Support Level"},"Ok",0,0]
["Select","-","-","-","-","Select",null,"DD/MM/YYYY","DD/MM/YYYY","Select","Select","Select","Select",0,{"$f":"IF(N45>VLOOKUP(M45,'Drop Down'!$A$3:$B$10,2,0),\"1\",\"0\")","v":"0"},0,0,{"$f":"IFERROR(IF(M45=\"Select\",\"Select Support Level\", PRODUCT($Q45,VLOOKUP($J45,'Drop Down'!K:M,3,0))),\"-\")","v":"Select Support Level"},"Ok",0,0]
["Select","-","-","-","-","Select",null,"DD/MM/YYYY","DD/MM/YYYY","Select","Select","Select","Select",0,{"$f":"IF(N46>VLOOKUP(M46,'Drop Down'!$A$3:$B$10,2,0),\"1\",\"0\")","v":"0"},0,0,{"$f":"IFERROR(IF(M46=\"Select\",\"Select Support Level\", PRODUCT($Q46,VLOOKUP($J46,'Drop Down'!K:M,3,0))),\"-\")","v":"Select Support Level"},"Ok",0,0]
["Select","-","-","-","-","Select",null,"DD/MM/YYYY","DD/MM/YYYY","Select","Select","Select","Select",0,{"$f":"IF(N47>VLOOKUP(M47,'Drop Down'!$A$3:$B$10,2,0),\"1\",\"0\")","v":"0"},0,0,{"$f":"IFERROR(IF(M47=\"Select\",\"Select Support Level\", PRODUCT($Q47,VLOOKUP($J47,'Drop Down'!K:M,3,0))),\"-\")","v":"Select Support Level"},"Ok",0,0]
["Select","-","-","-","-","Select",null,"DD/MM/YYYY","DD/MM/YYYY","Select","Select","Select","Select",0,{"$f":"IF(N48>VLOOKUP(M48,'Drop Down'!$A$3:$B$10,2,0),\"1\",\"0\")","v":"0"},0,0,{"$f":"IFERROR(IF(M48=\"Select\",\"Select Support Level\", PRODUCT($Q48,VLOOKUP($J48,'Drop Down'!K:M,3,0))),\"-\")","v":"Select Support Level"},"Ok",0,0]
["Select","-","-","-","-","Select",null,"DD/MM/YYYY","DD/MM/YYYY","Select","Select","Select","Select",0,{"$f":"IF(N49>VLOOKUP(M49,'Drop Down'!$A$3:$B$10,2,0),\"1\",\"0\")","v":"0"},0,0,{"$f":"IFERROR(IF(M49=\"Select\",\"Select Support Level\", PRODUCT($Q49,VLOOKUP($J49,'Drop Down'!K:M,3,0))),\"-\")","v":"Select Support Level"},"Ok",0,0]
["Select","-","-","-","-","Select",null,"DD/MM/YYYY","DD/MM/YYYY","Select","Select","Select","Select",0,{"$f":"IF(N50>VLOOKUP(M50,'Drop Down'!$A$3:$B$10,2,0),\"1\",\"0\")","v":"0"},0,0,{"$f":"IFERROR(IF(M50=\"Select\",\"Select Support Level\", PRODUCT($Q50,VLOOKUP($J50,'Drop Down'!K:M,3,0))),\"-\")","v":"Select Support Level"},"Ok",0,0]
["Select","-","-","-","-","Select",null,"DD/MM/YYYY","DD/MM/YYYY","Select","Select","Select","Select",0,{"$f":"IF(N51>VLOOKUP(M51,'Drop Down'!$A$3:$B$10,2,0),\"1\",\"0\")","v":"0"},0,0,{"$f":"IFERROR(IF(M51=\"Select\",\"Select Support Level\", PRODUCT($Q51,VLOOKUP($J51,'Drop Down'!K:M,3,0))),\"-\")","v":"Select Support Level"},"Ok",0,0]
["Select","-","-","-","-","Select",null,"DD/MM/YYYY","DD/MM/YYYY","Select","Select","Select","Select",0,{"$f":"IF(N52>VLOOKUP(M52,'Drop Down'!$A$3:$B$10,2,0),\"1\",\"0\")","v":"0"},0,0,{"$f":"IFERROR(IF(M52=\"Select\",\"Select Support Level\", PRODUCT($Q52,VLOOKUP($J52,'Drop Down'!K:M,3,0))),\"-\")","v":"Select Support Level"},"Ok",0,0]
["Select","-","-","-","-","Select",null,"DD/MM/YYYY","DD/MM/YYYY","Select","Select","Select","Select",0,{"$f":"IF(N53>VLOOKUP(M53,'Drop Down'!$A$3:$B$10,2,0),\"1\",\"0\")","v":"0"},0,0,{"$f":"IFERROR(IF(M53=\"Select\",\"Select Support Level\", PRODUCT($Q53,VLOOKUP($J53,'Drop Down'!K:M,3,0))),\"-\")","v":"Select Support Level"},"Ok",0,0]
["Select","-","-","-","-","Select",null,"DD/MM/YYYY","DD/MM/YYYY","Select","Select","Select","Select",0,{"$f":"IF(N54>VLOOKUP(M54,'Drop Down'!$A$3:$B$10,2,0),\"1\",\"0\")","v":"0"},0,0,{"$f":"IFERROR(IF(M54=\"Select\",\"Select Support Level\", PRODUCT($Q54,VLOOKUP($J54,'Drop Down'!K:M,3,0))),\"-\")","v":"Select Support Level"},"Ok",0,0]
["Select","-","-","-","-","Select",null,"DD/MM/YYYY","DD/MM/YYYY","Select","Select","Select","Select",0,{"$f":"IF(N55>VLOOKUP(M55,'Drop Down'!$A$3:$B$10,2,0),\"1\",\"0\")","v":"0"},0,0,{"$f":"IFERROR(IF(M55=\"Select\",\"Select Support Level\", PRODUCT($Q55,VLOOKUP($J55,'Drop Down'!K:M,3,0))),\"-\")","v":"Select Support Level"},"Ok",0,0]
["Select","-","-","-","-","Select",null,"DD/MM/YYYY","DD/MM/YYYY","Select","Select","Select","Select",0,{"$f":"IF(N56>VLOOKUP(M56,'Drop Down'!$A$3:$B$10,2,0),\"1\",\"0\")","v":"0"},0,0,{"$f":"IFERROR(IF(M56=\"Select\",\"Select Support Level\", PRODUCT($Q56,VLOOKUP($J56,'Drop Down'!K:M,3,0))),\"-\")","v":"Select Support Level"},"Ok",0,0]
["Select","-","-","-","-","Select",null,"DD/MM/YYYY","DD/MM/YYYY","Select","Select","Select","Select",0,{"$f":"IF(N57>VLOOKUP(M57,'Drop Down'!$A$3:$B$10,2,0),\"1\",\"0\")","v":"0"},0,0,{"$f":"IFERROR(IF(M57=\"Select\",\"Select Support Level\", PRODUCT($Q57,VLOOKUP($J57,'Drop Down'!K:M,3,0))),\"-\")","v":"Select Support Level"},"Ok",0,0]
["Select","-","-","-","-","Select",null,"DD/MM/YYYY","DD/MM/YYYY","Select","Select","Select","Select",0,{"$f":"IF(N58>VLOOKUP(M58,'Drop Down'!$A$3:$B$10,2,0),\"1\",\"0\")","v":"0"},0,0,{"$f":"IFERROR(IF(M58=\"Select\",\"Select Support Level\", PRODUCT($Q58,VLOOKUP($J58,'Drop Down'!K:M,3,0))),\"-\")","v":"Select Support Level"},"Ok",0,0]
["Select","-","-","-","-","Select",null,"DD/MM/YYYY","DD/MM/YYYY","Select","Select","Select","Select",0,{"$f":"IF(N59>VLOOKUP(M59,'Drop Down'!$A$3:$B$10,2,0),\"1\",\"0\")","v":"0"},0,0,{"$f":"IFERROR(IF(M59=\"Select\",\"Select Support Level\", PRODUCT($Q59,VLOOKUP($J59,'Drop Down'!K:M,3,0))),\"-\")","v":"Select Support Level"},"Ok",0,0]
["Select","-","-","-","-","Select",null,"DD/MM/YYYY","DD/MM/YYYY","Select","Select","Select","Select",0,{"$f":"IF(N60>VLOOKUP(M60,'Drop Down'!$A$3:$B$10,2,0),\"1\",\"0\")","v":"0"},0,0,{"$f":"IFERROR(IF(M60=\"Select\",\"Select Support Level\", PRODUCT($Q60,VLOOKUP($J60,'Drop Down'!K:M,3,0))),\"-\")","v":"Select Support Level"},"Ok",0,0]
["Select","-","-","-","-","Select",null,"DD/MM/YYYY","DD/MM/YYYY","Select","Select","Select","Select",0,{"$f":"IF(N61>VLOOKUP(M61,'Drop Down'!$A$3:$B$10,2,0),\"1\",\"0\")","v":"0"},0,0,{"$f":"IFERROR(IF(M61=\"Select\",\"Select Support Level\", PRODUCT($Q61,VLOOKUP($J61,'Drop Down'!K:M,3,0))),\"-\")","v":"Select Support Level"},"Ok",0,0]
["Select","-","-","-","-","Select",null,"DD/MM/YYYY","DD/MM/YYYY","Select","Select","Select","Select",0,{"$f":"IF(N62>VLOOKUP(M62,'Drop Down'!$A$3:$B$10,2,0),\"1\",\"0\")","v":"0"},0,0,{"$f":"IFERROR(IF(M62=\"Select\",\"Select Support Level\", PRODUCT($Q62,VLOOKUP($J62,'Drop Down'!K:M,3,0))),\"-\")","v":"Select Support Level"},"Ok",0,0]
["Select","-","-","-","-","Select",null,"DD/MM/YYYY","DD/MM/YYYY","Select","Select","Select","Select",0,{"$f":"IF(N63>VLOOKUP(M63,'Drop Down'!$A$3:$B$10,2,0),\"1\",\"0\")","v":"0"},0,0,{"$f":"IFERROR(IF(M63=\"Select\",\"Select Support Level\", PRODUCT($Q63,VLOOKUP($J63,'Drop Down'!K:M,3,0))),\"-\")","v":"Select Support Level"},"Ok",0,0]
["Select","-","-","-","-","Select",null,"DD/MM/YYYY","DD/MM/YYYY","Select","Select","Select","Select",0,{"$f":"IF(N64>VLOOKUP(M64,'Drop Down'!$A$3:$B$10,2,0),\"1\",\"0\")","v":"0"},0,0,{"$f":"IFERROR(IF(M64=\"Select\",\"Select Support Level\", PRODUCT($Q64,VLOOKUP($J64,'Drop Down'!K:M,3,0))),\"-\")","v":"Select Support Level"},"Ok",0,0]
["Select","-","-","-","-","Select",null,"DD/MM/YYYY","DD/MM/YYYY","Select","Select","Select","Select",0,{"$f":"IF(N65>VLOOKUP(M65,'Drop Down'!$A$3:$B$10,2,0),\"1\",\"0\")","v":"0"},0,0,{"$f":"IFERROR(IF(M65=\"Select\",\"Select Support Level\", PRODUCT($Q65,VLOOKUP($J65,'Drop Down'!K:M,3,0))),\"-\")","v":"Select Support Level"},"Ok",0,0]
["Select","-","-","-","-","Select",null,"DD/MM/YYYY","DD/MM/YYYY","Select","Select","Select","Select",0,{"$f":"IF(N66>VLOOKUP(M66,'Drop Down'!$A$3:$B$10,2,0),\"1\",\"0\")","v":"0"},0,{"$f":"SUM($N66,$P66)","v":0},{"$f":"IFERROR(IF(M66=\"Select\",\"Select Support Level\", PRODUCT($Q66,VLOOKUP($J66,'Drop Down'!K:M,3,0))),\"-\")","v":"Select Support Level"},{"$f":"IF(O66=\"1\",\"Cannot Bill\",\"Ok\")","v":"Ok"},0,{"$f":"IF($T66=\"\",0,ROUND(PRODUCT(T66,0.7),2))","v":0}]
["Select","-","-","-","-","Select",null,"DD/MM/YYYY","DD/MM/YYYY","Select","Select","Select","Select",0,{"$f":"IF(N67>VLOOKUP(M67,'Drop Down'!$A$3:$B$10,2,0),\"1\",\"0\")","v":"0"},0,0,{"$f":"IFERROR(IF(M67=\"Select\",\"Select Support Level\", PRODUCT($Q67,VLOOKUP($J67,'Drop Down'!K:M,3,0))),\"-\")","v":"Select Support Level"},"Ok",0,0]
["Select","-","-","-","-","Select",null,"DD/MM/YYYY","DD/MM/YYYY","Select","Select","Select","Select",0,{"$f":"IF(N68>VLOOKUP(M68,'Drop Down'!$A$3:$B$10,2,0),\"1\",\"0\")","v":"0"},0,0,{"$f":"IFERROR(IF(M68=\"Select\",\"Select Support Level\", PRODUCT($Q68,VLOOKUP($J68,'Drop Down'!K:M,3,0))),\"-\")","v":"Select Support Level"},"Ok",0,0]
["Select","-","-","-","-","Select",null,"DD/MM/YYYY","DD/MM/YYYY","Select","Select","Select","Select",0,{"$f":"IF(N69>VLOOKUP(M69,'Drop Down'!$A$3:$B$10,2,0),\"1\",\"0\")","v":"0"},0,0,{"$f":"IFERROR(IF(M69=\"Select\",\"Select Support Level\", PRODUCT($Q69,VLOOKUP($J69,'Drop Down'!K:M,3,0))),\"-\")","v":"Select Support Level"},"Ok",0,0]
["Select","-","-","-","-","Select",null,"DD/MM/YYYY","DD/MM/YYYY","Select","Select","Select","Select",0,{"$f":"IF(N70>VLOOKUP(M70,'Drop Down'!$A$3:$B$10,2,0),\"1\",\"0\")","v":"0"},0,0,{"$f":"IFERROR(IF(M70=\"Select\",\"Select Support Level\", PRODUCT($Q70,VLOOKUP($J70,'Drop Down'!K:M,3,0))),\"-\")","v":"Select Support Level"},"Ok",0,0]
["Select","-","-","-","-","Select",null,"DD/MM/YYYY","DD/MM/YYYY","Select","Select","Select","Select",0,{"$f":"IF(N71>VLOOKUP(M71,'Drop Down'!$A$3:$B$10,2,0),\"1\",\"0\")","v":"0"},0,0,{"$f":"IFERROR(IF(M71=\"Select\",\"Select Support Level\", PRODUCT($Q71,VLOOKUP($J71,'Drop Down'!K:M,3,0))),\"-\")","v":"Select Support Level"},"Ok",0,0]
["Select","-","-","-","-","Select",null,"DD/MM/YYYY","DD/MM/YYYY","Select","Select","Select","Select",0,{"$f":"IF(N72>VLOOKUP(M72,'Drop Down'!$A$3:$B$10,2,0),\"1\",\"0\")","v":"0"},0,0,{"$f":"IFERROR(IF(M72=\"Select\",\"Select Support Level\", PRODUCT($Q72,VLOOKUP($J72,'Drop Down'!K:M,3,0))),\"-\")","v":"Select Support Level"},"Ok",0,0]
["Select","-","-","-","-","Select",null,"DD/MM/YYYY","DD/MM/YYYY","Select","Select","Select","Select",0,{"$f":"IF(N73>VLOOKUP(M73,'Drop Down'!$A$3:$B$10,2,0),\"1\",\"0\")","v":"0"},0,0,{"$f":"IFERROR(IF(M73=\"Select\",\"Select Support Level\", PRODUCT($Q73,VLOOKUP($J73,'Drop Down'!K:M,3,0))),\"-\")","v":"Select Support Level"},"Ok",0,0]
["Select","-","-","-","-","Select",null,"DD/MM/YYYY","DD/MM/YYYY","Select","Select","Select","Select",0,{"$f":"IF(N74>VLOOKUP(M74,'Drop Down'!$A$3:$B$10,2,0),\"1\",\"0\")","v":"0"},0,0,{"$f":"IFERROR(IF(M74=\"Select\",\"Select Support Level\", PRODUCT($Q74,VLOOKUP($J74,'Drop Down'!K:M,3,0))),\"-\")","v":"Select Support Level"},"Ok",0,0]
["Select","-","-","-","-","Select",null,"DD/MM/YYYY","DD/MM/YYYY","Select","Select","Select","Select",0,{"$f":"IF(N75>VLOOKUP(M75,'Drop Down'!$A$3:$B$10,2,0),\"1\",\"0\")","v":"0"},0,0,{"$f":"IFERROR(IF(M75=\"Select\",\"Select Support Level\", PRODUCT($Q75,VLOOKUP($J75,'Drop Down'!K:M,3,0))),\"-\")","v":"Select Support Level"},"Ok",0,0]
["Select","-","-","-","-","Select",null,"DD/MM/YYYY","DD/MM/YYYY","Select","Select","Select","Select",0,{"$f":"IF(N76>VLOOKUP(M76,'Drop Down'!$A$3:$B$10,2,0),\"1\",\"0\")","v":"0"},0,0,{"$f":"IFERROR(IF(M76=\"Select\",\"Select Support Level\", PRODUCT($Q76,VLOOKUP($J76,'Drop Down'!K:M,3,0))),\"-\")","v":"Select Support Level"},"Ok",0,0]
["Select","-","-","-","-","Select",null,"DD/MM/YYYY","DD/MM/YYYY","Select","Select","Select","Select",0,{"$f":"IF(N77>VLOOKUP(M77,'Drop Down'!$A$3:$B$10,2,0),\"1\",\"0\")","v":"0"},0,0,{"$f":"IFERROR(IF(M77=\"Select\",\"Select Support Level\", PRODUCT($Q77,VLOOKUP($J77,'Drop Down'!K:M,3,0))),\"-\")","v":"Select Support Level"},"Ok",0,0]
["Select","-","-","-","-","Select",null,"DD/MM/YYYY","DD/MM/YYYY","Select","Select","Select","Select",0,{"$f":"IF(N78>VLOOKUP(M78,'Drop Down'!$A$3:$B$10,2,0),\"1\",\"0\")","v":"0"},0,0,{"$f":"IFERROR(IF(M78=\"Select\",\"Select Support Level\", PRODUCT($Q78,VLOOKUP($J78,'Drop Down'!K:M,3,0))),\"-\")","v":"Select Support Level"},"Ok",0,0]
["Select","-","-","-","-","Select",null,"DD/MM/YYYY","DD/MM/YYYY","Select","Select","Select","Select",0,{"$f":"IF(N79>VLOOKUP(M79,'Drop Down'!$A$3:$B$10,2,0),\"1\",\"0\")","v":"0"},0,0,{"$f":"IFERROR(IF(M79=\"Select\",\"Select Support Level\", PRODUCT($Q79,VLOOKUP($J79,'Drop Down'!K:M,3,0))),\"-\")","v":"Select Support Level"},"Ok",0,0]
["Select","-","-","-","-","Select",null,"DD/MM/YYYY","DD/MM/YYYY","Select","Select","Select","Select",0,{"$f":"IF(N80>VLOOKUP(M80,'Drop Down'!$A$3:$B$10,2,0),\"1\",\"0\")","v":"0"},0,0,{"$f":"IFERROR(IF(M80=\"Select\",\"Select Support Level\", PRODUCT($Q80,VLOOKUP($J80,'Drop Down'!K:M,3,0))),\"-\")","v":"Select Support Level"},"Ok",0,0]
["Select","-","-","-","-","Select",null,"DD/MM/YYYY","DD/MM/YYYY","Select","Select","Select","Select",0,{"$f":"IF(N81>VLOOKUP(M81,'Drop Down'!$A$3:$B$10,2,0),\"1\",\"0\")","v":"0"},0,0,{"$f":"IFERROR(IF(M81=\"Select\",\"Select Support Level\", PRODUCT($Q81,VLOOKUP($J81,'Drop Down'!K:M,3,0))),\"-\")","v":"Select Support Level"},"Ok",0,0]
["Select","-","-","-","-","Select",null,"DD/MM/YYYY","DD/MM/YYYY","Select","Select","Select","Select",0,{"$f":"IF(N82>VLOOKUP(M82,'Drop Down'!$A$3:$B$10,2,0),\"1\",\"0\")","v":"0"},0,0,{"$f":"IFERROR(IF(M82=\"Select\",\"Select Support Level\", PRODUCT($Q82,VLOOKUP($J82,'Drop Down'!K:M,3,0))),\"-\")","v":"Select Support Level"},"Ok",0,0]
["Select","-","-","-","-","Select",null,"DD/MM/YYYY","DD/MM/YYYY","Select","Select","Select","Select",0,{"$f":"IF(N83>VLOOKUP(M83,'Drop Down'!$A$3:$B$10,2,0),\"1\",\"0\")","v":"0"},0,0,{"$f":"IFERROR(IF(M83=\"Select\",\"Select Support Level\", PRODUCT($Q83,VLOOKUP($J83,'Drop Down'!K:M,3,0))),\"-\")","v":"Select Support Level"},"Ok",0,0]
["Select","-","-","-","-","Select",null,"DD/MM/YYYY","DD/MM/YYYY","Select","Select","Select","Select",0,{"$f":"IF(N84>VLOOKUP(M84,'Drop Down'!$A$3:$B$10,2,0),\"1\",\"0\")","v":"0"},0,0,{"$f":"IFERROR(IF(M84=\"Select\",\"Select Support Level\", PRODUCT($Q84,VLOOKUP($J84,'Drop Down'!K:M,3,0))),\"-\")","v":"Select Support Level"},"Ok",0,0]
["Select","-","-","-","-","Select",null,"DD/MM/YYYY","DD/MM/YYYY","Select","Select","Select","Select",0,{"$f":"IF(N85>VLOOKUP(M85,'Drop Down'!$A$3:$B$10,2,0),\"1\",\"0\")","v":"0"},0,0,{"$f":"IFERROR(IF(M85=\"Select\",\"Select Support Level\", PRODUCT($Q85,VLOOKUP($J85,'Drop Down'!K:M,3,0))),\"-\")","v":"Select Support Level"},"Ok",0,0]
["Select","-","-","-","-","Select",null,"DD/MM/YYYY","DD/MM/YYYY","Select","Select","Select","Select",0,{"$f":"IF(N86>VLOOKUP(M86,'Drop Down'!$A$3:$B$10,2,0),\"1\",\"0\")","v":"0"},0,0,{"$f":"IFERROR(IF(M86=\"Select\",\"Select Support Level\", PRODUCT($Q86,VLOOKUP($J86,'Drop Down'!K:M,3,0))),\"-\")","v":"Select Support Level"},"Ok",0,0]
["Select","-","-","-","-","Select",null,"DD/MM/YYYY","DD/MM/YYYY","Select","Select","Select","Select",0,{"$f":"IF(N87>VLOOKUP(M87,'Drop Down'!$A$3:$B$10,2,0),\"1\",\"0\")","v":"0"},0,0,{"$f":"IFERROR(IF(M87=\"Select\",\"Select Support Level\", PRODUCT($Q87,VLOOKUP($J87,'Drop Down'!K:M,3,0))),\"-\")","v":"Select Support Level"},"Ok",0,0]
["Select","-","-","-","-","Select",null,"DD/MM/YYYY","DD/MM/YYYY","Select","Select","Select","Select",0,{"$f":"IF(N88>VLOOKUP(M88,'Drop Down'!$A$3:$B$10,2,0),\"1\",\"0\")","v":"0"},0,0,{"$f":"IFERROR(IF(M88=\"Select\",\"Select Support Level\", PRODUCT($Q88,VLOOKUP($J88,'Drop Down'!K:M,3,0))),\"-\")","v":"Select Support Level"},"Ok",0,0]
["Select","-","-","-","-","Select",null,"DD/MM/YYYY","DD/MM/YYYY","Select","Select","Select","Select",0,{"$f":"IF(N89>VLOOKUP(M89,'Drop Down'!$A$3:$B$10,2,0),\"1\",\"0\")","v":"0"},0,0,{"$f":"IFERROR(IF(M89=\"Select\",\"Select Support Level\", PRODUCT($Q89,VLOOKUP($J89,'Drop Down'!K:M,3,0))),\"-\")","v":"Select Support Level"},"Ok",0,0]
["Select","-","-","-","-","Select",null,"DD/MM/YYYY","DD/MM/YYYY","Select","Select","Select","Select",0,{"$f":"IF(N90>VLOOKUP(M90,'Drop Down'!$A$3:$B$10,2,0),\"1\",\"0\")","v":"0"},0,0,{"$f":"IFERROR(IF(M90=\"Select\",\"Select Support Level\", PRODUCT($Q90,VLOOKUP($J90,'Drop Down'!K:M,3,0))),\"-\")","v":"Select Support Level"},"Ok",0,0]
["Select","-","-","-","-","Select",null,"DD/MM/YYYY","DD/MM/YYYY","Select","Select","Select","Select",0,{"$f":"IF(N91>VLOOKUP(M91,'Drop Down'!$A$3:$B$10,2,0),\"1\",\"0\")","v":"0"},0,0,{"$f":"IFERROR(IF(M91=\"Select\",\"Select Support Level\", PRODUCT($Q91,VLOOKUP($J91,'Drop Down'!K:M,3,0))),\"-\")","v":"Select Support Level"},"Ok",0,0]
["Select","-","-","-","-","Select",null,"DD/MM/YYYY","DD/MM/YYYY","Select","Select","Select","Select",0,{"$f":"IF(N92>VLOOKUP(M92,'Drop Down'!$A$3:$B$10,2,0),\"1\",\"0\")","v":"0"},0,0,{"$f":"IFERROR(IF(M92=\"Select\",\"Select Support Level\", PRODUCT($Q92,VLOOKUP($J92,'Drop Down'!K:M,3,0))),\"-\")","v":"Select Support Level"},"Ok",0,0]
["Select","-","-","-","-","Select",null,"DD/MM/YYYY","DD/MM/YYYY","Select","Select","Select","Select",0,{"$f":"IF(N93>VLOOKUP(M93,'Drop Down'!$A$3:$B$10,2,0),\"1\",\"0\")","v":"0"},0,0,{"$f":"IFERROR(IF(M93=\"Select\",\"Select Support Level\", PRODUCT($Q93,VLOOKUP($J93,'Drop Down'!K:M,3,0))),\"-\")","v":"Select Support Level"},"Ok",0,0]
["Select","-","-","-","-","Select",null,"DD/MM/YYYY","DD/MM/YYYY","Select","Select","Select","Select",0,{"$f":"IF(N94>VLOOKUP(M94,'Drop Down'!$A$3:$B$10,2,0),\"1\",\"0\")","v":"0"},0,0,{"$f":"IFERROR(IF(M94=\"Select\",\"Select Support Level\", PRODUCT($Q94,VLOOKUP($J94,'Drop Down'!K:M,3,0))),\"-\")","v":"Select Support Level"},"Ok",0,0]
["Select","-","-","-","-","Select",null,"DD/MM/YYYY","DD/MM/YYYY","Select","Select","Select","Select",0,{"$f":"IF(N95>VLOOKUP(M95,'Drop Down'!$A$3:$B$10,2,0),\"1\",\"0\")","v":"0"},0,0,{"$f":"IFERROR(IF(M95=\"Select\",\"Select Support Level\", PRODUCT($Q95,VLOOKUP($J95,'Drop Down'!K:M,3,0))),\"-\")","v":"Select Support Level"},"Ok",0,0]
["Select","-","-","-","-","Select",null,"DD/MM/YYYY","DD/MM/YYYY","Select","Select","Select","Select",0,{"$f":"IF(N96>VLOOKUP(M96,'Drop Down'!$A$3:$B$10,2,0),\"1\",\"0\")","v":"0"},0,0,{"$f":"IFERROR(IF(M96=\"Select\",\"Select Support Level\", PRODUCT($Q96,VLOOKUP($J96,'Drop Down'!K:M,3,0))),\"-\")","v":"Select Support Level"},"Ok",0,0]
["Select","-","-","-","-","Select",null,"DD/MM/YYYY","DD/MM/YYYY","Select","Select","Select","Select",0,{"$f":"IF(N97>VLOOKUP(M97,'Drop Down'!$A$3:$B$10,2,0),\"1\",\"0\")","v":"0"},0,0,{"$f":"IFERROR(IF(M97=\"Select\",\"Select Support Level\", PRODUCT($Q97,VLOOKUP($J97,'Drop Down'!K:M,3,0))),\"-\")","v":"Select Support Level"},"Ok",0,0]
["Select","-","-","-","-","Select",null,"DD/MM/YYYY","DD/MM/YYYY","Select","Select","Select","Select",0,{"$f":"IF(N98>VLOOKUP(M98,'Drop Down'!$A$3:$B$10,2,0),\"1\",\"0\")","v":"0"},0,0,{"$f":"IFERROR(IF(M98=\"Select\",\"Select Support Level\", PRODUCT($Q98,VLOOKUP($J98,'Drop Down'!K:M,3,0))),\"-\")","v":"Select Support Level"},"Ok",0,0]
["Select","-","-","-","-","Select",null,"DD/MM/YYYY","DD/MM/YYYY","Select","Select","Select","Select",0,{"$f":"IF(N99>VLOOKUP(M99,'Drop Down'!$A$3:$B$10,2,0),\"1\",\"0\")","v":"0"},0,0,{"$f":"IFERROR(IF(M99=\"Select\",\"Select Support Level\", PRODUCT($Q99,VLOOKUP($J99,'Drop Down'!K:M,3,0))),\"-\")","v":"Select Support Level"},"Ok",0,0]
["Select","-","-","-","-","Select",null,"DD/MM/YYYY","DD/MM/YYYY","Select","Select","Select","Select",0,{"$f":"IF(N100>VLOOKUP(M100,'Drop Down'!$A$3:$B$10,2,0),\"1\",\"0\")","v":"0"},0,0,{"$f":"IFERROR(IF(M100=\"Select\",\"Select Support Level\", PRODUCT($Q100,VLOOKUP($J100,'Drop Down'!K:M,3,0))),\"-\")","v":"Select Support Level"},"Ok",0,0]
["Select","-","-","-","-","Select",null,"DD/MM/YYYY","DD/MM/YYYY","Select","Select","Select","Select",0,{"$f":"IF(N101>VLOOKUP(M101,'Drop Down'!$A$3:$B$10,2,0),\"1\",\"0\")","v":"0"},0,0,{"$f":"IFERROR(IF(M101=\"Select\",\"Select Support Level\", PRODUCT($Q101,VLOOKUP($J101,'Drop Down'!K:M,3,0))),\"-\")","v":"Select Support Level"},"Ok",0,0]
["Select","-","-","-","-","Select",null,"DD/MM/YYYY","DD/MM/YYYY","Select","Select","Select","Select",0,{"$f":"IF(N102>VLOOKUP(M102,'Drop Down'!$A$3:$B$10,2,0),\"1\",\"0\")","v":"0"},0,0,{"$f":"IFERROR(IF(M102=\"Select\",\"Select Support Level\", PRODUCT($Q102,VLOOKUP($J102,'Drop Down'!K:M,3,0))),\"-\")","v":"Select Support Level"},"Ok",0,0]
["Select","-","-","-","-","Select",null,"DD/MM/YYYY","DD/MM/YYYY","Select","Select","Select","Select",0,{"$f":"IF(N103>VLOOKUP(M103,'Drop Down'!$A$3:$B$10,2,0),\"1\",\"0\")","v":"0"},0,0,{"$f":"IFERROR(IF(M103=\"Select\",\"Select Support Level\", PRODUCT($Q103,VLOOKUP($J103,'Drop Down'!K:M,3,0))),\"-\")","v":"Select Support Level"},"Ok",0,0]
["Select","-","-","-","-","Select",null,"DD/MM/YYYY","DD/MM/YYYY","Select","Select","Select","Select",0,{"$f":"IF(N104>VLOOKUP(M104,'Drop Down'!$A$3:$B$10,2,0),\"1\",\"0\")","v":"0"},0,0,{"$f":"IFERROR(IF(M104=\"Select\",\"Select Support Level\", PRODUCT($Q104,VLOOKUP($J104,'Drop Down'!K:M,3,0))),\"-\")","v":"Select Support Level"},"Ok",0,0]
["Select","-","-","-","-","Select",null,"DD/MM/YYYY","DD/MM/YYYY","Select","Select","Select","Select",0,{"$f":"IF(N105>VLOOKUP(M105,'Drop Down'!$A$3:$B$10,2,0),\"1\",\"0\")","v":"0"},0,0,{"$f":"IFERROR(IF(M105=\"Select\",\"Select Support Level\", PRODUCT($Q105,VLOOKUP($J105,'Drop Down'!K:M,3,0))),\"-\")","v":"Select Support Level"},"Ok",0,0]
["Select","-","-","-","-","Select",null,"DD/MM/YYYY","DD/MM/YYYY","Select","Select","Select","Select",0,{"$f":"IF(N106>VLOOKUP(M106,'Drop Down'!$A$3:$B$10,2,0),\"1\",\"0\")","v":"0"},0,0,{"$f":"IFERROR(IF(M106=\"Select\",\"Select Support Level\", PRODUCT($Q106,VLOOKUP($J106,'Drop Down'!K:M,3,0))),\"-\")","v":"Select Support Level"},"Ok",0,0]
["Select","-","-","-","-","Select",null,"DD/MM/YYYY","DD/MM/YYYY","Select","Select","Select","Select",0,{"$f":"IF(N107>VLOOKUP(M107,'Drop Down'!$A$3:$B$10,2,0),\"1\",\"0\")","v":"0"},0,0,{"$f":"IFERROR(IF(M107=\"Select\",\"Select Support Level\", PRODUCT($Q107,VLOOKUP($J107,'Drop Down'!K:M,3,0))),\"-\")","v":"Select Support Level"},"Ok",0,0]
["Select","-","-","-","-","Select",null,"DD/MM/YYYY","DD/MM/YYYY","Select","Select","Select","Select",0,{"$f":"IF(N108>VLOOKUP(M108,'Drop Down'!$A$3:$B$10,2,0),\"1\",\"0\")","v":"0"},0,0,{"$f":"IFERROR(IF(M108=\"Select\",\"Select Support Level\", PRODUCT($Q108,VLOOKUP($J108,'Drop Down'!K:M,3,0))),\"-\")","v":"Select Support Level"},"Ok",0,0]
["Select","-","-","-","-","Select",null,"DD/MM/YYYY","DD/MM/YYYY","Select","Select","Select","Select",0,{"$f":"IF(N109>VLOOKUP(M109,'Drop Down'!$A$3:$B$10,2,0),\"1\",\"0\")","v":"0"},0,0,{"$f":"IFERROR(IF(M109=\"Select\",\"Select Support Level\", PRODUCT($Q109,VLOOKUP($J109,'Drop Down'!K:M,3,0))),\"-\")","v":"Select Support Level"},"Ok",0,0]
["Select","-","-","-","-","Select",null,"DD/MM/YYYY","DD/MM/YYYY","Select","Select","Select","Select",0,{"$f":"IF(N110>VLOOKUP(M110,'Drop Down'!$A$3:$B$10,2,0),\"1\",\"0\")","v":"0"},0,0,{"$f":"IFERROR(IF(M110=\"Select\",\"Select Support Level\", PRODUCT($Q110,VLOOKUP($J110,'Drop Down'!K:M,3,0))),\"-\")","v":"Select Support Level"},"Ok",0,0]
["Select","-","-","-","-","Select",null,"DD/MM/YYYY","DD/MM/YYYY","Select","Select","Select","Select",0,{"$f":"IF(N111>VLOOKUP(M111,'Drop Down'!$A$3:$B$10,2,0),\"1\",\"0\")","v":"0"},0,0,{"$f":"IFERROR(IF(M111=\"Select\",\"Select Support Level\", PRODUCT($Q111,VLOOKUP($J111,'Drop Down'!K:M,3,0))),\"-\")","v":"Select Support Level"},"Ok",0,0]
["Select","-","-","-","-","Select",null,"DD/MM/YYYY","DD/MM/YYYY","Select","Select","Select","Select",0,{"$f":"IF(N112>VLOOKUP(M112,'Drop Down'!$A$3:$B$10,2,0),\"1\",\"0\")","v":"0"},0,0,{"$f":"IFERROR(IF(M112=\"Select\",\"Select Support Level\", PRODUCT($Q112,VLOOKUP($J112,'Drop Down'!K:M,3,0))),\"-\")","v":"Select Support Level"},"Ok",0,0]
["Select","-","-","-","-","Select",null,"DD/MM/YYYY","DD/MM/YYYY","Select","Select","Select","Select",0,{"$f":"IF(N113>VLOOKUP(M113,'Drop Down'!$A$3:$B$10,2,0),\"1\",\"0\")","v":"0"},0,0,{"$f":"IFERROR(IF(M113=\"Select\",\"Select Support Level\", PRODUCT($Q113,VLOOKUP($J113,'Drop Down'!K:M,3,0))),\"-\")","v":"Select Support Level"},"Ok",0,0]
["Select","-","-","-","-","Select",null,"DD/MM/YYYY","DD/MM/YYYY","Select","Select","Select","Select",0,{"$f":"IF(N114>VLOOKUP(M114,'Drop Down'!$A$3:$B$10,2,0),\"1\",\"0\")","v":"0"},0,0,{"$f":"IFERROR(IF(M114=\"Select\",\"Select Support Level\", PRODUCT($Q114,VLOOKUP($J114,'Drop Down'!K:M,3,0))),\"-\")","v":"Select Support Level"},"Ok",0,0]
["Select","-","-","-","-","Select",null,"DD/MM/YYYY","DD/MM/YYYY","Select","Select","Select","Select",0,{"$f":"IF(N115>VLOOKUP(M115,'Drop Down'!$A$3:$B$10,2,0),\"1\",\"0\")","v":"0"},0,0,{"$f":"IFERROR(IF(M115=\"Select\",\"Select Support Level\", PRODUCT($Q115,VLOOKUP($J115,'Drop Down'!K:M,3,0))),\"-\")","v":"Select Support Level"},"Ok",0,0]
["Select","-","-","-","-","Select",null,"DD/MM/YYYY","DD/MM/YYYY","Select","Select","Select","Select",0,{"$f":"IF(N116>VLOOKUP(M116,'Drop Down'!$A$3:$B$10,2,0),\"1\",\"0\")","v":"0"},0,0,{"$f":"IFERROR(IF(M116=\"Select\",\"Select Support Level\", PRODUCT($Q116,VLOOKUP($J116,'Drop Down'!K:M,3,0))),\"-\")","v":"Select Support Level"},"Ok",0,0]
["Select","-","-","-","-","Select",null,"DD/MM/YYYY","DD/MM/YYYY","Select","Select","Select","Select",0,{"$f":"IF(N117>VLOOKUP(M117,'Drop Down'!$A$3:$B$10,2,0),\"1\",\"0\")","v":"0"},0,0,{"$f":"IFERROR(IF(M117=\"Select\",\"Select Support Level\", PRODUCT($Q117,VLOOKUP($J117,'Drop Down'!K:M,3,0))),\"-\")","v":"Select Support Level"},"Ok",0,0]
["Select","-","-","-","-","Select",null,"DD/MM/YYYY","DD/MM/YYYY","Select","Select","Select","Select",0,{"$f":"IF(N118>VLOOKUP(M118,'Drop Down'!$A$3:$B$10,2,0),\"1\",\"0\")","v":"0"},0,0,{"$f":"IFERROR(IF(M118=\"Select\",\"Select Support Level\", PRODUCT($Q118,VLOOKUP($J118,'Drop Down'!K:M,3,0))),\"-\")","v":"Select Support Level"},"Ok",0,0]
["Select","-","-","-","-","Select",null,"DD/MM/YYYY","DD/MM/YYYY","Select","Select","Select","Select",0,{"$f":"IF(N119>VLOOKUP(M119,'Drop Down'!$A$3:$B$10,2,0),\"1\",\"0\")","v":"0"},0,0,{"$f":"IFERROR(IF(M119=\"Select\",\"Select Support Level\", PRODUCT($Q119,VLOOKUP($J119,'Drop Down'!K:M,3,0))),\"-\")","v":"Select Support Level"},"Ok",0,0]
["Select","-","-","-","-","Select",null,"DD/MM/YYYY","DD/MM/YYYY","Select","Select","Select","Select",0,{"$f":"IF(N120>VLOOKUP(M120,'Drop Down'!$A$3:$B$10,2,0),\"1\",\"0\")","v":"0"},0,0,{"$f":"IFERROR(IF(M120=\"Select\",\"Select Support Level\", PRODUCT($Q120,VLOOKUP($J120,'Drop Down'!K:M,3,0))),\"-\")","v":"Select Support Level"},"Ok",0,0]
["Select","-","-","-","-","Select",null,"DD/MM/YYYY","DD/MM/YYYY","Select","Select","Select","Select",0,{"$f":"IF(N121>VLOOKUP(M121,'Drop Down'!$A$3:$B$10,2,0),\"1\",\"0\")","v":"0"},0,0,{"$f":"IFERROR(IF(M121=\"Select\",\"Select Support Level\", PRODUCT($Q121,VLOOKUP($J121,'Drop Down'!K:M,3,0))),\"-\")","v":"Select Support Level"},"Ok",0,0]
["Select","-","-","-","-","Select",null,"DD/MM/YYYY","DD/MM/YYYY","Select","Select","Select","Select",0,{"$f":"IF(N122>VLOOKUP(M122,'Drop Down'!$A$3:$B$10,2,0),\"1\",\"0\")","v":"0"},0,0,{"$f":"IFERROR(IF(M122=\"Select\",\"Select Support Level\", PRODUCT($Q122,VLOOKUP($J122,'Drop Down'!K:M,3,0))),\"-\")","v":"Select Support Level"},"Ok",0,0]
["Select","-","-","-","-","Select",null,"DD/MM/YYYY","DD/MM/YYYY","Select","Select","Select","Select",0,{"$f":"IF(N123>VLOOKUP(M123,'Drop Down'!$A$3:$B$10,2,0),\"1\",\"0\")","v":"0"},0,0,{"$f":"IFERROR(IF(M123=\"Select\",\"Select Support Level\", PRODUCT($Q123,VLOOKUP($J123,'Drop Down'!K:M,3,0))),\"-\")","v":"Select Support Level"},"Ok",0,0]
["Select","-","-","-","-","Select",null,"DD/MM/YYYY","DD/MM/YYYY","Select","Select","Select","Select",0,{"$f":"IF(N124>VLOOKUP(M124,'Drop Down'!$A$3:$B$10,2,0),\"1\",\"0\")","v":"0"},0,0,{"$f":"IFERROR(IF(M124=\"Select\",\"Select Support Level\", PRODUCT($Q124,VLOOKUP($J124,'Drop Down'!K:M,3,0))),\"-\")","v":"Select Support Level"},"Ok",0,0]
["Select","-","-","-","-","Select",null,"DD/MM/YYYY","DD/MM/YYYY","Select","Select","Select","Select",0,{"$f":"IF(N125>VLOOKUP(M125,'Drop Down'!$A$3:$B$10,2,0),\"1\",\"0\")","v":"0"},0,0,{"$f":"IFERROR(IF(M125=\"Select\",\"Select Support Level\", PRODUCT($Q125,VLOOKUP($J125,'Drop Down'!K:M,3,0))),\"-\")","v":"Select Support Level"},"Ok",0,0]
["Select","-","-","-","-","Select",null,"DD/MM/YYYY","DD/MM/YYYY","Select","Select","Select","Select",0,{"$f":"IF(N126>VLOOKUP(M126,'Drop Down'!$A$3:$B$10,2,0),\"1\",\"0\")","v":"0"},0,0,{"$f":"IFERROR(IF(M126=\"Select\",\"Select Support Level\", PRODUCT($Q126,VLOOKUP($J126,'Drop Down'!K:M,3,0))),\"-\")","v":"Select Support Level"},"Ok",0,0]
["Select","-","-","-","-","Select",null,"DD/MM/YYYY","DD/MM/YYYY","Select","Select","Select","Select",0,{"$f":"IF(N127>VLOOKUP(M127,'Drop Down'!$A$3:$B$10,2,0),\"1\",\"0\")","v":"0"},0,0,{"$f":"IFERROR(IF(M127=\"Select\",\"Select Support Level\", PRODUCT($Q127,VLOOKUP($J127,'Drop Down'!K:M,3,0))),\"-\")","v":"Select Support Level"},"Ok",0,0]
["Select","-","-","-","-","Select",null,"DD/MM/YYYY","DD/MM/YYYY","Select","Select","Select","Select",0,{"$f":"IF(N128>VLOOKUP(M128,'Drop Down'!$A$3:$B$10,2,0),\"1\",\"0\")","v":"0"},0,0,{"$f":"IFERROR(IF(M128=\"Select\",\"Select Support Level\", PRODUCT($Q128,VLOOKUP($J128,'Drop Down'!K:M,3,0))),\"-\")","v":"Select Support Level"},"Ok",0,0]
["Select","-","-","-","-","Select",null,"DD/MM/YYYY","DD/MM/YYYY","Select","Select","Select","Select",0,{"$f":"IF(N129>VLOOKUP(M129,'Drop Down'!$A$3:$B$10,2,0),\"1\",\"0\")","v":"0"},0,0,{"$f":"IFERROR(IF(M129=\"Select\",\"Select Support Level\", PRODUCT($Q129,VLOOKUP($J129,'Drop Down'!K:M,3,0))),\"-\")","v":"Select Support Level"},"Ok",0,0]
["Select","-","-","-","-","Select",null,"DD/MM/YYYY","DD/MM/YYYY","Select","Select","Select","Select",0,{"$f":"IF(N130>VLOOKUP(M130,'Drop Down'!$A$3:$B$10,2,0),\"1\",\"0\")","v":"0"},0,{"$f":"SUM($N130,$P130)","v":0},{"$f":"IFERROR(IF(M130=\"Select\",\"Select Support Level\", PRODUCT($Q130,VLOOKUP($J130,'Drop Down'!K:M,3,0))),\"-\")","v":"Select Support Level"},{"$f":"IF(O130=\"1\",\"Cannot Bill\",\"Ok\")","v":"Ok"},0,{"$f":"IF($T130=\"\",0,ROUND(PRODUCT(T130,0.7),2))","v":0}]
["Select","-","-","-","-","Select",null,"DD/MM/YYYY","DD/MM/YYYY","Select","Select","Select","Select",0,{"$f":"IF(N131>VLOOKUP(M131,'Drop Down'!$A$3:$B$10,2,0),\"1\",\"0\")","v":"0"},0,0,{"$f":"IFERROR(IF(M131=\"Select\",\"Select Support Level\", PRODUCT($Q131,VLOOKUP($J131,'Drop Down'!K:M,3,0))),\"-\")","v":"Select Support Level"},"Ok",0,0]
["Select","-","-","-","-","Select",null,"DD/MM/YYYY","DD/MM/YYYY","Select","Select","Select","Select",0,{"$f":"IF(N132>VLOOKUP(M132,'Drop Down'!$A$3:$B$10,2,0),\"1\",\"0\")","v":"0"},0,0,{"$f":"IFERROR(IF(M132=\"Select\",\"Select Support Level\", PRODUCT($Q132,VLOOKUP($J132,'Drop Down'!K:M,3,0))),\"-\")","v":"Select Support Level"},"Ok",0,0]
["Select","-","-","-","-","Select",null,"DD/MM/YYYY","DD/MM/YYYY","Select","Select","Select","Select",0,{"$f":"IF(N133>VLOOKUP(M133,'Drop Down'!$A$3:$B$10,2,0),\"1\",\"0\")","v":"0"},0,0,{"$f":"IFERROR(IF(M133=\"Select\",\"Select Support Level\", PRODUCT($Q133,VLOOKUP($J133,'Drop Down'!K:M,3,0))),\"-\")","v":"Select Support Level"},"Ok",0,0]
["Select","-","-","-","-","Select",null,"DD/MM/YYYY","DD/MM/YYYY","Select","Select","Select","Select",0,{"$f":"IF(N134>VLOOKUP(M134,'Drop Down'!$A$3:$B$10,2,0),\"1\",\"0\")","v":"0"},0,0,{"$f":"IFERROR(IF(M134=\"Select\",\"Select Support Level\", PRODUCT($Q134,VLOOKUP($J134,'Drop Down'!K:M,3,0))),\"-\")","v":"Select Support Level"},"Ok",0,0]
["Select","-","-","-","-","Select",null,"DD/MM/YYYY","DD/MM/YYYY","Select","Select","Select","Select",0,{"$f":"IF(N135>VLOOKUP(M135,'Drop Down'!$A$3:$B$10,2,0),\"1\",\"0\")","v":"0"},0,0,{"$f":"IFERROR(IF(M135=\"Select\",\"Select Support Level\", PRODUCT($Q135,VLOOKUP($J135,'Drop Down'!K:M,3,0))),\"-\")","v":"Select Support Level"},"Ok",0,0]
["Select","-","-","-","-","Select",null,"DD/MM/YYYY","DD/MM/YYYY","Select","Select","Select","Select",0,{"$f":"IF(N136>VLOOKUP(M136,'Drop Down'!$A$3:$B$10,2,0),\"1\",\"0\")","v":"0"},0,0,{"$f":"IFERROR(IF(M136=\"Select\",\"Select Support Level\", PRODUCT($Q136,VLOOKUP($J136,'Drop Down'!K:M,3,0))),\"-\")","v":"Select Support Level"},"Ok",0,0]
["Select","-","-","-","-","Select",null,"DD/MM/YYYY","DD/MM/YYYY","Select","Select","Select","Select",0,{"$f":"IF(N137>VLOOKUP(M137,'Drop Down'!$A$3:$B$10,2,0),\"1\",\"0\")","v":"0"},0,0,{"$f":"IFERROR(IF(M137=\"Select\",\"Select Support Level\", PRODUCT($Q137,VLOOKUP($J137,'Drop Down'!K:M,3,0))),\"-\")","v":"Select Support Level"},"Ok",0,0]
["Select","-","-","-","-","Select",null,"DD/MM/YYYY","DD/MM/YYYY","Select","Select","Select","Select",0,{"$f":"IF(N138>VLOOKUP(M138,'Drop Down'!$A$3:$B$10,2,0),\"1\",\"0\")","v":"0"},0,0,{"$f":"IFERROR(IF(M138=\"Select\",\"Select Support Level\", PRODUCT($Q138,VLOOKUP($J138,'Drop Down'!K:M,3,0))),\"-\")","v":"Select Support Level"},"Ok",0,0]
["Select","-","-","-","-","Select",null,"DD/MM/YYYY","DD/MM/YYYY","Select","Select","Select","Select",0,{"$f":"IF(N139>VLOOKUP(M139,'Drop Down'!$A$3:$B$10,2,0),\"1\",\"0\")","v":"0"},0,0,{"$f":"IFERROR(IF(M139=\"Select\",\"Select Support Level\", PRODUCT($Q139,VLOOKUP($J139,'Drop Down'!K:M,3,0))),\"-\")","v":"Select Support Level"},"Ok",0,0]
["Select","-","-","-","-","Select",null,"DD/MM/YYYY","DD/MM/YYYY","Select","Select","Select","Select",0,{"$f":"IF(N140>VLOOKUP(M140,'Drop Down'!$A$3:$B$10,2,0),\"1\",\"0\")","v":"0"},0,0,{"$f":"IFERROR(IF(M140=\"Select\",\"Select Support Level\", PRODUCT($Q140,VLOOKUP($J140,'Drop Down'!K:M,3,0))),\"-\")","v":"Select Support Level"},"Ok",0,0]
["Select","-","-","-","-","Select",null,"DD/MM/YYYY","DD/MM/YYYY","Select","Select","Select","Select",0,{"$f":"IF(N141>VLOOKUP(M141,'Drop Down'!$A$3:$B$10,2,0),\"1\",\"0\")","v":"0"},0,0,{"$f":"IFERROR(IF(M141=\"Select\",\"Select Support Level\", PRODUCT($Q141,VLOOKUP($J141,'Drop Down'!K:M,3,0))),\"-\")","v":"Select Support Level"},"Ok",0,0]
["Select","-","-","-","-","Select",null,"DD/MM/YYYY","DD/MM/YYYY","Select","Select","Select","Select",0,{"$f":"IF(N142>VLOOKUP(M142,'Drop Down'!$A$3:$B$10,2,0),\"1\",\"0\")","v":"0"},0,0,{"$f":"IFERROR(IF(M142=\"Select\",\"Select Support Level\", PRODUCT($Q142,VLOOKUP($J142,'Drop Down'!K:M,3,0))),\"-\")","v":"Select Support Level"},"Ok",0,0]
["Select","-","-","-","-","Select",null,"DD/MM/YYYY","DD/MM/YYYY","Select","Select","Select","Select",0,{"$f":"IF(N143>VLOOKUP(M143,'Drop Down'!$A$3:$B$10,2,0),\"1\",\"0\")","v":"0"},0,0,{"$f":"IFERROR(IF(M143=\"Select\",\"Select Support Level\", PRODUCT($Q143,VLOOKUP($J143,'Drop Down'!K:M,3,0))),\"-\")","v":"Select Support Level"},"Ok",0,0]
["Select","-","-","-","-","Select",null,"DD/MM/YYYY","DD/MM/YYYY","Select","Select","Select","Select",0,{"$f":"IF(N144>VLOOKUP(M144,'Drop Down'!$A$3:$B$10,2,0),\"1\",\"0\")","v":"0"},0,0,{"$f":"IFERROR(IF(M144=\"Select\",\"Select Support Level\", PRODUCT($Q144,VLOOKUP($J144,'Drop Down'!K:M,3,0))),\"-\")","v":"Select Support Level"},"Ok",0,0]
["Select","-","-","-","-","Select",null,"DD/MM/YYYY","DD/MM/YYYY","Select","Select","Select","Select",0,{"$f":"IF(N145>VLOOKUP(M145,'Drop Down'!$A$3:$B$10,2,0),\"1\",\"0\")","v":"0"},0,0,{"$f":"IFERROR(IF(M145=\"Select\",\"Select Support Level\", PRODUCT($Q145,VLOOKUP($J145,'Drop Down'!K:M,3,0))),\"-\")","v":"Select Support Level"},"Ok",0,0]
["Select","-","-","-","-","Select",null,"DD/MM/YYYY","DD/MM/YYYY","Select","Select","Select","Select",0,{"$f":"IF(N146>VLOOKUP(M146,'Drop Down'!$A$3:$B$10,2,0),\"1\",\"0\")","v":"0"},0,0,{"$f":"IFERROR(IF(M146=\"Select\",\"Select Support Level\", PRODUCT($Q146,VLOOKUP($J146,'Drop Down'!K:M,3,0))),\"-\")","v":"Select Support Level"},"Ok",0,0]
["Select","-","-","-","-","Select",null,"DD/MM/YYYY","DD/MM/YYYY","Select","Select","Select","Select",0,{"$f":"IF(N147>VLOOKUP(M147,'Drop Down'!$A$3:$B$10,2,0),\"1\",\"0\")","v":"0"},0,0,{"$f":"IFERROR(IF(M147=\"Select\",\"Select Support Level\", PRODUCT($Q147,VLOOKUP($J147,'Drop Down'!K:M,3,0))),\"-\")","v":"Select Support Level"},"Ok",0,0]
["Select","-","-","-","-","Select",null,"DD/MM/YYYY","DD/MM/YYYY","Select","Select","Select","Select",0,{"$f":"IF(N148>VLOOKUP(M148,'Drop Down'!$A$3:$B$10,2,0),\"1\",\"0\")","v":"0"},0,0,{"$f":"IFERROR(IF(M148=\"Select\",\"Select Support Level\", PRODUCT($Q148,VLOOKUP($J148,'Drop Down'!K:M,3,0))),\"-\")","v":"Select Support Level"},"Ok",0,0]
["Select","-","-","-","-","Select",null,"DD/MM/YYYY","DD/MM/YYYY","Select","Select","Select","Select",0,{"$f":"IF(N149>VLOOKUP(M149,'Drop Down'!$A$3:$B$10,2,0),\"1\",\"0\")","v":"0"},0,0,{"$f":"IFERROR(IF(M149=\"Select\",\"Select Support Level\", PRODUCT($Q149,VLOOKUP($J149,'Drop Down'!K:M,3,0))),\"-\")","v":"Select Support Level"},"Ok",0,0]
["Select","-","-","-","-","Select",null,"DD/MM/YYYY","DD/MM/YYYY","Select","Select","Select","Select",0,{"$f":"IF(N150>VLOOKUP(M150,'Drop Down'!$A$3:$B$10,2,0),\"1\",\"0\")","v":"0"},0,0,{"$f":"IFERROR(IF(M150=\"Select\",\"Select Support Level\", PRODUCT($Q150,VLOOKUP($J150,'Drop Down'!K:M,3,0))),\"-\")","v":"Select Support Level"},"Ok",0,0]
["Select","-","-","-","-","Select",null,"DD/MM/YYYY","DD/MM/YYYY","Select","Select","Select","Select",0,{"$f":"IF(N151>VLOOKUP(M151,'Drop Down'!$A$3:$B$10,2,0),\"1\",\"0\")","v":"0"},0,0,{"$f":"IFERROR(IF(M151=\"Select\",\"Select Support Level\", PRODUCT($Q151,VLOOKUP($J151,'Drop Down'!K:M,3,0))),\"-\")","v":"Select Support Level"},"Ok",0,0]
["Select","-","-","-","-","Select",null,"DD/MM/YYYY","DD/MM/YYYY","Select","Select","Select","Select",0,{"$f":"IF(N152>VLOOKUP(M152,'Drop Down'!$A$3:$B$10,2,0),\"1\",\"0\")","v":"0"},0,0,{"$f":"IFERROR(IF(M152=\"Select\",\"Select Support Level\", PRODUCT($Q152,VLOOKUP($J152,'Drop Down'!K:M,3,0))),\"-\")","v":"Select Support Level"},"Ok",0,0]
["Select","-","-","-","-","Select",null,"DD/MM/YYYY","DD/MM/YYYY","Select","Select","Select","Select",0,{"$f":"IF(N153>VLOOKUP(M153,'Drop Down'!$A$3:$B$10,2,0),\"1\",\"0\")","v":"0"},0,0,{"$f":"IFERROR(IF(M153=\"Select\",\"Select Support Level\", PRODUCT($Q153,VLOOKUP($J153,'Drop Down'!K:M,3,0))),\"-\")","v":"Select Support Level"},"Ok",0,0]
["Select","-","-","-","-","Select",null,"DD/MM/YYYY","DD/MM/YYYY","Select","Select","Select","Select",0,{"$f":"IF(N154>VLOOKUP(M154,'Drop Down'!$A$3:$B$10,2,0),\"1\",\"0\")","v":"0"},0,0,{"$f":"IFERROR(IF(M154=\"Select\",\"Select Support Level\", PRODUCT($Q154,VLOOKUP($J154,'Drop Down'!K:M,3,0))),\"-\")","v":"Select Support Level"},"Ok",0,0]
["Select","-","-","-","-","Select",null,"DD/MM/YYYY","DD/MM/YYYY","Select","Select","Select","Select",0,{"$f":"IF(N155>VLOOKUP(M155,'Drop Down'!$A$3:$B$10,2,0),\"1\",\"0\")","v":"0"},0,0,{"$f":"IFERROR(IF(M155=\"Select\",\"Select Support Level\", PRODUCT($Q155,VLOOKUP($J155,'Drop Down'!K:M,3,0))),\"-\")","v":"Select Support Level"},"Ok",0,0]
["Select","-","-","-","-","Select",null,"DD/MM/YYYY","DD/MM/YYYY","Select","Select","Select","Select",0,{"$f":"IF(N156>VLOOKUP(M156,'Drop Down'!$A$3:$B$10,2,0),\"1\",\"0\")","v":"0"},0,0,{"$f":"IFERROR(IF(M156=\"Select\",\"Select Support Level\", PRODUCT($Q156,VLOOKUP($J156,'Drop Down'!K:M,3,0))),\"-\")","v":"Select Support Level"},"Ok",0,0]
["Select","-","-","-","-","Select",null,"DD/MM/YYYY","DD/MM/YYYY","Select","Select","Select","Select",0,{"$f":"IF(N157>VLOOKUP(M157,'Drop Down'!$A$3:$B$10,2,0),\"1\",\"0\")","v":"0"},0,0,{"$f":"IFERROR(IF(M157=\"Select\",\"Select Support Level\", PRODUCT($Q157,VLOOKUP($J157,'Drop Down'!K:M,3,0))),\"-\")","v":"Select Support Level"},"Ok",0,0]
["Select","-","-","-","-","Select",null,"DD/MM/YYYY","DD/MM/YYYY","Select","Select","Select","Select",0,{"$f":"IF(N158>VLOOKUP(M158,'Drop Down'!$A$3:$B$10,2,0),\"1\",\"0\")","v":"0"},0,0,{"$f":"IFERROR(IF(M158=\"Select\",\"Select Support Level\", PRODUCT($Q158,VLOOKUP($J158,'Drop Down'!K:M,3,0))),\"-\")","v":"Select Support Level"},"Ok",0,0]
["Select","-","-","-","-","Select",null,"DD/MM/YYYY","DD/MM/YYYY","Select","Select","Select","Select",0,{"$f":"IF(N159>VLOOKUP(M159,'Drop Down'!$A$3:$B$10,2,0),\"1\",\"0\")","v":"0"},0,0,{"$f":"IFERROR(IF(M159=\"Select\",\"Select Support Level\", PRODUCT($Q159,VLOOKUP($J159,'Drop Down'!K:M,3,0))),\"-\")","v":"Select Support Level"},"Ok",0,0]
["Select","-","-","-","-","Select",null,"DD/MM/YYYY","DD/MM/YYYY","Select","Select","Select","Select",0,{"$f":"IF(N160>VLOOKUP(M160,'Drop Down'!$A$3:$B$10,2,0),\"1\",\"0\")","v":"0"},0,0,{"$f":"IFERROR(IF(M160=\"Select\",\"Select Support Level\", PRODUCT($Q160,VLOOKUP($J160,'Drop Down'!K:M,3,0))),\"-\")","v":"Select Support Level"},"Ok",0,0]
["Select","-","-","-","-","Select",null,"DD/MM/YYYY","DD/MM/YYYY","Select","Select","Select","Select",0,{"$f":"IF(N161>VLOOKUP(M161,'Drop Down'!$A$3:$B$10,2,0),\"1\",\"0\")","v":"0"},0,0,{"$f":"IFERROR(IF(M161=\"Select\",\"Select Support Level\", PRODUCT($Q161,VLOOKUP($J161,'Drop Down'!K:M,3,0))),\"-\")","v":"Select Support Level"},"Ok",0,0]
["Select","-","-","-","-","Select",null,"DD/MM/YYYY","DD/MM/YYYY","Select","Select","Select","Select",0,{"$f":"IF(N162>VLOOKUP(M162,'Drop Down'!$A$3:$B$10,2,0),\"1\",\"0\")","v":"0"},0,0,{"$f":"IFERROR(IF(M162=\"Select\",\"Select Support Level\", PRODUCT($Q162,VLOOKUP($J162,'Drop Down'!K:M,3,0))),\"-\")","v":"Select Support Level"},"Ok",0,0]
["Select","-","-","-","-","Select",null,"DD/MM/YYYY","DD/MM/YYYY","Select","Select","Select","Select",0,{"$f":"IF(N163>VLOOKUP(M163,'Drop Down'!$A$3:$B$10,2,0),\"1\",\"0\")","v":"0"},0,0,{"$f":"IFERROR(IF(M163=\"Select\",\"Select Support Level\", PRODUCT($Q163,VLOOKUP($J163,'Drop Down'!K:M,3,0))),\"-\")","v":"Select Support Level"},"Ok",0,0]
["Select","-","-","-","-","Select",null,"DD/MM/YYYY","DD/MM/YYYY","Select","Select","Select","Select",0,{"$f":"IF(N164>VLOOKUP(M164,'Drop Down'!$A$3:$B$10,2,0),\"1\",\"0\")","v":"0"},0,0,{"$f":"IFERROR(IF(M164=\"Select\",\"Select Support Level\", PRODUCT($Q164,VLOOKUP($J164,'Drop Down'!K:M,3,0))),\"-\")","v":"Select Support Level"},"Ok",0,0]
["Select","-","-","-","-","Select",null,"DD/MM/YYYY","DD/MM/YYYY","Select","Select","Select","Select",0,{"$f":"IF(N165>VLOOKUP(M165,'Drop Down'!$A$3:$B$10,2,0),\"1\",\"0\")","v":"0"},0,0,{"$f":"IFERROR(IF(M165=\"Select\",\"Select Support Level\", PRODUCT($Q165,VLOOKUP($J165,'Drop Down'!K:M,3,0))),\"-\")","v":"Select Support Level"},"Ok",0,0]
["Select","-","-","-","-","Select",null,"DD/MM/YYYY","DD/MM/YYYY","Select","Select","Select","Select",0,{"$f":"IF(N166>VLOOKUP(M166,'Drop Down'!$A$3:$B$10,2,0),\"1\",\"0\")","v":"0"},0,0,{"$f":"IFERROR(IF(M166=\"Select\",\"Select Support Level\", PRODUCT($Q166,VLOOKUP($J166,'Drop Down'!K:M,3,0))),\"-\")","v":"Select Support Level"},"Ok",0,0]
["Select","-","-","-","-","Select",null,"DD/MM/YYYY","DD/MM/YYYY","Select","Select","Select","Select",0,{"$f":"IF(N167>VLOOKUP(M167,'Drop Down'!$A$3:$B$10,2,0),\"1\",\"0\")","v":"0"},0,0,{"$f":"IFERROR(IF(M167=\"Select\",\"Select Support Level\", PRODUCT($Q167,VLOOKUP($J167,'Drop Down'!K:M,3,0))),\"-\")","v":"Select Support Level"},"Ok",0,0]
["Select","-","-","-","-","Select",null,"DD/MM/YYYY","DD/MM/YYYY","Select","Select","Select","Select",0,{"$f":"IF(N168>VLOOKUP(M168,'Drop Down'!$A$3:$B$10,2,0),\"1\",\"0\")","v":"0"},0,0,{"$f":"IFERROR(IF(M168=\"Select\",\"Select Support Level\", PRODUCT($Q168,VLOOKUP($J168,'Drop Down'!K:M,3,0))),\"-\")","v":"Select Support Level"},"Ok",0,0]
["Select","-","-","-","-","Select",null,"DD/MM/YYYY","DD/MM/YYYY","Select","Select","Select","Select",0,{"$f":"IF(N169>VLOOKUP(M169,'Drop Down'!$A$3:$B$10,2,0),\"1\",\"0\")","v":"0"},0,0,{"$f":"IFERROR(IF(M169=\"Select\",\"Select Support Level\", PRODUCT($Q169,VLOOKUP($J169,'Drop Down'!K:M,3,0))),\"-\")","v":"Select Support Level"},"Ok",0,0]
["Select","-","-","-","-","Select",null,"DD/MM/YYYY","DD/MM/YYYY","Select","Select","Select","Select",0,{"$f":"IF(N170>VLOOKUP(M170,'Drop Down'!$A$3:$B$10,2,0),\"1\",\"0\")","v":"0"},0,0,{"$f":"IFERROR(IF(M170=\"Select\",\"Select Support Level\", PRODUCT($Q170,VLOOKUP($J170,'Drop Down'!K:M,3,0))),\"-\")","v":"Select Support Level"},"Ok",0,0]
["Select","-","-","-","-","Select",null,"DD/MM/YYYY","DD/MM/YYYY","Select","Select","Select","Select",0,{"$f":"IF(N171>VLOOKUP(M171,'Drop Down'!$A$3:$B$10,2,0),\"1\",\"0\")","v":"0"},0,0,{"$f":"IFERROR(IF(M171=\"Select\",\"Select Support Level\", PRODUCT($Q171,VLOOKUP($J171,'Drop Down'!K:M,3,0))),\"-\")","v":"Select Support Level"},"Ok",0,0]
["Select","-","-","-","-","Select",null,"DD/MM/YYYY","DD/MM/YYYY","Select","Select","Select","Select",0,{"$f":"IF(N172>VLOOKUP(M172,'Drop Down'!$A$3:$B$10,2,0),\"1\",\"0\")","v":"0"},0,0,{"$f":"IFERROR(IF(M172=\"Select\",\"Select Support Level\", PRODUCT($Q172,VLOOKUP($J172,'Drop Down'!K:M,3,0))),\"-\")","v":"Select Support Level"},"Ok",0,0]
["Select","-","-","-","-","Select",null,"DD/MM/YYYY","DD/MM/YYYY","Select","Select","Select","Select",0,{"$f":"IF(N173>VLOOKUP(M173,'Drop Down'!$A$3:$B$10,2,0),\"1\",\"0\")","v":"0"},0,0,{"$f":"IFERROR(IF(M173=\"Select\",\"Select Support Level\", PRODUCT($Q173,VLOOKUP($J173,'Drop Down'!K:M,3,0))),\"-\")","v":"Select Support Level"},"Ok",0,0]
["Select","-","-","-","-","Select",null,"DD/MM/YYYY","DD/MM/YYYY","Select","Select","Select","Select",0,{"$f":"IF(N174>VLOOKUP(M174,'Drop Down'!$A$3:$B$10,2,0),\"1\",\"0\")","v":"0"},0,0,{"$f":"IFERROR(IF(M174=\"Select\",\"Select Support Level\", PRODUCT($Q174,VLOOKUP($J174,'Drop Down'!K:M,3,0))),\"-\")","v":"Select Support Level"},"Ok",0,0]
["Select","-","-","-","-","Select",null,"DD/MM/YYYY","DD/MM/YYYY","Select","Select","Select","Select",0,{"$f":"IF(N175>VLOOKUP(M175,'Drop Down'!$A$3:$B$10,2,0),\"1\",\"0\")","v":"0"},0,0,{"$f":"IFERROR(IF(M175=\"Select\",\"Select Support Level\", PRODUCT($Q175,VLOOKUP($J175,'Drop Down'!K:M,3,0))),\"-\")","v":"Select Support Level"},"Ok",0,0]
["Select","-","-","-","-","Select",null,"DD/MM/YYYY","DD/MM/YYYY","Select","Select","Select","Select",0,{"$f":"IF(N176>VLOOKUP(M176,'Drop Down'!$A$3:$B$10,2,0),\"1\",\"0\")","v":"0"},0,0,{"$f":"IFERROR(IF(M176=\"Select\",\"Select Support Level\", PRODUCT($Q176,VLOOKUP($J176,'Drop Down'!K:M,3,0))),\"-\")","v":"Select Support Level"},"Ok",0,0]
["Select","-","-","-","-","Select",null,"DD/MM/YYYY","DD/MM/YYYY","Select","Select","Select","Select",0,{"$f":"IF(N177>VLOOKUP(M177,'Drop Down'!$A$3:$B$10,2,0),\"1\",\"0\")","v":"0"},0,0,{"$f":"IFERROR(IF(M177=\"Select\",\"Select Support Level\", PRODUCT($Q177,VLOOKUP($J177,'Drop Down'!K:M,3,0))),\"-\")","v":"Select Support Level"},"Ok",0,0]
["Select","-","-","-","-","Select",null,"DD/MM/YYYY","DD/MM/YYYY","Select","Select","Select","Select",0,{"$f":"IF(N178>VLOOKUP(M178,'Drop Down'!$A$3:$B$10,2,0),\"1\",\"0\")","v":"0"},0,0,{"$f":"IFERROR(IF(M178=\"Select\",\"Select Support Level\", PRODUCT($Q178,VLOOKUP($J178,'Drop Down'!K:M,3,0))),\"-\")","v":"Select Support Level"},"Ok",0,0]
["Select","-","-","-","-","Select",null,"DD/MM/YYYY","DD/MM/YYYY","Select","Select","Select","Select",0,{"$f":"IF(N179>VLOOKUP(M179,'Drop Down'!$A$3:$B$10,2,0),\"1\",\"0\")","v":"0"},0,0,{"$f":"IFERROR(IF(M179=\"Select\",\"Select Support Level\", PRODUCT($Q179,VLOOKUP($J179,'Drop Down'!K:M,3,0))),\"-\")","v":"Select Support Level"},"Ok",0,0]
["Select","-","-","-","-","Select",null,"DD/MM/YYYY","DD/MM/YYYY","Select","Select","Select","Select",0,{"$f":"IF(N180>VLOOKUP(M180,'Drop Down'!$A$3:$B$10,2,0),\"1\",\"0\")","v":"0"},0,0,{"$f":"IFERROR(IF(M180=\"Select\",\"Select Support Level\", PRODUCT($Q180,VLOOKUP($J180,'Drop Down'!K:M,3,0))),\"-\")","v":"Select Support Level"},"Ok",0,0]
["Select","-","-","-","-","Select",null,"DD/MM/YYYY","DD/MM/YYYY","Select","Select","Select","Select",0,{"$f":"IF(N181>VLOOKUP(M181,'Drop Down'!$A$3:$B$10,2,0),\"1\",\"0\")","v":"0"},0,0,{"$f":"IFERROR(IF(M181=\"Select\",\"Select Support Level\", PRODUCT($Q181,VLOOKUP($J181,'Drop Down'!K:M,3,0))),\"-\")","v":"Select Support Level"},"Ok",0,0]
["Select","-","-","-","-","Select",null,"DD/MM/YYYY","DD/MM/YYYY","Select","Select","Select","Select",0,{"$f":"IF(N182>VLOOKUP(M182,'Drop Down'!$A$3:$B$10,2,0),\"1\",\"0\")","v":"0"},0,0,{"$f":"IFERROR(IF(M182=\"Select\",\"Select Support Level\", PRODUCT($Q182,VLOOKUP($J182,'Drop Down'!K:M,3,0))),\"-\")","v":"Select Support Level"},"Ok",0,0]
["Select","-","-","-","-","Select",null,"DD/MM/YYYY","DD/MM/YYYY","Select","Select","Select","Select",0,{"$f":"IF(N183>VLOOKUP(M183,'Drop Down'!$A$3:$B$10,2,0),\"1\",\"0\")","v":"0"},0,0,{"$f":"IFERROR(IF(M183=\"Select\",\"Select Support Level\", PRODUCT($Q183,VLOOKUP($J183,'Drop Down'!K:M,3,0))),\"-\")","v":"Select Support Level"},"Ok",0,0]
["Select","-","-","-","-","Select",null,"DD/MM/YYYY","DD/MM/YYYY","Select","Select","Select","Select",0,{"$f":"IF(N184>VLOOKUP(M184,'Drop Down'!$A$3:$B$10,2,0),\"1\",\"0\")","v":"0"},0,0,{"$f":"IFERROR(IF(M184=\"Select\",\"Select Support Level\", PRODUCT($Q184,VLOOKUP($J184,'Drop Down'!K:M,3,0))),\"-\")","v":"Select Support Level"},"Ok",0,0]
["Select","-","-","-","-","Select",null,"DD/MM/YYYY","DD/MM/YYYY","Select","Select","Select","Select",0,{"$f":"IF(N185>VLOOKUP(M185,'Drop Down'!$A$3:$B$10,2,0),\"1\",\"0\")","v":"0"},0,0,{"$f":"IFERROR(IF(M185=\"Select\",\"Select Support Level\", PRODUCT($Q185,VLOOKUP($J185,'Drop Down'!K:M,3,0))),\"-\")","v":"Select Support Level"},"Ok",0,0]
["Select","-","-","-","-","Select",null,"DD/MM/YYYY","DD/MM/YYYY","Select","Select","Select","Select",0,{"$f":"IF(N186>VLOOKUP(M186,'Drop Down'!$A$3:$B$10,2,0),\"1\",\"0\")","v":"0"},0,0,{"$f":"IFERROR(IF(M186=\"Select\",\"Select Support Level\", PRODUCT($Q186,VLOOKUP($J186,'Drop Down'!K:M,3,0))),\"-\")","v":"Select Support Level"},"Ok",0,0]
["Select","-","-","-","-","Select",null,"DD/MM/YYYY","DD/MM/YYYY","Select","Select","Select","Select",0,{"$f":"IF(N187>VLOOKUP(M187,'Drop Down'!$A$3:$B$10,2,0),\"1\",\"0\")","v":"0"},0,0,{"$f":"IFERROR(IF(M187=\"Select\",\"Select Support Level\", PRODUCT($Q187,VLOOKUP($J187,'Drop Down'!K:M,3,0))),\"-\")","v":"Select Support Level"},"Ok",0,0]
["Select","-","-","-","-","Select",null,"DD/MM/YYYY","DD/MM/YYYY","Select","Select","Select","Select",0,{"$f":"IF(N188>VLOOKUP(M188,'Drop Down'!$A$3:$B$10,2,0),\"1\",\"0\")","v":"0"},0,0,{"$f":"IFERROR(IF(M188=\"Select\",\"Select Support Level\", PRODUCT($Q188,VLOOKUP($J188,'Drop Down'!K:M,3,0))),\"-\")","v":"Select Support Level"},"Ok",0,0]
["Select","-","-","-","-","Select",null,"DD/MM/YYYY","DD/MM/YYYY","Select","Select","Select","Select",0,{"$f":"IF(N189>VLOOKUP(M189,'Drop Down'!$A$3:$B$10,2,0),\"1\",\"0\")","v":"0"},0,0,{"$f":"IFERROR(IF(M189=\"Select\",\"Select Support Level\", PRODUCT($Q189,VLOOKUP($J189,'Drop Down'!K:M,3,0))),\"-\")","v":"Select Support Level"},"Ok",0,0]
["Select","-","-","-","-","Select",null,"DD/MM/YYYY","DD/MM/YYYY","Select","Select","Select","Select",0,{"$f":"IF(N190>VLOOKUP(M190,'Drop Down'!$A$3:$B$10,2,0),\"1\",\"0\")","v":"0"},0,0,{"$f":"IFERROR(IF(M190=\"Select\",\"Select Support Level\", PRODUCT($Q190,VLOOKUP($J190,'Drop Down'!K:M,3,0))),\"-\")","v":"Select Support Level"},"Ok",0,0]
["Select","-","-","-","-","Select",null,"DD/MM/YYYY","DD/MM/YYYY","Select","Select","Select","Select",0,{"$f":"IF(N191>VLOOKUP(M191,'Drop Down'!$A$3:$B$10,2,0),\"1\",\"0\")","v":"0"},0,0,{"$f":"IFERROR(IF(M191=\"Select\",\"Select Support Level\", PRODUCT($Q191,VLOOKUP($J191,'Drop Down'!K:M,3,0))),\"-\")","v":"Select Support Level"},"Ok",0,0]
["Select","-","-","-","-","Select",null,"DD/MM/YYYY","DD/MM/YYYY","Select","Select","Select","Select",0,{"$f":"IF(N192>VLOOKUP(M192,'Drop Down'!$A$3:$B$10,2,0),\"1\",\"0\")","v":"0"},0,0,{"$f":"IFERROR(IF(M192=\"Select\",\"Select Support Level\", PRODUCT($Q192,VLOOKUP($J192,'Drop Down'!K:M,3,0))),\"-\")","v":"Select Support Level"},"Ok",0,0]
["Select","-","-","-","-","Select",null,"DD/MM/YYYY","DD/MM/YYYY","Select","Select","Select","Select",0,{"$f":"IF(N193>VLOOKUP(M193,'Drop Down'!$A$3:$B$10,2,0),\"1\",\"0\")","v":"0"},0,0,{"$f":"IFERROR(IF(M193=\"Select\",\"Select Support Level\", PRODUCT($Q193,VLOOKUP($J193,'Drop Down'!K:M,3,0))),\"-\")","v":"Select Support Level"},"Ok",0,0]
["Select","-","-","-","-","Select",null,"DD/MM/YYYY","DD/MM/YYYY","Select","Select","Select","Select",0,{"$f":"IF(N194>VLOOKUP(M194,'Drop Down'!$A$3:$B$10,2,0),\"1\",\"0\")","v":"0"},0,{"$f":"SUM($N194,$P194)","v":0},{"$f":"IFERROR(IF(M194=\"Select\",\"Select Support Level\", PRODUCT($Q194,VLOOKUP($J194,'Drop Down'!K:M,3,0))),\"-\")","v":"Select Support Level"},{"$f":"IF(O194=\"1\",\"Cannot Bill\",\"Ok\")","v":"Ok"},0,{"$f":"IF($T194=\"\",0,ROUND(PRODUCT(T194,0.7),2))","v":0}]
["Select","-","-","-","-","Select",null,"DD/MM/YYYY","DD/MM/YYYY","Select","Select","Select","Select",0,{"$f":"IF(N195>VLOOKUP(M195,'Drop Down'!$A$3:$B$10,2,0),\"1\",\"0\")","v":"0"},0,0,{"$f":"IFERROR(IF(M195=\"Select\",\"Select Support Level\", PRODUCT($Q195,VLOOKUP($J195,'Drop Down'!K:M,3,0))),\"-\")","v":"Select Support Level"},"Ok",0,0]
["Select","-","-","-","-","Select",null,"DD/MM/YYYY","DD/MM/YYYY","Select","Select","Select","Select",0,{"$f":"IF(N196>VLOOKUP(M196,'Drop Down'!$A$3:$B$10,2,0),\"1\",\"0\")","v":"0"},0,0,{"$f":"IFERROR(IF(M196=\"Select\",\"Select Support Level\", PRODUCT($Q196,VLOOKUP($J196,'Drop Down'!K:M,3,0))),\"-\")","v":"Select Support Level"},"Ok",0,0]
["Select","-","-","-","-","Select",null,"DD/MM/YYYY","DD/MM/YYYY","Select","Select","Select","Select",0,{"$f":"IF(N197>VLOOKUP(M197,'Drop Down'!$A$3:$B$10,2,0),\"1\",\"0\")","v":"0"},0,0,{"$f":"IFERROR(IF(M197=\"Select\",\"Select Support Level\", PRODUCT($Q197,VLOOKUP($J197,'Drop Down'!K:M,3,0))),\"-\")","v":"Select Support Level"},"Ok",0,0]
["Select","-","-","-","-","Select",null,"DD/MM/YYYY","DD/MM/YYYY","Select","Select","Select","Select",0,{"$f":"IF(N198>VLOOKUP(M198,'Drop Down'!$A$3:$B$10,2,0),\"1\",\"0\")","v":"0"},0,0,{"$f":"IFERROR(IF(M198=\"Select\",\"Select Support Level\", PRODUCT($Q198,VLOOKUP($J198,'Drop Down'!K:M,3,0))),\"-\")","v":"Select Support Level"},"Ok",0,0]
["Select","-","-","-","-","Select",null,"DD/MM/YYYY","DD/MM/YYYY","Select","Select","Select","Select",0,{"$f":"IF(N199>VLOOKUP(M199,'Drop Down'!$A$3:$B$10,2,0),\"1\",\"0\")","v":"0"},0,0,{"$f":"IFERROR(IF(M199=\"Select\",\"Select Support Level\", PRODUCT($Q199,VLOOKUP($J199,'Drop Down'!K:M,3,0))),\"-\")","v":"Select Support Level"},"Ok",0,0]
["Select","-","-","-","-","Select",null,"DD/MM/YYYY","DD/MM/YYYY","Select","Select","Select","Select",0,{"$f":"IF(N200>VLOOKUP(M200,'Drop Down'!$A$3:$B$10,2,0),\"1\",\"0\")","v":"0"},0,0,{"$f":"IFERROR(IF(M200=\"Select\",\"Select Support Level\", PRODUCT($Q200,VLOOKUP($J200,'Drop Down'!K:M,3,0))),\"-\")","v":"Select Support Level"},"Ok",0,0]
["Select","-","-","-","-","Select",null,"DD/MM/YYYY","DD/MM/YYYY","Select","Select","Select","Select",0,{"$f":"IF(N201>VLOOKUP(M201,'Drop Down'!$A$3:$B$10,2,0),\"1\",\"0\")","v":"0"},0,0,{"$f":"IFERROR(IF(M201=\"Select\",\"Select Support Level\", PRODUCT($Q201,VLOOKUP($J201,'Drop Down'!K:M,3,0))),\"-\")","v":"Select Support Level"},"Ok",0,0]
["Select","-","-","-","-","Select",null,"DD/MM/YYYY","DD/MM/YYYY","Select","Select","Select","Select",0,{"$f":"IF(N202>VLOOKUP(M202,'Drop Down'!$A$3:$B$10,2,0),\"1\",\"0\")","v":"0"},0,0,{"$f":"IFERROR(IF(M202=\"Select\",\"Select Support Level\", PRODUCT($Q202,VLOOKUP($J202,'Drop Down'!K:M,3,0))),\"-\")","v":"Select Support Level"},"Ok",0,0]
["Select","-","-","-","-","Select",null,"DD/MM/YYYY","DD/MM/YYYY","Select","Select","Select","Select",0,{"$f":"IF(N203>VLOOKUP(M203,'Drop Down'!$A$3:$B$10,2,0),\"1\",\"0\")","v":"0"},0,0,{"$f":"IFERROR(IF(M203=\"Select\",\"Select Support Level\", PRODUCT($Q203,VLOOKUP($J203,'Drop Down'!K:M,3,0))),\"-\")","v":"Select Support Level"},"Ok",0,0]
["Select","-","-","-","-","Select",null,"DD/MM/YYYY","DD/MM/YYYY","Select","Select","Select","Select",0,{"$f":"IF(N204>VLOOKUP(M204,'Drop Down'!$A$3:$B$10,2,0),\"1\",\"0\")","v":"0"},0,0,{"$f":"IFERROR(IF(M204=\"Select\",\"Select Support Level\", PRODUCT($Q204,VLOOKUP($J204,'Drop Down'!K:M,3,0))),\"-\")","v":"Select Support Level"},"Ok",0,0]
["Select","-","-","-","-","Select",null,"DD/MM/YYYY","DD/MM/YYYY","Select","Select","Select","Select",0,{"$f":"IF(N205>VLOOKUP(M205,'Drop Down'!$A$3:$B$10,2,0),\"1\",\"0\")","v":"0"},0,0,{"$f":"IFERROR(IF(M205=\"Select\",\"Select Support Level\", PRODUCT($Q205,VLOOKUP($J205,'Drop Down'!K:M,3,0))),\"-\")","v":"Select Support Level"},"Ok",0,0]
["Select","-","-","-","-","Select",null,"DD/MM/YYYY","DD/MM/YYYY","Select","Select","Select","Select",0,{"$f":"IF(N206>VLOOKUP(M206,'Drop Down'!$A$3:$B$10,2,0),\"1\",\"0\")","v":"0"},0,0,{"$f":"IFERROR(IF(M206=\"Select\",\"Select Support Level\", PRODUCT($Q206,VLOOKUP($J206,'Drop Down'!K:M,3,0))),\"-\")","v":"Select Support Level"},"Ok",0,0]
["Select","-","-","-","-","Select",null,"DD/MM/YYYY","DD/MM/YYYY","Select","Select","Select","Select",0,{"$f":"IF(N207>VLOOKUP(M207,'Drop Down'!$A$3:$B$10,2,0),\"1\",\"0\")","v":"0"},0,0,{"$f":"IFERROR(IF(M207=\"Select\",\"Select Support Level\", PRODUCT($Q207,VLOOKUP($J207,'Drop Down'!K:M,3,0))),\"-\")","v":"Select Support Level"},"Ok",0,0]
["Select","-","-","-","-","Select",null,"DD/MM/YYYY","DD/MM/YYYY","Select","Select","Select","Select",0,{"$f":"IF(N208>VLOOKUP(M208,'Drop Down'!$A$3:$B$10,2,0),\"1\",\"0\")","v":"0"},0,0,{"$f":"IFERROR(IF(M208=\"Select\",\"Select Support Level\", PRODUCT($Q208,VLOOKUP($J208,'Drop Down'!K:M,3,0))),\"-\")","v":"Select Support Level"},"Ok",0,0]
["Select","-","-","-","-","Select",null,"DD/MM/YYYY","DD/MM/YYYY","Select","Select","Select","Select",0,{"$f":"IF(N209>VLOOKUP(M209,'Drop Down'!$A$3:$B$10,2,0),\"1\",\"0\")","v":"0"},0,0,{"$f":"IFERROR(IF(M209=\"Select\",\"Select Support Level\", PRODUCT($Q209,VLOOKUP($J209,'Drop Down'!K:M,3,0))),\"-\")","v":"Select Support Level"},"Ok",0,0]
["Select","-","-","-","-","Select",null,"DD/MM/YYYY","DD/MM/YYYY","Select","Select","Select","Select",0,{"$f":"IF(N210>VLOOKUP(M210,'Drop Down'!$A$3:$B$10,2,0),\"1\",\"0\")","v":"0"},0,0,{"$f":"IFERROR(IF(M210=\"Select\",\"Select Support Level\", PRODUCT($Q210,VLOOKUP($J210,'Drop Down'!K:M,3,0))),\"-\")","v":"Select Support Level"},"Ok",0,0]
["Select","-","-","-","-","Select",null,"DD/MM/YYYY","DD/MM/YYYY","Select","Select","Select","Select",0,{"$f":"IF(N211>VLOOKUP(M211,'Drop Down'!$A$3:$B$10,2,0),\"1\",\"0\")","v":"0"},0,0,{"$f":"IFERROR(IF(M211=\"Select\",\"Select Support Level\", PRODUCT($Q211,VLOOKUP($J211,'Drop Down'!K:M,3,0))),\"-\")","v":"Select Support Level"},"Ok",0,0]
["Select","-","-","-","-","Select",null,"DD/MM/YYYY","DD/MM/YYYY","Select","Select","Select","Select",0,{"$f":"IF(N212>VLOOKUP(M212,'Drop Down'!$A$3:$B$10,2,0),\"1\",\"0\")","v":"0"},0,0,{"$f":"IFERROR(IF(M212=\"Select\",\"Select Support Level\", PRODUCT($Q212,VLOOKUP($J212,'Drop Down'!K:M,3,0))),\"-\")","v":"Select Support Level"},"Ok",0,0]
["Select","-","-","-","-","Select",null,"DD/MM/YYYY","DD/MM/YYYY","Select","Select","Select","Select",0,{"$f":"IF(N213>VLOOKUP(M213,'Drop Down'!$A$3:$B$10,2,0),\"1\",\"0\")","v":"0"},0,0,{"$f":"IFERROR(IF(M213=\"Select\",\"Select Support Level\", PRODUCT($Q213,VLOOKUP($J213,'Drop Down'!K:M,3,0))),\"-\")","v":"Select Support Level"},"Ok",0,0]
["Select","-","-","-","-","Select",null,"DD/MM/YYYY","DD/MM/YYYY","Select","Select","Select","Select",0,{"$f":"IF(N214>VLOOKUP(M214,'Drop Down'!$A$3:$B$10,2,0),\"1\",\"0\")","v":"0"},0,0,{"$f":"IFERROR(IF(M214=\"Select\",\"Select Support Level\", PRODUCT($Q214,VLOOKUP($J214,'Drop Down'!K:M,3,0))),\"-\")","v":"Select Support Level"},"Ok",0,0]
["Select","-","-","-","-","Select",null,"DD/MM/YYYY","DD/MM/YYYY","Select","Select","Select","Select",0,{"$f":"IF(N215>VLOOKUP(M215,'Drop Down'!$A$3:$B$10,2,0),\"1\",\"0\")","v":"0"},0,0,{"$f":"IFERROR(IF(M215=\"Select\",\"Select Support Level\", PRODUCT($Q215,VLOOKUP($J215,'Drop Down'!K:M,3,0))),\"-\")","v":"Select Support Level"},"Ok",0,0]
["Select","-","-","-","-","Select",null,"DD/MM/YYYY","DD/MM/YYYY","Select","Select","Select","Select",0,{"$f":"IF(N216>VLOOKUP(M216,'Drop Down'!$A$3:$B$10,2,0),\"1\",\"0\")","v":"0"},0,0,{"$f":"IFERROR(IF(M216=\"Select\",\"Select Support Level\", PRODUCT($Q216,VLOOKUP($J216,'Drop Down'!K:M,3,0))),\"-\")","v":"Select Support Level"},"Ok",0,0]
["Select","-","-","-","-","Select",null,"DD/MM/YYYY","DD/MM/YYYY","Select","Select","Select","Select",0,{"$f":"IF(N217>VLOOKUP(M217,'Drop Down'!$A$3:$B$10,2,0),\"1\",\"0\")","v":"0"},0,0,{"$f":"IFERROR(IF(M217=\"Select\",\"Select Support Level\", PRODUCT($Q217,VLOOKUP($J217,'Drop Down'!K:M,3,0))),\"-\")","v":"Select Support Level"},"Ok",0,0]
["Select","-","-","-","-","Select",null,"DD/MM/YYYY","DD/MM/YYYY","Select","Select","Select","Select",0,{"$f":"IF(N218>VLOOKUP(M218,'Drop Down'!$A$3:$B$10,2,0),\"1\",\"0\")","v":"0"},0,0,{"$f":"IFERROR(IF(M218=\"Select\",\"Select Support Level\", PRODUCT($Q218,VLOOKUP($J218,'Drop Down'!K:M,3,0))),\"-\")","v":"Select Support Level"},"Ok",0,0]
["Select","-","-","-","-","Select",null,"DD/MM/YYYY","DD/MM/YYYY","Select","Select","Select","Select",0,{"$f":"IF(N219>VLOOKUP(M219,'Drop Down'!$A$3:$B$10,2,0),\"1\",\"0\")","v":"0"},0,0,{"$f":"IFERROR(IF(M219=\"Select\",\"Select Support Level\", PRODUCT($Q219,VLOOKUP($J219,'Drop Down'!K:M,3,0))),\"-\")","v":"Select Support Level"},"Ok",0,0]
["Select","-","-","-","-","Select",null,"DD/MM/YYYY","DD/MM/YYYY","Select","Select","Select","Select",0,{"$f":"IF(N220>VLOOKUP(M220,'Drop Down'!$A$3:$B$10,2,0),\"1\",\"0\")","v":"0"},0,0,{"$f":"IFERROR(IF(M220=\"Select\",\"Select Support Level\", PRODUCT($Q220,VLOOKUP($J220,'Drop Down'!K:M,3,0))),\"-\")","v":"Select Support Level"},"Ok",0,0]
["Select","-","-","-","-","Select",null,"DD/MM/YYYY","DD/MM/YYYY","Select","Select","Select","Select",0,{"$f":"IF(N221>VLOOKUP(M221,'Drop Down'!$A$3:$B$10,2,0),\"1\",\"0\")","v":"0"},0,0,{"$f":"IFERROR(IF(M221=\"Select\",\"Select Support Level\", PRODUCT($Q221,VLOOKUP($J221,'Drop Down'!K:M,3,0))),\"-\")","v":"Select Support Level"},"Ok",0,0]
["Select","-","-","-","-","Select",null,"DD/MM/YYYY","DD/MM/YYYY","Select","Select","Select","Select",0,{"$f":"IF(N222>VLOOKUP(M222,'Drop Down'!$A$3:$B$10,2,0),\"1\",\"0\")","v":"0"},0,0,{"$f":"IFERROR(IF(M222=\"Select\",\"Select Support Level\", PRODUCT($Q222,VLOOKUP($J222,'Drop Down'!K:M,3,0))),\"-\")","v":"Select Support Level"},"Ok",0,0]
["Select","-","-","-","-","Select",null,"DD/MM/YYYY","DD/MM/YYYY","Select","Select","Select","Select",0,{"$f":"IF(N223>VLOOKUP(M223,'Drop Down'!$A$3:$B$10,2,0),\"1\",\"0\")","v":"0"},0,0,{"$f":"IFERROR(IF(M223=\"Select\",\"Select Support Level\", PRODUCT($Q223,VLOOKUP($J223,'Drop Down'!K:M,3,0))),\"-\")","v":"Select Support Level"},"Ok",0,0]
["Select","-","-","-","-","Select",null,"DD/MM/YYYY","DD/MM/YYYY","Select","Select","Select","Select",0,{"$f":"IF(N224>VLOOKUP(M224,'Drop Down'!$A$3:$B$10,2,0),\"1\",\"0\")","v":"0"},0,0,{"$f":"IFERROR(IF(M224=\"Select\",\"Select Support Level\", PRODUCT($Q224,VLOOKUP($J224,'Drop Down'!K:M,3,0))),\"-\")","v":"Select Support Level"},"Ok",0,0]
["Select","-","-","-","-","Select",null,"DD/MM/YYYY","DD/MM/YYYY","Select","Select","Select","Select",0,{"$f":"IF(N225>VLOOKUP(M225,'Drop Down'!$A$3:$B$10,2,0),\"1\",\"0\")","v":"0"},0,0,{"$f":"IFERROR(IF(M225=\"Select\",\"Select Support Level\", PRODUCT($Q225,VLOOKUP($J225,'Drop Down'!K:M,3,0))),\"-\")","v":"Select Support Level"},"Ok",0,0]
["Select","-","-","-","-","Select",null,"DD/MM/YYYY","DD/MM/YYYY","Select","Select","Select","Select",0,{"$f":"IF(N226>VLOOKUP(M226,'Drop Down'!$A$3:$B$10,2,0),\"1\",\"0\")","v":"0"},0,0,{"$f":"IFERROR(IF(M226=\"Select\",\"Select Support Level\", PRODUCT($Q226,VLOOKUP($J226,'Drop Down'!K:M,3,0))),\"-\")","v":"Select Support Level"},"Ok",0,0]
["Select","-","-","-","-","Select",null,"DD/MM/YYYY","DD/MM/YYYY","Select","Select","Select","Select",0,{"$f":"IF(N227>VLOOKUP(M227,'Drop Down'!$A$3:$B$10,2,0),\"1\",\"0\")","v":"0"},0,0,{"$f":"IFERROR(IF(M227=\"Select\",\"Select Support Level\", PRODUCT($Q227,VLOOKUP($J227,'Drop Down'!K:M,3,0))),\"-\")","v":"Select Support Level"},"Ok",0,0]
["Select","-","-","-","-","Select",null,"DD/MM/YYYY","DD/MM/YYYY","Select","Select","Select","Select",0,{"$f":"IF(N228>VLOOKUP(M228,'Drop Down'!$A$3:$B$10,2,0),\"1\",\"0\")","v":"0"},0,0,{"$f":"IFERROR(IF(M228=\"Select\",\"Select Support Level\", PRODUCT($Q228,VLOOKUP($J228,'Drop Down'!K:M,3,0))),\"-\")","v":"Select Support Level"},"Ok",0,0]
["Select","-","-","-","-","Select",null,"DD/MM/YYYY","DD/MM/YYYY","Select","Select","Select","Select",0,{"$f":"IF(N229>VLOOKUP(M229,'Drop Down'!$A$3:$B$10,2,0),\"1\",\"0\")","v":"0"},0,0,{"$f":"IFERROR(IF(M229=\"Select\",\"Select Support Level\", PRODUCT($Q229,VLOOKUP($J229,'Drop Down'!K:M,3,0))),\"-\")","v":"Select Support Level"},"Ok",0,0]
["Select","-","-","-","-","Select",null,"DD/MM/YYYY","DD/MM/YYYY","Select","Select","Select","Select",0,{"$f":"IF(N230>VLOOKUP(M230,'Drop Down'!$A$3:$B$10,2,0),\"1\",\"0\")","v":"0"},0,0,{"$f":"IFERROR(IF(M230=\"Select\",\"Select Support Level\", PRODUCT($Q230,VLOOKUP($J230,'Drop Down'!K:M,3,0))),\"-\")","v":"Select Support Level"},"Ok",0,0]
["Select","-","-","-","-","Select",null,"DD/MM/YYYY","DD/MM/YYYY","Select","Select","Select","Select",0,{"$f":"IF(N231>VLOOKUP(M231,'Drop Down'!$A$3:$B$10,2,0),\"1\",\"0\")","v":"0"},0,0,{"$f":"IFERROR(IF(M231=\"Select\",\"Select Support Level\", PRODUCT($Q231,VLOOKUP($J231,'Drop Down'!K:M,3,0))),\"-\")","v":"Select Support Level"},"Ok",0,0]
["Select","-","-","-","-","Select",null,"DD/MM/YYYY","DD/MM/YYYY","Select","Select","Select","Select",0,{"$f":"IF(N232>VLOOKUP(M232,'Drop Down'!$A$3:$B$10,2,0),\"1\",\"0\")","v":"0"},0,0,{"$f":"IFERROR(IF(M232=\"Select\",\"Select Support Level\", PRODUCT($Q232,VLOOKUP($J232,'Drop Down'!K:M,3,0))),\"-\")","v":"Select Support Level"},"Ok",0,0]
["Select","-","-","-","-","Select",null,"DD/MM/YYYY","DD/MM/YYYY","Select","Select","Select","Select",0,{"$f":"IF(N233>VLOOKUP(M233,'Drop Down'!$A$3:$B$10,2,0),\"1\",\"0\")","v":"0"},0,0,{"$f":"IFERROR(IF(M233=\"Select\",\"Select Support Level\", PRODUCT($Q233,VLOOKUP($J233,'Drop Down'!K:M,3,0))),\"-\")","v":"Select Support Level"},"Ok",0,0]
["Select","-","-","-","-","Select",null,"DD/MM/YYYY","DD/MM/YYYY","Select","Select","Select","Select",0,{"$f":"IF(N234>VLOOKUP(M234,'Drop Down'!$A$3:$B$10,2,0),\"1\",\"0\")","v":"0"},0,0,{"$f":"IFERROR(IF(M234=\"Select\",\"Select Support Level\", PRODUCT($Q234,VLOOKUP($J234,'Drop Down'!K:M,3,0))),\"-\")","v":"Select Support Level"},"Ok",0,0]
["Select","-","-","-","-","Select",null,"DD/MM/YYYY","DD/MM/YYYY","Select","Select","Select","Select",0,{"$f":"IF(N235>VLOOKUP(M235,'Drop Down'!$A$3:$B$10,2,0),\"1\",\"0\")","v":"0"},0,0,{"$f":"IFERROR(IF(M235=\"Select\",\"Select Support Level\", PRODUCT($Q235,VLOOKUP($J235,'Drop Down'!K:M,3,0))),\"-\")","v":"Select Support Level"},"Ok",0,0]
["Select","-","-","-","-","Select",null,"DD/MM/YYYY","DD/MM/YYYY","Select","Select","Select","Select",0,{"$f":"IF(N236>VLOOKUP(M236,'Drop Down'!$A$3:$B$10,2,0),\"1\",\"0\")","v":"0"},0,0,{"$f":"IFERROR(IF(M236=\"Select\",\"Select Support Level\", PRODUCT($Q236,VLOOKUP($J236,'Drop Down'!K:M,3,0))),\"-\")","v":"Select Support Level"},"Ok",0,0]
["Select","-","-","-","-","Select",null,"DD/MM/YYYY","DD/MM/YYYY","Select","Select","Select","Select",0,{"$f":"IF(N237>VLOOKUP(M237,'Drop Down'!$A$3:$B$10,2,0),\"1\",\"0\")","v":"0"},0,0,{"$f":"IFERROR(IF(M237=\"Select\",\"Select Support Level\", PRODUCT($Q237,VLOOKUP($J237,'Drop Down'!K:M,3,0))),\"-\")","v":"Select Support Level"},"Ok",0,0]
["Select","-","-","-","-","Select",null,"DD/MM/YYYY","DD/MM/YYYY","Select","Select","Select","Select",0,{"$f":"IF(N238>VLOOKUP(M238,'Drop Down'!$A$3:$B$10,2,0),\"1\",\"0\")","v":"0"},0,0,{"$f":"IFERROR(IF(M238=\"Select\",\"Select Support Level\", PRODUCT($Q238,VLOOKUP($J238,'Drop Down'!K:M,3,0))),\"-\")","v":"Select Support Level"},"Ok",0,0]
["Select","-","-","-","-","Select",null,"DD/MM/YYYY","DD/MM/YYYY","Select","Select","Select","Select",0,{"$f":"IF(N239>VLOOKUP(M239,'Drop Down'!$A$3:$B$10,2,0),\"1\",\"0\")","v":"0"},0,0,{"$f":"IFERROR(IF(M239=\"Select\",\"Select Support Level\", PRODUCT($Q239,VLOOKUP($J239,'Drop Down'!K:M,3,0))),\"-\")","v":"Select Support Level"},"Ok",0,0]
["Select","-","-","-","-","Select",null,"DD/MM/YYYY","DD/MM/YYYY","Select","Select","Select","Select",0,{"$f":"IF(N240>VLOOKUP(M240,'Drop Down'!$A$3:$B$10,2,0),\"1\",\"0\")","v":"0"},0,0,{"$f":"IFERROR(IF(M240=\"Select\",\"Select Support Level\", PRODUCT($Q240,VLOOKUP($J240,'Drop Down'!K:M,3,0))),\"-\")","v":"Select Support Level"},"Ok",0,0]
["Select","-","-","-","-","Select",null,"DD/MM/YYYY","DD/MM/YYYY","Select","Select","Select","Select",0,{"$f":"IF(N241>VLOOKUP(M241,'Drop Down'!$A$3:$B$10,2,0),\"1\",\"0\")","v":"0"},0,0,{"$f":"IFERROR(IF(M241=\"Select\",\"Select Support Level\", PRODUCT($Q241,VLOOKUP($J241,'Drop Down'!K:M,3,0))),\"-\")","v":"Select Support Level"},"Ok",0,0]
["Select","-","-","-","-","Select",null,"DD/MM/YYYY","DD/MM/YYYY","Select","Select","Select","Select",0,{"$f":"IF(N242>VLOOKUP(M242,'Drop Down'!$A$3:$B$10,2,0),\"1\",\"0\")","v":"0"},0,0,{"$f":"IFERROR(IF(M242=\"Select\",\"Select Support Level\", PRODUCT($Q242,VLOOKUP($J242,'Drop Down'!K:M,3,0))),\"-\")","v":"Select Support Level"},"Ok",0,0]
["Select","-","-","-","-","Select",null,"DD/MM/YYYY","DD/MM/YYYY","Select","Select","Select","Select",0,{"$f":"IF(N243>VLOOKUP(M243,'Drop Down'!$A$3:$B$10,2,0),\"1\",\"0\")","v":"0"},0,0,{"$f":"IFERROR(IF(M243=\"Select\",\"Select Support Level\", PRODUCT($Q243,VLOOKUP($J243,'Drop Down'!K:M,3,0))),\"-\")","v":"Select Support Level"},"Ok",0,0]
["Select","-","-","-","-","Select",null,"DD/MM/YYYY","DD/MM/YYYY","Select","Select","Select","Select",0,{"$f":"IF(N244>VLOOKUP(M244,'Drop Down'!$A$3:$B$10,2,0),\"1\",\"0\")","v":"0"},0,0,{"$f":"IFERROR(IF(M244=\"Select\",\"Select Support Level\", PRODUCT($Q244,VLOOKUP($J244,'Drop Down'!K:M,3,0))),\"-\")","v":"Select Support Level"},"Ok",0,0]
["Select","-","-","-","-","Select",null,"DD/MM/YYYY","DD/MM/YYYY","Select","Select","Select","Select",0,{"$f":"IF(N245>VLOOKUP(M245,'Drop Down'!$A$3:$B$10,2,0),\"1\",\"0\")","v":"0"},0,0,{"$f":"IFERROR(IF(M245=\"Select\",\"Select Support Level\", PRODUCT($Q245,VLOOKUP($J245,'Drop Down'!K:M,3,0))),\"-\")","v":"Select Support Level"},"Ok",0,0]
["Select","-","-","-","-","Select",null,"DD/MM/YYYY","DD/MM/YYYY","Select","Select","Select","Select",0,{"$f":"IF(N246>VLOOKUP(M246,'Drop Down'!$A$3:$B$10,2,0),\"1\",\"0\")","v":"0"},0,0,{"$f":"IFERROR(IF(M246=\"Select\",\"Select Support Level\", PRODUCT($Q246,VLOOKUP($J246,'Drop Down'!K:M,3,0))),\"-\")","v":"Select Support Level"},"Ok",0,0]
["Select","-","-","-","-","Select",null,"DD/MM/YYYY","DD/MM/YYYY","Select","Select","Select","Select",0,{"$f":"IF(N247>VLOOKUP(M247,'Drop Down'!$A$3:$B$10,2,0),\"1\",\"0\")","v":"0"},0,0,{"$f":"IFERROR(IF(M247=\"Select\",\"Select Support Level\", PRODUCT($Q247,VLOOKUP($J247,'Drop Down'!K:M,3,0))),\"-\")","v":"Select Support Level"},"Ok",0,0]
["Select","-","-","-","-","Select",null,"DD/MM/YYYY","DD/MM/YYYY","Select","Select","Select","Select",0,{"$f":"IF(N248>VLOOKUP(M248,'Drop Down'!$A$3:$B$10,2,0),\"1\",\"0\")","v":"0"},0,0,{"$f":"IFERROR(IF(M248=\"Select\",\"Select Support Level\", PRODUCT($Q248,VLOOKUP($J248,'Drop Down'!K:M,3,0))),\"-\")","v":"Select Support Level"},"Ok",0,0]
["Select","-","-","-","-","Select",null,"DD/MM/YYYY","DD/MM/YYYY","Select","Select","Select","Select",0,{"$f":"IF(N249>VLOOKUP(M249,'Drop Down'!$A$3:$B$10,2,0),\"1\",\"0\")","v":"0"},0,0,{"$f":"IFERROR(IF(M249=\"Select\",\"Select Support Level\", PRODUCT($Q249,VLOOKUP($J249,'Drop Down'!K:M,3,0))),\"-\")","v":"Select Support Level"},"Ok",0,0]
["Select","-","-","-","-","Select",null,"DD/MM/YYYY","DD/MM/YYYY","Select","Select","Select","Select",0,{"$f":"IF(N250>VLOOKUP(M250,'Drop Down'!$A$3:$B$10,2,0),\"1\",\"0\")","v":"0"},0,0,{"$f":"IFERROR(IF(M250=\"Select\",\"Select Support Level\", PRODUCT($Q250,VLOOKUP($J250,'Drop Down'!K:M,3,0))),\"-\")","v":"Select Support Level"},"Ok",0,0]
["Select","-","-","-","-","Select",null,"DD/MM/YYYY","DD/MM/YYYY","Select","Select","Select","Select",0,{"$f":"IF(N251>VLOOKUP(M251,'Drop Down'!$A$3:$B$10,2,0),\"1\",\"0\")","v":"0"},0,0,{"$f":"IFERROR(IF(M251=\"Select\",\"Select Support Level\", PRODUCT($Q251,VLOOKUP($J251,'Drop Down'!K:M,3,0))),\"-\")","v":"Select Support Level"},"Ok",0,0]
["Select","-","-","-","-","Select",null,"DD/MM/YYYY","DD/MM/YYYY","Select","Select","Select","Select",0,{"$f":"IF(N252>VLOOKUP(M252,'Drop Down'!$A$3:$B$10,2,0),\"1\",\"0\")","v":"0"},0,0,{"$f":"IFERROR(IF(M252=\"Select\",\"Select Support Level\", PRODUCT($Q252,VLOOKUP($J252,'Drop Down'!K:M,3,0))),\"-\")","v":"Select Support Level"},"Ok",0,0]
["Select","-","-","-","-","Select",null,"DD/MM/YYYY","DD/MM/YYYY","Select","Select","Select","Select",0,{"$f":"IF(N253>VLOOKUP(M253,'Drop Down'!$A$3:$B$10,2,0),\"1\",\"0\")","v":"0"},0,0,{"$f":"IFERROR(IF(M253=\"Select\",\"Select Support Level\", PRODUCT($Q253,VLOOKUP($J253,'Drop Down'!K:M,3,0))),\"-\")","v":"Select Support Level"},"Ok",0,0]
["Select","-","-","-","-","Select",null,"DD/MM/YYYY","DD/MM/YYYY","Select","Select","Select","Select",0,{"$f":"IF(N254>VLOOKUP(M254,'Drop Down'!$A$3:$B$10,2,0),\"1\",\"0\")","v":"0"},0,0,{"$f":"IFERROR(IF(M254=\"Select\",\"Select Support Level\", PRODUCT($Q254,VLOOKUP($J254,'Drop Down'!K:M,3,0))),\"-\")","v":"Select Support Level"},"Ok",0,0]
["Select","-","-","-","-","Select",null,"DD/MM/YYYY","DD/MM/YYYY","Select","Select","Select","Select",0,{"$f":"IF(N255>VLOOKUP(M255,'Drop Down'!$A$3:$B$10,2,0),\"1\",\"0\")","v":"0"},0,0,{"$f":"IFERROR(IF(M255=\"Select\",\"Select Support Level\", PRODUCT($Q255,VLOOKUP($J255,'Drop Down'!K:M,3,0))),\"-\")","v":"Select Support Level"},"Ok",0,0]
["Select","-","-","-","-","Select",null,"DD/MM/YYYY","DD/MM/YYYY","Select","Select","Select","Select",0,{"$f":"IF(N256>VLOOKUP(M256,'Drop Down'!$A$3:$B$10,2,0),\"1\",\"0\")","v":"0"},0,0,{"$f":"IFERROR(IF(M256=\"Select\",\"Select Support Level\", PRODUCT($Q256,VLOOKUP($J256,'Drop Down'!K:M,3,0))),\"-\")","v":"Select Support Level"},"Ok",0,0]
["Select","-","-","-","-","Select",null,"DD/MM/YYYY","DD/MM/YYYY","Select","Select","Select","Select",0,{"$f":"IF(N257>VLOOKUP(M257,'Drop Down'!$A$3:$B$10,2,0),\"1\",\"0\")","v":"0"},0,0,{"$f":"IFERROR(IF(M257=\"Select\",\"Select Support Level\", PRODUCT($Q257,VLOOKUP($J257,'Drop Down'!K:M,3,0))),\"-\")","v":"Select Support Level"},"Ok",0,0]
["Select","-","-","-","-","Select",null,"DD/MM/YYYY","DD/MM/YYYY","Select","Select","Select","Select",0,{"$f":"IF(N258>VLOOKUP(M258,'Drop Down'!$A$3:$B$10,2,0),\"1\",\"0\")","v":"0"},0,{"$f":"SUM($N258,$P258)","v":0},{"$f":"IFERROR(IF(M258=\"Select\",\"Select Support Level\", PRODUCT($Q258,VLOOKUP($J258,'Drop Down'!K:M,3,0))),\"-\")","v":"Select Support Level"},{"$f":"IF(O258=\"1\",\"Cannot Bill\",\"Ok\")","v":"Ok"},0,{"$f":"IF($T258=\"\",0,ROUND(PRODUCT(T258,0.7),2))","v":0}]
["Select","-","-","-","-","Select",null,"DD/MM/YYYY","DD/MM/YYYY","Select","Select","Select","Select",0,{"$f":"IF(N259>VLOOKUP(M259,'Drop Down'!$A$3:$B$10,2,0),\"1\",\"0\")","v":"0"},0,0,{"$f":"IFERROR(IF(M259=\"Select\",\"Select Support Level\", PRODUCT($Q259,VLOOKUP($J259,'Drop Down'!K:M,3,0))),\"-\")","v":"Select Support Level"},"Ok",0,0]
["Select","-","-","-","-","Select",null,"DD/MM/YYYY","DD/MM/YYYY","Select","Select","Select","Select",0,{"$f":"IF(N260>VLOOKUP(M260,'Drop Down'!$A$3:$B$10,2,0),\"1\",\"0\")","v":"0"},0,0,{"$f":"IFERROR(IF(M260=\"Select\",\"Select Support Level\", PRODUCT($Q260,VLOOKUP($J260,'Drop Down'!K:M,3,0))),\"-\")","v":"Select Support Level"},"Ok",0,0]
["Select","-","-","-","-","Select",null,"DD/MM/YYYY","DD/MM/YYYY","Select","Select","Select","Select",0,{"$f":"IF(N261>VLOOKUP(M261,'Drop Down'!$A$3:$B$10,2,0),\"1\",\"0\")","v":"0"},0,0,{"$f":"IFERROR(IF(M261=\"Select\",\"Select Support Level\", PRODUCT($Q261,VLOOKUP($J261,'Drop Down'!K:M,3,0))),\"-\")","v":"Select Support Level"},"Ok",0,0]
["Select","-","-","-","-","Select",null,"DD/MM/YYYY","DD/MM/YYYY","Select","Select","Select","Select",0,{"$f":"IF(N262>VLOOKUP(M262,'Drop Down'!$A$3:$B$10,2,0),\"1\",\"0\")","v":"0"},0,0,{"$f":"IFERROR(IF(M262=\"Select\",\"Select Support Level\", PRODUCT($Q262,VLOOKUP($J262,'Drop Down'!K:M,3,0))),\"-\")","v":"Select Support Level"},"Ok",0,0]
["Select","-","-","-","-","Select",null,"DD/MM/YYYY","DD/MM/YYYY","Select","Select","Select","Select",0,{"$f":"IF(N263>VLOOKUP(M263,'Drop Down'!$A$3:$B$10,2,0),\"1\",\"0\")","v":"0"},0,0,{"$f":"IFERROR(IF(M263=\"Select\",\"Select Support Level\", PRODUCT($Q263,VLOOKUP($J263,'Drop Down'!K:M,3,0))),\"-\")","v":"Select Support Level"},"Ok",0,0]
["Select","-","-","-","-","Select",null,"DD/MM/YYYY","DD/MM/YYYY","Select","Select","Select","Select",0,{"$f":"IF(N264>VLOOKUP(M264,'Drop Down'!$A$3:$B$10,2,0),\"1\",\"0\")","v":"0"},0,0,{"$f":"IFERROR(IF(M264=\"Select\",\"Select Support Level\", PRODUCT($Q264,VLOOKUP($J264,'Drop Down'!K:M,3,0))),\"-\")","v":"Select Support Level"},"Ok",0,0]
["Select","-","-","-","-","Select",null,"DD/MM/YYYY","DD/MM/YYYY","Select","Select","Select","Select",0,{"$f":"IF(N265>VLOOKUP(M265,'Drop Down'!$A$3:$B$10,2,0),\"1\",\"0\")","v":"0"},0,0,{"$f":"IFERROR(IF(M265=\"Select\",\"Select Support Level\", PRODUCT($Q265,VLOOKUP($J265,'Drop Down'!K:M,3,0))),\"-\")","v":"Select Support Level"},"Ok",0,0]
["Select","-","-","-","-","Select",null,"DD/MM/YYYY","DD/MM/YYYY","Select","Select","Select","Select",0,{"$f":"IF(N266>VLOOKUP(M266,'Drop Down'!$A$3:$B$10,2,0),\"1\",\"0\")","v":"0"},0,0,{"$f":"IFERROR(IF(M266=\"Select\",\"Select Support Level\", PRODUCT($Q266,VLOOKUP($J266,'Drop Down'!K:M,3,0))),\"-\")","v":"Select Support Level"},"Ok",0,0]
["Select","-","-","-","-","Select",null,"DD/MM/YYYY","DD/MM/YYYY","Select","Select","Select","Select",0,{"$f":"IF(N267>VLOOKUP(M267,'Drop Down'!$A$3:$B$10,2,0),\"1\",\"0\")","v":"0"},0,0,{"$f":"IFERROR(IF(M267=\"Select\",\"Select Support Level\", PRODUCT($Q267,VLOOKUP($J267,'Drop Down'!K:M,3,0))),\"-\")","v":"Select Support Level"},"Ok",0,0]
["Select","-","-","-","-","Select",null,"DD/MM/YYYY","DD/MM/YYYY","Select","Select","Select","Select",0,{"$f":"IF(N268>VLOOKUP(M268,'Drop Down'!$A$3:$B$10,2,0),\"1\",\"0\")","v":"0"},0,0,{"$f":"IFERROR(IF(M268=\"Select\",\"Select Support Level\", PRODUCT($Q268,VLOOKUP($J268,'Drop Down'!K:M,3,0))),\"-\")","v":"Select Support Level"},"Ok",0,0]
["Select","-","-","-","-","Select",null,"DD/MM/YYYY","DD/MM/YYYY","Select","Select","Select","Select",0,{"$f":"IF(N269>VLOOKUP(M269,'Drop Down'!$A$3:$B$10,2,0),\"1\",\"0\")","v":"0"},0,0,{"$f":"IFERROR(IF(M269=\"Select\",\"Select Support Level\", PRODUCT($Q269,VLOOKUP($J269,'Drop Down'!K:M,3,0))),\"-\")","v":"Select Support Level"},"Ok",0,0]
["Select","-","-","-","-","Select",null,"DD/MM/YYYY","DD/MM/YYYY","Select","Select","Select","Select",0,{"$f":"IF(N270>VLOOKUP(M270,'Drop Down'!$A$3:$B$10,2,0),\"1\",\"0\")","v":"0"},0,0,{"$f":"IFERROR(IF(M270=\"Select\",\"Select Support Level\", PRODUCT($Q270,VLOOKUP($J270,'Drop Down'!K:M,3,0))),\"-\")","v":"Select Support Level"},"Ok",0,0]
["Select","-","-","-","-","Select",null,"DD/MM/YYYY","DD/MM/YYYY","Select","Select","Select","Select",0,{"$f":"IF(N271>VLOOKUP(M271,'Drop Down'!$A$3:$B$10,2,0),\"1\",\"0\")","v":"0"},0,0,{"$f":"IFERROR(IF(M271=\"Select\",\"Select Support Level\", PRODUCT($Q271,VLOOKUP($J271,'Drop Down'!K:M,3,0))),\"-\")","v":"Select Support Level"},"Ok",0,0]
["Select","-","-","-","-","Select",null,"DD/MM/YYYY","DD/MM/YYYY","Select","Select","Select","Select",0,{"$f":"IF(N272>VLOOKUP(M272,'Drop Down'!$A$3:$B$10,2,0),\"1\",\"0\")","v":"0"},0,0,{"$f":"IFERROR(IF(M272=\"Select\",\"Select Support Level\", PRODUCT($Q272,VLOOKUP($J272,'Drop Down'!K:M,3,0))),\"-\")","v":"Select Support Level"},"Ok",0,0]
["Select","-","-","-","-","Select",null,"DD/MM/YYYY","DD/MM/YYYY","Select","Select","Select","Select",0,{"$f":"IF(N273>VLOOKUP(M273,'Drop Down'!$A$3:$B$10,2,0),\"1\",\"0\")","v":"0"},0,0,{"$f":"IFERROR(IF(M273=\"Select\",\"Select Support Level\", PRODUCT($Q273,VLOOKUP($J273,'Drop Down'!K:M,3,0))),\"-\")","v":"Select Support Level"},"Ok",0,0]
["Select","-","-","-","-","Select",null,"DD/MM/YYYY","DD/MM/YYYY","Select","Select","Select","Select",0,{"$f":"IF(N274>VLOOKUP(M274,'Drop Down'!$A$3:$B$10,2,0),\"1\",\"0\")","v":"0"},0,0,{"$f":"IFERROR(IF(M274=\"Select\",\"Select Support Level\", PRODUCT($Q274,VLOOKUP($J274,'Drop Down'!K:M,3,0))),\"-\")","v":"Select Support Level"},"Ok",0,0]
["Select","-","-","-","-","Select",null,"DD/MM/YYYY","DD/MM/YYYY","Select","Select","Select","Select",0,{"$f":"IF(N275>VLOOKUP(M275,'Drop Down'!$A$3:$B$10,2,0),\"1\",\"0\")","v":"0"},0,0,{"$f":"IFERROR(IF(M275=\"Select\",\"Select Support Level\", PRODUCT($Q275,VLOOKUP($J275,'Drop Down'!K:M,3,0))),\"-\")","v":"Select Support Level"},"Ok",0,0]
["Select","-","-","-","-","Select",null,"DD/MM/YYYY","DD/MM/YYYY","Select","Select","Select","Select",0,{"$f":"IF(N276>VLOOKUP(M276,'Drop Down'!$A$3:$B$10,2,0),\"1\",\"0\")","v":"0"},0,0,{"$f":"IFERROR(IF(M276=\"Select\",\"Select Support Level\", PRODUCT($Q276,VLOOKUP($J276,'Drop Down'!K:M,3,0))),\"-\")","v":"Select Support Level"},"Ok",0,0]
["Select","-","-","-","-","Select",null,"DD/MM/YYYY","DD/MM/YYYY","Select","Select","Select","Select",0,{"$f":"IF(N277>VLOOKUP(M277,'Drop Down'!$A$3:$B$10,2,0),\"1\",\"0\")","v":"0"},0,0,{"$f":"IFERROR(IF(M277=\"Select\",\"Select Support Level\", PRODUCT($Q277,VLOOKUP($J277,'Drop Down'!K:M,3,0))),\"-\")","v":"Select Support Level"},"Ok",0,0]
["Select","-","-","-","-","Select",null,"DD/MM/YYYY","DD/MM/YYYY","Select","Select","Select","Select",0,{"$f":"IF(N278>VLOOKUP(M278,'Drop Down'!$A$3:$B$10,2,0),\"1\",\"0\")","v":"0"},0,0,{"$f":"IFERROR(IF(M278=\"Select\",\"Select Support Level\", PRODUCT($Q278,VLOOKUP($J278,'Drop Down'!K:M,3,0))),\"-\")","v":"Select Support Level"},"Ok",0,0]
["Select","-","-","-","-","Select",null,"DD/MM/YYYY","DD/MM/YYYY","Select","Select","Select","Select",0,{"$f":"IF(N279>VLOOKUP(M279,'Drop Down'!$A$3:$B$10,2,0),\"1\",\"0\")","v":"0"},0,0,{"$f":"IFERROR(IF(M279=\"Select\",\"Select Support Level\", PRODUCT($Q279,VLOOKUP($J279,'Drop Down'!K:M,3,0))),\"-\")","v":"Select Support Level"},"Ok",0,0]
["Select","-","-","-","-","Select",null,"DD/MM/YYYY","DD/MM/YYYY","Select","Select","Select","Select",0,{"$f":"IF(N280>VLOOKUP(M280,'Drop Down'!$A$3:$B$10,2,0),\"1\",\"0\")","v":"0"},0,0,{"$f":"IFERROR(IF(M280=\"Select\",\"Select Support Level\", PRODUCT($Q280,VLOOKUP($J280,'Drop Down'!K:M,3,0))),\"-\")","v":"Select Support Level"},"Ok",0,0]
["Select","-","-","-","-","Select",null,"DD/MM/YYYY","DD/MM/YYYY","Select","Select","Select","Select",0,{"$f":"IF(N281>VLOOKUP(M281,'Drop Down'!$A$3:$B$10,2,0),\"1\",\"0\")","v":"0"},0,0,{"$f":"IFERROR(IF(M281=\"Select\",\"Select Support Level\", PRODUCT($Q281,VLOOKUP($J281,'Drop Down'!K:M,3,0))),\"-\")","v":"Select Support Level"},"Ok",0,0]
["Select","-","-","-","-","Select",null,"DD/MM/YYYY","DD/MM/YYYY","Select","Select","Select","Select",0,{"$f":"IF(N282>VLOOKUP(M282,'Drop Down'!$A$3:$B$10,2,0),\"1\",\"0\")","v":"0"},0,0,{"$f":"IFERROR(IF(M282=\"Select\",\"Select Support Level\", PRODUCT($Q282,VLOOKUP($J282,'Drop Down'!K:M,3,0))),\"-\")","v":"Select Support Level"},"Ok",0,0]
["Select","-","-","-","-","Select",null,"DD/MM/YYYY","DD/MM/YYYY","Select","Select","Select","Select",0,{"$f":"IF(N283>VLOOKUP(M283,'Drop Down'!$A$3:$B$10,2,0),\"1\",\"0\")","v":"0"},0,0,{"$f":"IFERROR(IF(M283=\"Select\",\"Select Support Level\", PRODUCT($Q283,VLOOKUP($J283,'Drop Down'!K:M,3,0))),\"-\")","v":"Select Support Level"},"Ok",0,0]
["Select","-","-","-","-","Select",null,"DD/MM/YYYY","DD/MM/YYYY","Select","Select","Select","Select",0,{"$f":"IF(N284>VLOOKUP(M284,'Drop Down'!$A$3:$B$10,2,0),\"1\",\"0\")","v":"0"},0,0,{"$f":"IFERROR(IF(M284=\"Select\",\"Select Support Level\", PRODUCT($Q284,VLOOKUP($J284,'Drop Down'!K:M,3,0))),\"-\")","v":"Select Support Level"},"Ok",0,0]
["Select","-","-","-","-","Select",null,"DD/MM/YYYY","DD/MM/YYYY","Select","Select","Select","Select",0,{"$f":"IF(N285>VLOOKUP(M285,'Drop Down'!$A$3:$B$10,2,0),\"1\",\"0\")","v":"0"},0,0,{"$f":"IFERROR(IF(M285=\"Select\",\"Select Support Level\", PRODUCT($Q285,VLOOKUP($J285,'Drop Down'!K:M,3,0))),\"-\")","v":"Select Support Level"},"Ok",0,0]
["Select","-","-","-","-","Select",null,"DD/MM/YYYY","DD/MM/YYYY","Select","Select","Select","Select",0,{"$f":"IF(N286>VLOOKUP(M286,'Drop Down'!$A$3:$B$10,2,0),\"1\",\"0\")","v":"0"},0,0,{"$f":"IFERROR(IF(M286=\"Select\",\"Select Support Level\", PRODUCT($Q286,VLOOKUP($J286,'Drop Down'!K:M,3,0))),\"-\")","v":"Select Support Level"},"Ok",0,0]
["Select","-","-","-","-","Select",null,"DD/MM/YYYY","DD/MM/YYYY","Select","Select","Select","Select",0,{"$f":"IF(N287>VLOOKUP(M287,'Drop Down'!$A$3:$B$10,2,0),\"1\",\"0\")","v":"0"},0,0,{"$f":"IFERROR(IF(M287=\"Select\",\"Select Support Level\", PRODUCT($Q287,VLOOKUP($J287,'Drop Down'!K:M,3,0))),\"-\")","v":"Select Support Level"},"Ok",0,0]
["Select","-","-","-","-","Select",null,"DD/MM/YYYY","DD/MM/YYYY","Select","Select","Select","Select",0,{"$f":"IF(N288>VLOOKUP(M288,'Drop Down'!$A$3:$B$10,2,0),\"1\",\"0\")","v":"0"},0,0,{"$f":"IFERROR(IF(M288=\"Select\",\"Select Support Level\", PRODUCT($Q288,VLOOKUP($J288,'Drop Down'!K:M,3,0))),\"-\")","v":"Select Support Level"},"Ok",0,0]
["Select","-","-","-","-","Select",null,"DD/MM/YYYY","DD/MM/YYYY","Select","Select","Select","Select",0,{"$f":"IF(N289>VLOOKUP(M289,'Drop Down'!$A$3:$B$10,2,0),\"1\",\"0\")","v":"0"},0,0,{"$f":"IFERROR(IF(M289=\"Select\",\"Select Support Level\", PRODUCT($Q289,VLOOKUP($J289,'Drop Down'!K:M,3,0))),\"-\")","v":"Select Support Level"},"Ok",0,0]
["Select","-","-","-","-","Select",null,"DD/MM/YYYY","DD/MM/YYYY","Select","Select","Select","Select",0,{"$f":"IF(N290>VLOOKUP(M290,'Drop Down'!$A$3:$B$10,2,0),\"1\",\"0\")","v":"0"},0,0,{"$f":"IFERROR(IF(M290=\"Select\",\"Select Support Level\", PRODUCT($Q290,VLOOKUP($J290,'Drop Down'!K:M,3,0))),\"-\")","v":"Select Support Level"},"Ok",0,0]
["Select","-","-","-","-","Select",null,"DD/MM/YYYY","DD/MM/YYYY","Select","Select","Select","Select",0,{"$f":"IF(N291>VLOOKUP(M291,'Drop Down'!$A$3:$B$10,2,0),\"1\",\"0\")","v":"0"},0,0,{"$f":"IFERROR(IF(M291=\"Select\",\"Select Support Level\", PRODUCT($Q291,VLOOKUP($J291,'Drop Down'!K:M,3,0))),\"-\")","v":"Select Support Level"},"Ok",0,0]
["Select","-","-","-","-","Select",null,"DD/MM/YYYY","DD/MM/YYYY","Select","Select","Select","Select",0,{"$f":"IF(N292>VLOOKUP(M292,'Drop Down'!$A$3:$B$10,2,0),\"1\",\"0\")","v":"0"},0,0,{"$f":"IFERROR(IF(M292=\"Select\",\"Select Support Level\", PRODUCT($Q292,VLOOKUP($J292,'Drop Down'!K:M,3,0))),\"-\")","v":"Select Support Level"},"Ok",0,0]
["Select","-","-","-","-","Select",null,"DD/MM/YYYY","DD/MM/YYYY","Select","Select","Select","Select",0,{"$f":"IF(N293>VLOOKUP(M293,'Drop Down'!$A$3:$B$10,2,0),\"1\",\"0\")","v":"0"},0,0,{"$f":"IFERROR(IF(M293=\"Select\",\"Select Support Level\", PRODUCT($Q293,VLOOKUP($J293,'Drop Down'!K:M,3,0))),\"-\")","v":"Select Support Level"},"Ok",0,0]
["Select","-","-","-","-","Select",null,"DD/MM/YYYY","DD/MM/YYYY","Select","Select","Select","Select",0,{"$f":"IF(N294>VLOOKUP(M294,'Drop Down'!$A$3:$B$10,2,0),\"1\",\"0\")","v":"0"},0,0,{"$f":"IFERROR(IF(M294=\"Select\",\"Select Support Level\", PRODUCT($Q294,VLOOKUP($J294,'Drop Down'!K:M,3,0))),\"-\")","v":"Select Support Level"},"Ok",0,0]
["Select","-","-","-","-","Select",null,"DD/MM/YYYY","DD/MM/YYYY","Select","Select","Select","Select",0,{"$f":"IF(N295>VLOOKUP(M295,'Drop Down'!$A$3:$B$10,2,0),\"1\",\"0\")","v":"0"},0,0,{"$f":"IFERROR(IF(M295=\"Select\",\"Select Support Level\", PRODUCT($Q295,VLOOKUP($J295,'Drop Down'!K:M,3,0))),\"-\")","v":"Select Support Level"},"Ok",0,0]
["Select","-","-","-","-","Select",null,"DD/MM/YYYY","DD/MM/YYYY","Select","Select","Select","Select",0,{"$f":"IF(N296>VLOOKUP(M296,'Drop Down'!$A$3:$B$10,2,0),\"1\",\"0\")","v":"0"},0,0,{"$f":"IFERROR(IF(M296=\"Select\",\"Select Support Level\", PRODUCT($Q296,VLOOKUP($J296,'Drop Down'!K:M,3,0))),\"-\")","v":"Select Support Level"},"Ok",0,0]
["Select","-","-","-","-","Select",null,"DD/MM/YYYY","DD/MM/YYYY","Select","Select","Select","Select",0,{"$f":"IF(N297>VLOOKUP(M297,'Drop Down'!$A$3:$B$10,2,0),\"1\",\"0\")","v":"0"},0,0,{"$f":"IFERROR(IF(M297=\"Select\",\"Select Support Level\", PRODUCT($Q297,VLOOKUP($J297,'Drop Down'!K:M,3,0))),\"-\")","v":"Select Support Level"},"Ok",0,0]
["Select","-","-","-","-","Select",null,"DD/MM/YYYY","DD/MM/YYYY","Select","Select","Select","Select",0,{"$f":"IF(N298>VLOOKUP(M298,'Drop Down'!$A$3:$B$10,2,0),\"1\",\"0\")","v":"0"},0,0,{"$f":"IFERROR(IF(M298=\"Select\",\"Select Support Level\", PRODUCT($Q298,VLOOKUP($J298,'Drop Down'!K:M,3,0))),\"-\")","v":"Select Support Level"},"Ok",0,0]
["Select","-","-","-","-","Select",null,"DD/MM/YYYY","DD/MM/YYYY","Select","Select","Select","Select",0,{"$f":"IF(N299>VLOOKUP(M299,'Drop Down'!$A$3:$B$10,2,0),\"1\",\"0\")","v":"0"},0,0,{"$f":"IFERROR(IF(M299=\"Select\",\"Select Support Level\", PRODUCT($Q299,VLOOKUP($J299,'Drop Down'!K:M,3,0))),\"-\")","v":"Select Support Level"},"Ok",0,0]
["Select","-","-","-","-","Select",null,"DD/MM/YYYY","DD/MM/YYYY","Select","Select","Select","Select",0,{"$f":"IF(N300>VLOOKUP(M300,'Drop Down'!$A$3:$B$10,2,0),\"1\",\"0\")","v":"0"},0,0,{"$f":"IFERROR(IF(M300=\"Select\",\"Select Support Level\", PRODUCT($Q300,VLOOKUP($J300,'Drop Down'!K:M,3,0))),\"-\")","v":"Select Support Level"},"Ok",0,0]
["Select","-","-","-","-","Select",null,"DD/MM/YYYY","DD/MM/YYYY","Select","Select","Select","Select",0,{"$f":"IF(N301>VLOOKUP(M301,'Drop Down'!$A$3:$B$10,2,0),\"1\",\"0\")","v":"0"},0,0,{"$f":"IFERROR(IF(M301=\"Select\",\"Select Support Level\", PRODUCT($Q301,VLOOKUP($J301,'Drop Down'!K:M,3,0))),\"-\")","v":"Select Support Level"},"Ok",0,0]
["Select","-","-","-","-","Select",null,"DD/MM/YYYY","DD/MM/YYYY","Select","Select","Select","Select",0,{"$f":"IF(N302>VLOOKUP(M302,'Drop Down'!$A$3:$B$10,2,0),\"1\",\"0\")","v":"0"},0,0,{"$f":"IFERROR(IF(M302=\"Select\",\"Select Support Level\", PRODUCT($Q302,VLOOKUP($J302,'Drop Down'!K:M,3,0))),\"-\")","v":"Select Support Level"},"Ok",0,0]
["Select","-","-","-","-","Select",null,"DD/MM/YYYY","DD/MM/YYYY","Select","Select","Select","Select",0,{"$f":"IF(N303>VLOOKUP(M303,'Drop Down'!$A$3:$B$10,2,0),\"1\",\"0\")","v":"0"},0,0,{"$f":"IFERROR(IF(M303=\"Select\",\"Select Support Level\", PRODUCT($Q303,VLOOKUP($J303,'Drop Down'!K:M,3,0))),\"-\")","v":"Select Support Level"},"Ok",0,0]
["Select","-","-","-","-","Select",null,"DD/MM/YYYY","DD/MM/YYYY","Select","Select","Select","Select",0,{"$f":"IF(N304>VLOOKUP(M304,'Drop Down'!$A$3:$B$10,2,0),\"1\",\"0\")","v":"0"},0,0,{"$f":"IFERROR(IF(M304=\"Select\",\"Select Support Level\", PRODUCT($Q304,VLOOKUP($J304,'Drop Down'!K:M,3,0))),\"-\")","v":"Select Support Level"},"Ok",0,0]
["Select","-","-","-","-","Select",null,"DD/MM/YYYY","DD/MM/YYYY","Select","Select","Select","Select",0,{"$f":"IF(N305>VLOOKUP(M305,'Drop Down'!$A$3:$B$10,2,0),\"1\",\"0\")","v":"0"},0,0,{"$f":"IFERROR(IF(M305=\"Select\",\"Select Support Level\", PRODUCT($Q305,VLOOKUP($J305,'Drop Down'!K:M,3,0))),\"-\")","v":"Select Support Level"},"Ok",0,0]
["Select","-","-","-","-","Select",null,"DD/MM/YYYY","DD/MM/YYYY","Select","Select","Select","Select",0,{"$f":"IF(N306>VLOOKUP(M306,'Drop Down'!$A$3:$B$10,2,0),\"1\",\"0\")","v":"0"},0,0,{"$f":"IFERROR(IF(M306=\"Select\",\"Select Support Level\", PRODUCT($Q306,VLOOKUP($J306,'Drop Down'!K:M,3,0))),\"-\")","v":"Select Support Level"},"Ok",0,0]
["Select","-","-","-","-","Select",null,"DD/MM/YYYY","DD/MM/YYYY","Select","Select","Select","Select",0,{"$f":"IF(N307>VLOOKUP(M307,'Drop Down'!$A$3:$B$10,2,0),\"1\",\"0\")","v":"0"},0,0,{"$f":"IFERROR(IF(M307=\"Select\",\"Select Support Level\", PRODUCT($Q307,VLOOKUP($J307,'Drop Down'!K:M,3,0))),\"-\")","v":"Select Support Level"},"Ok",0,0]
["Select","-","-","-","-","Select",null,"DD/MM/YYYY","DD/MM/YYYY","Select","Select","Select","Select",0,{"$f":"IF(N308>VLOOKUP(M308,'Drop Down'!$A$3:$B$10,2,0),\"1\",\"0\")","v":"0"},0,0,{"$f":"IFERROR(IF(M308=\"Select\",\"Select Support Level\", PRODUCT($Q308,VLOOKUP($J308,'Drop Down'!K:M,3,0))),\"-\")","v":"Select Support Level"},"Ok",0,0]
["Select","-","-","-","-","Select",null,"DD/MM/YYYY","DD/MM/YYYY","Select","Select","Select","Select",0,{"$f":"IF(N309>VLOOKUP(M309,'Drop Down'!$A$3:$B$10,2,0),\"1\",\"0\")","v":"0"},0,0,{"$f":"IFERROR(IF(M309=\"Select\",\"Select Support Level\", PRODUCT($Q309,VLOOKUP($J309,'Drop Down'!K:M,3,0))),\"-\")","v":"Select Support Level"},"Ok",0,0]
["Select","-","-","-","-","Select",null,"DD/MM/YYYY","DD/MM/YYYY","Select","Select","Select","Select",0,{"$f":"IF(N310>VLOOKUP(M310,'Drop Down'!$A$3:$B$10,2,0),\"1\",\"0\")","v":"0"},0,0,{"$f":"IFERROR(IF(M310=\"Select\",\"Select Support Level\", PRODUCT($Q310,VLOOKUP($J310,'Drop Down'!K:M,3,0))),\"-\")","v":"Select Support Level"},"Ok",0,0]
["Select","-","-","-","-","Select",null,"DD/MM/YYYY","DD/MM/YYYY","Select","Select","Select","Select",0,{"$f":"IF(N311>VLOOKUP(M311,'Drop Down'!$A$3:$B$10,2,0),\"1\",\"0\")","v":"0"},0,0,{"$f":"IFERROR(IF(M311=\"Select\",\"Select Support Level\", PRODUCT($Q311,VLOOKUP($J311,'Drop Down'!K:M,3,0))),\"-\")","v":"Select Support Level"},"Ok",0,0]
["Select","-","-","-","-","Select",null,"DD/MM/YYYY","DD/MM/YYYY","Select","Select","Select","Select",0,{"$f":"IF(N312>VLOOKUP(M312,'Drop Down'!$A$3:$B$10,2,0),\"1\",\"0\")","v":"0"},0,0,{"$f":"IFERROR(IF(M312=\"Select\",\"Select Support Level\", PRODUCT($Q312,VLOOKUP($J312,'Drop Down'!K:M,3,0))),\"-\")","v":"Select Support Level"},"Ok",0,0]
["Select","-","-","-","-","Select",null,"DD/MM/YYYY","DD/MM/YYYY","Select","Select","Select","Select",0,{"$f":"IF(N313>VLOOKUP(M313,'Drop Down'!$A$3:$B$10,2,0),\"1\",\"0\")","v":"0"},0,0,{"$f":"IFERROR(IF(M313=\"Select\",\"Select Support Level\", PRODUCT($Q313,VLOOKUP($J313,'Drop Down'!K:M,3,0))),\"-\")","v":"Select Support Level"},"Ok",0,0]
["Select","-","-","-","-","Select",null,"DD/MM/YYYY","DD/MM/YYYY","Select","Select","Select","Select",0,{"$f":"IF(N314>VLOOKUP(M314,'Drop Down'!$A$3:$B$10,2,0),\"1\",\"0\")","v":"0"},0,0,{"$f":"IFERROR(IF(M314=\"Select\",\"Select Support Level\", PRODUCT($Q314,VLOOKUP($J314,'Drop Down'!K:M,3,0))),\"-\")","v":"Select Support Level"},"Ok",0,0]
["Select","-","-","-","-","Select",null,"DD/MM/YYYY","DD/MM/YYYY","Select","Select","Select","Select",0,{"$f":"IF(N315>VLOOKUP(M315,'Drop Down'!$A$3:$B$10,2,0),\"1\",\"0\")","v":"0"},0,0,{"$f":"IFERROR(IF(M315=\"Select\",\"Select Support Level\", PRODUCT($Q315,VLOOKUP($J315,'Drop Down'!K:M,3,0))),\"-\")","v":"Select Support Level"},"Ok",0,0]
["Select","-","-","-","-","Select",null,"DD/MM/YYYY","DD/MM/YYYY","Select","Select","Select","Select",0,{"$f":"IF(N316>VLOOKUP(M316,'Drop Down'!$A$3:$B$10,2,0),\"1\",\"0\")","v":"0"},0,0,{"$f":"IFERROR(IF(M316=\"Select\",\"Select Support Level\", PRODUCT($Q316,VLOOKUP($J316,'Drop Down'!K:M,3,0))),\"-\")","v":"Select Support Level"},"Ok",0,0]
["Select","-","-","-","-","Select",null,"DD/MM/YYYY","DD/MM/YYYY","Select","Select","Select","Select",0,{"$f":"IF(N317>VLOOKUP(M317,'Drop Down'!$A$3:$B$10,2,0),\"1\",\"0\")","v":"0"},0,0,{"$f":"IFERROR(IF(M317=\"Select\",\"Select Support Level\", PRODUCT($Q317,VLOOKUP($J317,'Drop Down'!K:M,3,0))),\"-\")","v":"Select Support Level"},"Ok",0,0]
["Select","-","-","-","-","Select",null,"DD/MM/YYYY","DD/MM/YYYY","Select","Select","Select","Select",0,{"$f":"IF(N318>VLOOKUP(M318,'Drop Down'!$A$3:$B$10,2,0),\"1\",\"0\")","v":"0"},0,0,{"$f":"IFERROR(IF(M318=\"Select\",\"Select Support Level\", PRODUCT($Q318,VLOOKUP($J318,'Drop Down'!K:M,3,0))),\"-\")","v":"Select Support Level"},"Ok",0,0]
["Select","-","-","-","-","Select",null,"DD/MM/YYYY","DD/MM/YYYY","Select","Select","Select","Select",0,{"$f":"IF(N319>VLOOKUP(M319,'Drop Down'!$A$3:$B$10,2,0),\"1\",\"0\")","v":"0"},0,0,{"$f":"IFERROR(IF(M319=\"Select\",\"Select Support Level\", PRODUCT($Q319,VLOOKUP($J319,'Drop Down'!K:M,3,0))),\"-\")","v":"Select Support Level"},"Ok",0,0]
["Select","-","-","-","-","Select",null,"DD/MM/YYYY","DD/MM/YYYY","Select","Select","Select","Select",0,{"$f":"IF(N320>VLOOKUP(M320,'Drop Down'!$A$3:$B$10,2,0),\"1\",\"0\")","v":"0"},0,0,{"$f":"IFERROR(IF(M320=\"Select\",\"Select Support Level\", PRODUCT($Q320,VLOOKUP($J320,'Drop Down'!K:M,3,0))),\"-\")","v":"Select Support Level"},"Ok",0,0]
["Select","-","-","-","-","Select",null,"DD/MM/YYYY","DD/MM/YYYY","Select","Select","Select","Select",0,{"$f":"IF(N321>VLOOKUP(M321,'Drop Down'!$A$3:$B$10,2,0),\"1\",\"0\")","v":"0"},0,0,{"$f":"IFERROR(IF(M321=\"Select\",\"Select Support Level\", PRODUCT($Q321,VLOOKUP($J321,'Drop Down'!K:M,3,0))),\"-\")","v":"Select Support Level"},"Ok",0,0]
["Select","-","-","-","-","Select",null,"DD/MM/YYYY","DD/MM/YYYY","Select","Select","Select","Select",0,{"$f":"IF(N322>VLOOKUP(M322,'Drop Down'!$A$3:$B$10,2,0),\"1\",\"0\")","v":"0"},0,{"$f":"SUM($N322,$P322)","v":0},{"$f":"IFERROR(IF(M322=\"Select\",\"Select Support Level\", PRODUCT($Q322,VLOOKUP($J322,'Drop Down'!K:M,3,0))),\"-\")","v":"Select Support Level"},{"$f":"IF(O322=\"1\",\"Cannot Bill\",\"Ok\")","v":"Ok"},0,{"$f":"IF($T322=\"\",0,ROUND(PRODUCT(T322,0.7),2))","v":0}]
["Select","-","-","-","-","Select",null,"DD/MM/YYYY","DD/MM/YYYY","Select","Select","Select","Select",0,{"$f":"IF(N323>VLOOKUP(M323,'Drop Down'!$A$3:$B$10,2,0),\"1\",\"0\")","v":"0"},0,0,{"$f":"IFERROR(IF(M323=\"Select\",\"Select Support Level\", PRODUCT($Q323,VLOOKUP($J323,'Drop Down'!K:M,3,0))),\"-\")","v":"Select Support Level"},"Ok",0,0]
["Select","-","-","-","-","Select",null,"DD/MM/YYYY","DD/MM/YYYY","Select","Select","Select","Select",0,{"$f":"IF(N324>VLOOKUP(M324,'Drop Down'!$A$3:$B$10,2,0),\"1\",\"0\")","v":"0"},0,0,{"$f":"IFERROR(IF(M324=\"Select\",\"Select Support Level\", PRODUCT($Q324,VLOOKUP($J324,'Drop Down'!K:M,3,0))),\"-\")","v":"Select Support Level"},"Ok",0,0]
["Select","-","-","-","-","Select",null,"DD/MM/YYYY","DD/MM/YYYY","Select","Select","Select","Select",0,{"$f":"IF(N325>VLOOKUP(M325,'Drop Down'!$A$3:$B$10,2,0),\"1\",\"0\")","v":"0"},0,0,{"$f":"IFERROR(IF(M325=\"Select\",\"Select Support Level\", PRODUCT($Q325,VLOOKUP($J325,'Drop Down'!K:M,3,0))),\"-\")","v":"Select Support Level"},"Ok",0,0]
["Select","-","-","-","-","Select",null,"DD/MM/YYYY","DD/MM/YYYY","Select","Select","Select","Select",0,{"$f":"IF(N326>VLOOKUP(M326,'Drop Down'!$A$3:$B$10,2,0),\"1\",\"0\")","v":"0"},0,0,{"$f":"IFERROR(IF(M326=\"Select\",\"Select Support Level\", PRODUCT($Q326,VLOOKUP($J326,'Drop Down'!K:M,3,0))),\"-\")","v":"Select Support Level"},"Ok",0,0]
["Select","-","-","-","-","Select",null,"DD/MM/YYYY","DD/MM/YYYY","Select","Select","Select","Select",0,{"$f":"IF(N327>VLOOKUP(M327,'Drop Down'!$A$3:$B$10,2,0),\"1\",\"0\")","v":"0"},0,0,{"$f":"IFERROR(IF(M327=\"Select\",\"Select Support Level\", PRODUCT($Q327,VLOOKUP($J327,'Drop Down'!K:M,3,0))),\"-\")","v":"Select Support Level"},"Ok",0,0]
["Select","-","-","-","-","Select",null,"DD/MM/YYYY","DD/MM/YYYY","Select","Select","Select","Select",0,{"$f":"IF(N328>VLOOKUP(M328,'Drop Down'!$A$3:$B$10,2,0),\"1\",\"0\")","v":"0"},0,0,{"$f":"IFERROR(IF(M328=\"Select\",\"Select Support Level\", PRODUCT($Q328,VLOOKUP($J328,'Drop Down'!K:M,3,0))),\"-\")","v":"Select Support Level"},"Ok",0,0]
["Select","-","-","-","-","Select",null,"DD/MM/YYYY","DD/MM/YYYY","Select","Select","Select","Select",0,{"$f":"IF(N329>VLOOKUP(M329,'Drop Down'!$A$3:$B$10,2,0),\"1\",\"0\")","v":"0"},0,0,{"$f":"IFERROR(IF(M329=\"Select\",\"Select Support Level\", PRODUCT($Q329,VLOOKUP($J329,'Drop Down'!K:M,3,0))),\"-\")","v":"Select Support Level"},"Ok",0,0]
["Select","-","-","-","-","Select",null,"DD/MM/YYYY","DD/MM/YYYY","Select","Select","Select","Select",0,{"$f":"IF(N330>VLOOKUP(M330,'Drop Down'!$A$3:$B$10,2,0),\"1\",\"0\")","v":"0"},0,0,{"$f":"IFERROR(IF(M330=\"Select\",\"Select Support Level\", PRODUCT($Q330,VLOOKUP($J330,'Drop Down'!K:M,3,0))),\"-\")","v":"Select Support Level"},"Ok",0,0]
["Select","-","-","-","-","Select",null,"DD/MM/YYYY","DD/MM/YYYY","Select","Select","Select","Select",0,{"$f":"IF(N331>VLOOKUP(M331,'Drop Down'!$A$3:$B$10,2,0),\"1\",\"0\")","v":"0"},0,0,{"$f":"IFERROR(IF(M331=\"Select\",\"Select Support Level\", PRODUCT($Q331,VLOOKUP($J331,'Drop Down'!K:M,3,0))),\"-\")","v":"Select Support Level"},"Ok",0,0]
["Select","-","-","-","-","Select",null,"DD/MM/YYYY","DD/MM/YYYY","Select","Select","Select","Select",0,{"$f":"IF(N332>VLOOKUP(M332,'Drop Down'!$A$3:$B$10,2,0),\"1\",\"0\")","v":"0"},0,0,{"$f":"IFERROR(IF(M332=\"Select\",\"Select Support Level\", PRODUCT($Q332,VLOOKUP($J332,'Drop Down'!K:M,3,0))),\"-\")","v":"Select Support Level"},"Ok",0,0]
["Select","-","-","-","-","Select",null,"DD/MM/YYYY","DD/MM/YYYY","Select","Select","Select","Select",0,{"$f":"IF(N333>VLOOKUP(M333,'Drop Down'!$A$3:$B$10,2,0),\"1\",\"0\")","v":"0"},0,0,{"$f":"IFERROR(IF(M333=\"Select\",\"Select Support Level\", PRODUCT($Q333,VLOOKUP($J333,'Drop Down'!K:M,3,0))),\"-\")","v":"Select Support Level"},"Ok",0,0]
["Select","-","-","-","-","Select",null,"DD/MM/YYYY","DD/MM/YYYY","Select","Select","Select","Select",0,{"$f":"IF(N334>VLOOKUP(M334,'Drop Down'!$A$3:$B$10,2,0),\"1\",\"0\")","v":"0"},0,0,{"$f":"IFERROR(IF(M334=\"Select\",\"Select Support Level\", PRODUCT($Q334,VLOOKUP($J334,'Drop Down'!K:M,3,0))),\"-\")","v":"Select Support Level"},"Ok",0,0]
["Select","-","-","-","-","Select",null,"DD/MM/YYYY","DD/MM/YYYY","Select","Select","Select","Select",0,{"$f":"IF(N335>VLOOKUP(M335,'Drop Down'!$A$3:$B$10,2,0),\"1\",\"0\")","v":"0"},0,0,{"$f":"IFERROR(IF(M335=\"Select\",\"Select Support Level\", PRODUCT($Q335,VLOOKUP($J335,'Drop Down'!K:M,3,0))),\"-\")","v":"Select Support Level"},"Ok",0,0]
["Select","-","-","-","-","Select",null,"DD/MM/YYYY","DD/MM/YYYY","Select","Select","Select","Select",0,{"$f":"IF(N336>VLOOKUP(M336,'Drop Down'!$A$3:$B$10,2,0),\"1\",\"0\")","v":"0"},0,0,{"$f":"IFERROR(IF(M336=\"Select\",\"Select Support Level\", PRODUCT($Q336,VLOOKUP($J336,'Drop Down'!K:M,3,0))),\"-\")","v":"Select Support Level"},"Ok",0,0]
["Select","-","-","-","-","Select",null,"DD/MM/YYYY","DD/MM/YYYY","Select","Select","Select","Select",0,{"$f":"IF(N337>VLOOKUP(M337,'Drop Down'!$A$3:$B$10,2,0),\"1\",\"0\")","v":"0"},0,0,{"$f":"IFERROR(IF(M337=\"Select\",\"Select Support Level\", PRODUCT($Q337,VLOOKUP($J337,'Drop Down'!K:M,3,0))),\"-\")","v":"Select Support Level"},"Ok",0,0]
["Select","-","-","-","-","Select",null,"DD/MM/YYYY","DD/MM/YYYY","Select","Select","Select","Select",0,{"$f":"IF(N338>VLOOKUP(M338,'Drop Down'!$A$3:$B$10,2,0),\"1\",\"0\")","v":"0"},0,0,{"$f":"IFERROR(IF(M338=\"Select\",\"Select Support Level\", PRODUCT($Q338,VLOOKUP($J338,'Drop Down'!K:M,3,0))),\"-\")","v":"Select Support Level"},"Ok",0,0]
["Select","-","-","-","-","Select",null,"DD/MM/YYYY","DD/MM/YYYY","Select","Select","Select","Select",0,{"$f":"IF(N339>VLOOKUP(M339,'Drop Down'!$A$3:$B$10,2,0),\"1\",\"0\")","v":"0"},0,0,{"$f":"IFERROR(IF(M339=\"Select\",\"Select Support Level\", PRODUCT($Q339,VLOOKUP($J339,'Drop Down'!K:M,3,0))),\"-\")","v":"Select Support Level"},"Ok",0,0]
["Select","-","-","-","-","Select",null,"DD/MM/YYYY","DD/MM/YYYY","Select","Select","Select","Select",0,{"$f":"IF(N340>VLOOKUP(M340,'Drop Down'!$A$3:$B$10,2,0),\"1\",\"0\")","v":"0"},0,0,{"$f":"IFERROR(IF(M340=\"Select\",\"Select Support Level\", PRODUCT($Q340,VLOOKUP($J340,'Drop Down'!K:M,3,0))),\"-\")","v":"Select Support Level"},"Ok",0,0]
["Select","-","-","-","-","Select",null,"DD/MM/YYYY","DD/MM/YYYY","Select","Select","Select","Select",0,{"$f":"IF(N341>VLOOKUP(M341,'Drop Down'!$A$3:$B$10,2,0),\"1\",\"0\")","v":"0"},0,0,{"$f":"IFERROR(IF(M341=\"Select\",\"Select Support Level\", PRODUCT($Q341,VLOOKUP($J341,'Drop Down'!K:M,3,0))),\"-\")","v":"Select Support Level"},"Ok",0,0]
["Select","-","-","-","-","Select",null,"DD/MM/YYYY","DD/MM/YYYY","Select","Select","Select","Select",0,{"$f":"IF(N342>VLOOKUP(M342,'Drop Down'!$A$3:$B$10,2,0),\"1\",\"0\")","v":"0"},0,0,{"$f":"IFERROR(IF(M342=\"Select\",\"Select Support Level\", PRODUCT($Q342,VLOOKUP($J342,'Drop Down'!K:M,3,0))),\"-\")","v":"Select Support Level"},"Ok",0,0]
["Select","-","-","-","-","Select",null,"DD/MM/YYYY","DD/MM/YYYY","Select","Select","Select","Select",0,{"$f":"IF(N343>VLOOKUP(M343,'Drop Down'!$A$3:$B$10,2,0),\"1\",\"0\")","v":"0"},0,0,{"$f":"IFERROR(IF(M343=\"Select\",\"Select Support Level\", PRODUCT($Q343,VLOOKUP($J343,'Drop Down'!K:M,3,0))),\"-\")","v":"Select Support Level"},"Ok",0,0]
["Select","-","-","-","-","Select",null,"DD/MM/YYYY","DD/MM/YYYY","Select","Select","Select","Select",0,{"$f":"IF(N344>VLOOKUP(M344,'Drop Down'!$A$3:$B$10,2,0),\"1\",\"0\")","v":"0"},0,0,{"$f":"IFERROR(IF(M344=\"Select\",\"Select Support Level\", PRODUCT($Q344,VLOOKUP($J344,'Drop Down'!K:M,3,0))),\"-\")","v":"Select Support Level"},"Ok",0,0]
["Select","-","-","-","-","Select",null,"DD/MM/YYYY","DD/MM/YYYY","Select","Select","Select","Select",0,{"$f":"IF(N345>VLOOKUP(M345,'Drop Down'!$A$3:$B$10,2,0),\"1\",\"0\")","v":"0"},0,0,{"$f":"IFERROR(IF(M345=\"Select\",\"Select Support Level\", PRODUCT($Q345,VLOOKUP($J345,'Drop Down'!K:M,3,0))),\"-\")","v":"Select Support Level"},"Ok",0,0]
["Select","-","-","-","-","Select",null,"DD/MM/YYYY","DD/MM/YYYY","Select","Select","Select","Select",0,{"$f":"IF(N346>VLOOKUP(M346,'Drop Down'!$A$3:$B$10,2,0),\"1\",\"0\")","v":"0"},0,0,{"$f":"IFERROR(IF(M346=\"Select\",\"Select Support Level\", PRODUCT($Q346,VLOOKUP($J346,'Drop Down'!K:M,3,0))),\"-\")","v":"Select Support Level"},"Ok",0,0]
["Select","-","-","-","-","Select",null,"DD/MM/YYYY","DD/MM/YYYY","Select","Select","Select","Select",0,{"$f":"IF(N347>VLOOKUP(M347,'Drop Down'!$A$3:$B$10,2,0),\"1\",\"0\")","v":"0"},0,0,{"$f":"IFERROR(IF(M347=\"Select\",\"Select Support Level\", PRODUCT($Q347,VLOOKUP($J347,'Drop Down'!K:M,3,0))),\"-\")","v":"Select Support Level"},"Ok",0,0]
["Select","-","-","-","-","Select",null,"DD/MM/YYYY","DD/MM/YYYY","Select","Select","Select","Select",0,{"$f":"IF(N348>VLOOKUP(M348,'Drop Down'!$A$3:$B$10,2,0),\"1\",\"0\")","v":"0"},0,0,{"$f":"IFERROR(IF(M348=\"Select\",\"Select Support Level\", PRODUCT($Q348,VLOOKUP($J348,'Drop Down'!K:M,3,0))),\"-\")","v":"Select Support Level"},"Ok",0,0]
["Select","-","-","-","-","Select",null,"DD/MM/YYYY","DD/MM/YYYY","Select","Select","Select","Select",0,{"$f":"IF(N349>VLOOKUP(M349,'Drop Down'!$A$3:$B$10,2,0),\"1\",\"0\")","v":"0"},0,0,{"$f":"IFERROR(IF(M349=\"Select\",\"Select Support Level\", PRODUCT($Q349,VLOOKUP($J349,'Drop Down'!K:M,3,0))),\"-\")","v":"Select Support Level"},"Ok",0,0]
["Select","-","-","-","-","Select",null,"DD/MM/YYYY","DD/MM/YYYY","Select","Select","Select","Select",0,{"$f":"IF(N350>VLOOKUP(M350,'Drop Down'!$A$3:$B$10,2,0),\"1\",\"0\")","v":"0"},0,0,{"$f":"IFERROR(IF(M350=\"Select\",\"Select Support Level\", PRODUCT($Q350,VLOOKUP($J350,'Drop Down'!K:M,3,0))),\"-\")","v":"Select Support Level"},"Ok",0,0]
["Select","-","-","-","-","Select",null,"DD/MM/YYYY","DD/MM/YYYY","Select","Select","Select","Select",0,{"$f":"IF(N351>VLOOKUP(M351,'Drop Down'!$A$3:$B$10,2,0),\"1\",\"0\")","v":"0"},0,0,{"$f":"IFERROR(IF(M351=\"Select\",\"Select Support Level\", PRODUCT($Q351,VLOOKUP($J351,'Drop Down'!K:M,3,0))),\"-\")","v":"Select Support Level"},"Ok",0,0]
["Select","-","-","-","-","Select",null,"DD/MM/YYYY","DD/MM/YYYY","Select","Select","Select","Select",0,{"$f":"IF(N352>VLOOKUP(M352,'Drop Down'!$A$3:$B$10,2,0),\"1\",\"0\")","v":"0"},0,0,{"$f":"IFERROR(IF(M352=\"Select\",\"Select Support Level\", PRODUCT($Q352,VLOOKUP($J352,'Drop Down'!K:M,3,0))),\"-\")","v":"Select Support Level"},"Ok",0,0]
["Select","-","-","-","-","Select",null,"DD/MM/YYYY","DD/MM/YYYY","Select","Select","Select","Select",0,{"$f":"IF(N353>VLOOKUP(M353,'Drop Down'!$A$3:$B$10,2,0),\"1\",\"0\")","v":"0"},0,0,{"$f":"IFERROR(IF(M353=\"Select\",\"Select Support Level\", PRODUCT($Q353,VLOOKUP($J353,'Drop Down'!K:M,3,0))),\"-\")","v":"Select Support Level"},"Ok",0,0]
["Select","-","-","-","-","Select",null,"DD/MM/YYYY","DD/MM/YYYY","Select","Select","Select","Select",0,{"$f":"IF(N354>VLOOKUP(M354,'Drop Down'!$A$3:$B$10,2,0),\"1\",\"0\")","v":"0"},0,0,{"$f":"IFERROR(IF(M354=\"Select\",\"Select Support Level\", PRODUCT($Q354,VLOOKUP($J354,'Drop Down'!K:M,3,0))),\"-\")","v":"Select Support Level"},"Ok",0,0]
["Select","-","-","-","-","Select",null,"DD/MM/YYYY","DD/MM/YYYY","Select","Select","Select","Select",0,{"$f":"IF(N355>VLOOKUP(M355,'Drop Down'!$A$3:$B$10,2,0),\"1\",\"0\")","v":"0"},0,0,{"$f":"IFERROR(IF(M355=\"Select\",\"Select Support Level\", PRODUCT($Q355,VLOOKUP($J355,'Drop Down'!K:M,3,0))),\"-\")","v":"Select Support Level"},"Ok",0,0]
["Select","-","-","-","-","Select",null,"DD/MM/YYYY","DD/MM/YYYY","Select","Select","Select","Select",0,{"$f":"IF(N356>VLOOKUP(M356,'Drop Down'!$A$3:$B$10,2,0),\"1\",\"0\")","v":"0"},0,0,{"$f":"IFERROR(IF(M356=\"Select\",\"Select Support Level\", PRODUCT($Q356,VLOOKUP($J356,'Drop Down'!K:M,3,0))),\"-\")","v":"Select Support Level"},"Ok",0,0]
["Select","-","-","-","-","Select",null,"DD/MM/YYYY","DD/MM/YYYY","Select","Select","Select","Select",0,{"$f":"IF(N357>VLOOKUP(M357,'Drop Down'!$A$3:$B$10,2,0),\"1\",\"0\")","v":"0"},0,0,{"$f":"IFERROR(IF(M357=\"Select\",\"Select Support Level\", PRODUCT($Q357,VLOOKUP($J357,'Drop Down'!K:M,3,0))),\"-\")","v":"Select Support Level"},"Ok",0,0]
["Select","-","-","-","-","Select",null,"DD/MM/YYYY","DD/MM/YYYY","Select","Select","Select","Select",0,{"$f":"IF(N358>VLOOKUP(M358,'Drop Down'!$A$3:$B$10,2,0),\"1\",\"0\")","v":"0"},0,0,{"$f":"IFERROR(IF(M358=\"Select\",\"Select Support Level\", PRODUCT($Q358,VLOOKUP($J358,'Drop Down'!K:M,3,0))),\"-\")","v":"Select Support Level"},"Ok",0,0]
["Select","-","-","-","-","Select",null,"DD/MM/YYYY","DD/MM/YYYY","Select","Select","Select","Select",0,{"$f":"IF(N359>VLOOKUP(M359,'Drop Down'!$A$3:$B$10,2,0),\"1\",\"0\")","v":"0"},0,0,{"$f":"IFERROR(IF(M359=\"Select\",\"Select Support Level\", PRODUCT($Q359,VLOOKUP($J359,'Drop Down'!K:M,3,0))),\"-\")","v":"Select Support Level"},"Ok",0,0]
["Select","-","-","-","-","Select",null,"DD/MM/YYYY","DD/MM/YYYY","Select","Select","Select","Select",0,{"$f":"IF(N360>VLOOKUP(M360,'Drop Down'!$A$3:$B$10,2,0),\"1\",\"0\")","v":"0"},0,0,{"$f":"IFERROR(IF(M360=\"Select\",\"Select Support Level\", PRODUCT($Q360,VLOOKUP($J360,'Drop Down'!K:M,3,0))),\"-\")","v":"Select Support Level"},"Ok",0,0]
["Select","-","-","-","-","Select",null,"DD/MM/YYYY","DD/MM/YYYY","Select","Select","Select","Select",0,{"$f":"IF(N361>VLOOKUP(M361,'Drop Down'!$A$3:$B$10,2,0),\"1\",\"0\")","v":"0"},0,0,{"$f":"IFERROR(IF(M361=\"Select\",\"Select Support Level\", PRODUCT($Q361,VLOOKUP($J361,'Drop Down'!K:M,3,0))),\"-\")","v":"Select Support Level"},"Ok",0,0]
["Select","-","-","-","-","Select",null,"DD/MM/YYYY","DD/MM/YYYY","Select","Select","Select","Select",0,{"$f":"IF(N362>VLOOKUP(M362,'Drop Down'!$A$3:$B$10,2,0),\"1\",\"0\")","v":"0"},0,0,{"$f":"IFERROR(IF(M362=\"Select\",\"Select Support Level\", PRODUCT($Q362,VLOOKUP($J362,'Drop Down'!K:M,3,0))),\"-\")","v":"Select Support Level"},"Ok",0,0]
["Select","-","-","-","-","Select",null,"DD/MM/YYYY","DD/MM/YYYY","Select","Select","Select","Select",0,{"$f":"IF(N363>VLOOKUP(M363,'Drop Down'!$A$3:$B$10,2,0),\"1\",\"0\")","v":"0"},0,0,{"$f":"IFERROR(IF(M363=\"Select\",\"Select Support Level\", PRODUCT($Q363,VLOOKUP($J363,'Drop Down'!K:M,3,0))),\"-\")","v":"Select Support Level"},"Ok",0,0]
["Select","-","-","-","-","Select",null,"DD/MM/YYYY","DD/MM/YYYY","Select","Select","Select","Select",0,{"$f":"IF(N364>VLOOKUP(M364,'Drop Down'!$A$3:$B$10,2,0),\"1\",\"0\")","v":"0"},0,0,{"$f":"IFERROR(IF(M364=\"Select\",\"Select Support Level\", PRODUCT($Q364,VLOOKUP($J364,'Drop Down'!K:M,3,0))),\"-\")","v":"Select Support Level"},"Ok",0,0]
["Select","-","-","-","-","Select",null,"DD/MM/YYYY","DD/MM/YYYY","Select","Select","Select","Select",0,{"$f":"IF(N365>VLOOKUP(M365,'Drop Down'!$A$3:$B$10,2,0),\"1\",\"0\")","v":"0"},0,0,{"$f":"IFERROR(IF(M365=\"Select\",\"Select Support Level\", PRODUCT($Q365,VLOOKUP($J365,'Drop Down'!K:M,3,0))),\"-\")","v":"Select Support Level"},"Ok",0,0]
["Select","-","-","-","-","Select",null,"DD/MM/YYYY","DD/MM/YYYY","Select","Select","Select","Select",0,{"$f":"IF(N366>VLOOKUP(M366,'Drop Down'!$A$3:$B$10,2,0),\"1\",\"0\")","v":"0"},0,0,{"$f":"IFERROR(IF(M366=\"Select\",\"Select Support Level\", PRODUCT($Q366,VLOOKUP($J366,'Drop Down'!K:M,3,0))),\"-\")","v":"Select Support Level"},"Ok",0,0]
["Select","-","-","-","-","Select",null,"DD/MM/YYYY","DD/MM/YYYY","Select","Select","Select","Select",0,{"$f":"IF(N367>VLOOKUP(M367,'Drop Down'!$A$3:$B$10,2,0),\"1\",\"0\")","v":"0"},0,0,{"$f":"IFERROR(IF(M367=\"Select\",\"Select Support Level\", PRODUCT($Q367,VLOOKUP($J367,'Drop Down'!K:M,3,0))),\"-\")","v":"Select Support Level"},"Ok",0,0]
["Select","-","-","-","-","Select",null,"DD/MM/YYYY","DD/MM/YYYY","Select","Select","Select","Select",0,{"$f":"IF(N368>VLOOKUP(M368,'Drop Down'!$A$3:$B$10,2,0),\"1\",\"0\")","v":"0"},0,0,{"$f":"IFERROR(IF(M368=\"Select\",\"Select Support Level\", PRODUCT($Q368,VLOOKUP($J368,'Drop Down'!K:M,3,0))),\"-\")","v":"Select Support Level"},"Ok",0,0]
["Select","-","-","-","-","Select",null,"DD/MM/YYYY","DD/MM/YYYY","Select","Select","Select","Select",0,{"$f":"IF(N369>VLOOKUP(M369,'Drop Down'!$A$3:$B$10,2,0),\"1\",\"0\")","v":"0"},0,0,{"$f":"IFERROR(IF(M369=\"Select\",\"Select Support Level\", PRODUCT($Q369,VLOOKUP($J369,'Drop Down'!K:M,3,0))),\"-\")","v":"Select Support Level"},"Ok",0,0]
["Select","-","-","-","-","Select",null,"DD/MM/YYYY","DD/MM/YYYY","Select","Select","Select","Select",0,{"$f":"IF(N370>VLOOKUP(M370,'Drop Down'!$A$3:$B$10,2,0),\"1\",\"0\")","v":"0"},0,0,{"$f":"IFERROR(IF(M370=\"Select\",\"Select Support Level\", PRODUCT($Q370,VLOOKUP($J370,'Drop Down'!K:M,3,0))),\"-\")","v":"Select Support Level"},"Ok",0,0]
["Select","-","-","-","-","Select",null,"DD/MM/YYYY","DD/MM/YYYY","Select","Select","Select","Select",0,{"$f":"IF(N371>VLOOKUP(M371,'Drop Down'!$A$3:$B$10,2,0),\"1\",\"0\")","v":"0"},0,0,{"$f":"IFERROR(IF(M371=\"Select\",\"Select Support Level\", PRODUCT($Q371,VLOOKUP($J371,'Drop Down'!K:M,3,0))),\"-\")","v":"Select Support Level"},"Ok",0,0]
["Select","-","-","-","-","Select",null,"DD/MM/YYYY","DD/MM/YYYY","Select","Select","Select","Select",0,{"$f":"IF(N372>VLOOKUP(M372,'Drop Down'!$A$3:$B$10,2,0),\"1\",\"0\")","v":"0"},0,0,{"$f":"IFERROR(IF(M372=\"Select\",\"Select Support Level\", PRODUCT($Q372,VLOOKUP($J372,'Drop Down'!K:M,3,0))),\"-\")","v":"Select Support Level"},"Ok",0,0]
["Select","-","-","-","-","Select",null,"DD/MM/YYYY","DD/MM/YYYY","Select","Select","Select","Select",0,{"$f":"IF(N373>VLOOKUP(M373,'Drop Down'!$A$3:$B$10,2,0),\"1\",\"0\")","v":"0"},0,0,{"$f":"IFERROR(IF(M373=\"Select\",\"Select Support Level\", PRODUCT($Q373,VLOOKUP($J373,'Drop Down'!K:M,3,0))),\"-\")","v":"Select Support Level"},"Ok",0,0]
["Select","-","-","-","-","Select",null,"DD/MM/YYYY","DD/MM/YYYY","Select","Select","Select","Select",0,{"$f":"IF(N374>VLOOKUP(M374,'Drop Down'!$A$3:$B$10,2,0),\"1\",\"0\")","v":"0"},0,0,{"$f":"IFERROR(IF(M374=\"Select\",\"Select Support Level\", PRODUCT($Q374,VLOOKUP($J374,'Drop Down'!K:M,3,0))),\"-\")","v":"Select Support Level"},"Ok",0,0]
["Select","-","-","-","-","Select",null,"DD/MM/YYYY","DD/MM/YYYY","Select","Select","Select","Select",0,{"$f":"IF(N375>VLOOKUP(M375,'Drop Down'!$A$3:$B$10,2,0),\"1\",\"0\")","v":"0"},0,0,{"$f":"IFERROR(IF(M375=\"Select\",\"Select Support Level\", PRODUCT($Q375,VLOOKUP($J375,'Drop Down'!K:M,3,0))),\"-\")","v":"Select Support Level"},"Ok",0,0]
["Select","-","-","-","-","Select",null,"DD/MM/YYYY","DD/MM/YYYY","Select","Select","Select","Select",0,{"$f":"IF(N376>VLOOKUP(M376,'Drop Down'!$A$3:$B$10,2,0),\"1\",\"0\")","v":"0"},0,0,{"$f":"IFERROR(IF(M376=\"Select\",\"Select Support Level\", PRODUCT($Q376,VLOOKUP($J376,'Drop Down'!K:M,3,0))),\"-\")","v":"Select Support Level"},"Ok",0,0]
["Select","-","-","-","-","Select",null,"DD/MM/YYYY","DD/MM/YYYY","Select","Select","Select","Select",0,{"$f":"IF(N377>VLOOKUP(M377,'Drop Down'!$A$3:$B$10,2,0),\"1\",\"0\")","v":"0"},0,0,{"$f":"IFERROR(IF(M377=\"Select\",\"Select Support Level\", PRODUCT($Q377,VLOOKUP($J377,'Drop Down'!K:M,3,0))),\"-\")","v":"Select Support Level"},"Ok",0,0]
["Select","-","-","-","-","Select",null,"DD/MM/YYYY","DD/MM/YYYY","Select","Select","Select","Select",0,{"$f":"IF(N378>VLOOKUP(M378,'Drop Down'!$A$3:$B$10,2,0),\"1\",\"0\")","v":"0"},0,0,{"$f":"IFERROR(IF(M378=\"Select\",\"Select Support Level\", PRODUCT($Q378,VLOOKUP($J378,'Drop Down'!K:M,3,0))),\"-\")","v":"Select Support Level"},"Ok",0,0]
["Select","-","-","-","-","Select",null,"DD/MM/YYYY","DD/MM/YYYY","Select","Select","Select","Select",0,{"$f":"IF(N379>VLOOKUP(M379,'Drop Down'!$A$3:$B$10,2,0),\"1\",\"0\")","v":"0"},0,0,{"$f":"IFERROR(IF(M379=\"Select\",\"Select Support Level\", PRODUCT($Q379,VLOOKUP($J379,'Drop Down'!K:M,3,0))),\"-\")","v":"Select Support Level"},"Ok",0,0]
["Select","-","-","-","-","Select",null,"DD/MM/YYYY","DD/MM/YYYY","Select","Select","Select","Select",0,{"$f":"IF(N380>VLOOKUP(M380,'Drop Down'!$A$3:$B$10,2,0),\"1\",\"0\")","v":"0"},0,0,{"$f":"IFERROR(IF(M380=\"Select\",\"Select Support Level\", PRODUCT($Q380,VLOOKUP($J380,'Drop Down'!K:M,3,0))),\"-\")","v":"Select Support Level"},"Ok",0,0]
["Select","-","-","-","-","Select",null,"DD/MM/YYYY","DD/MM/YYYY","Select","Select","Select","Select",0,{"$f":"IF(N381>VLOOKUP(M381,'Drop Down'!$A$3:$B$10,2,0),\"1\",\"0\")","v":"0"},0,0,{"$f":"IFERROR(IF(M381=\"Select\",\"Select Support Level\", PRODUCT($Q381,VLOOKUP($J381,'Drop Down'!K:M,3,0))),\"-\")","v":"Select Support Level"},"Ok",0,0]
["Select","-","-","-","-","Select",null,"DD/MM/YYYY","DD/MM/YYYY","Select","Select","Select","Select",0,{"$f":"IF(N382>VLOOKUP(M382,'Drop Down'!$A$3:$B$10,2,0),\"1\",\"0\")","v":"0"},0,0,{"$f":"IFERROR(IF(M382=\"Select\",\"Select Support Level\", PRODUCT($Q382,VLOOKUP($J382,'Drop Down'!K:M,3,0))),\"-\")","v":"Select Support Level"},"Ok",0,0]
["Select","-","-","-","-","Select",null,"DD/MM/YYYY","DD/MM/YYYY","Select","Select","Select","Select",0,{"$f":"IF(N383>VLOOKUP(M383,'Drop Down'!$A$3:$B$10,2,0),\"1\",\"0\")","v":"0"},0,0,{"$f":"IFERROR(IF(M383=\"Select\",\"Select Support Level\", PRODUCT($Q383,VLOOKUP($J383,'Drop Down'!K:M,3,0))),\"-\")","v":"Select Support Level"},"Ok",0,0]
["Select","-","-","-","-","Select",null,"DD/MM/YYYY","DD/MM/YYYY","Select","Select","Select","Select",0,{"$f":"IF(N384>VLOOKUP(M384,'Drop Down'!$A$3:$B$10,2,0),\"1\",\"0\")","v":"0"},0,0,{"$f":"IFERROR(IF(M384=\"Select\",\"Select Support Level\", PRODUCT($Q384,VLOOKUP($J384,'Drop Down'!K:M,3,0))),\"-\")","v":"Select Support Level"},"Ok",0,0]
["Select","-","-","-","-","Select",null,"DD/MM/YYYY","DD/MM/YYYY","Select","Select","Select","Select",0,{"$f":"IF(N385>VLOOKUP(M385,'Drop Down'!$A$3:$B$10,2,0),\"1\",\"0\")","v":"0"},0,0,{"$f":"IFERROR(IF(M385=\"Select\",\"Select Support Level\", PRODUCT($Q385,VLOOKUP($J385,'Drop Down'!K:M,3,0))),\"-\")","v":"Select Support Level"},"Ok",0,0]
["Select","-","-","-","-","Select",null,"DD/MM/YYYY","DD/MM/YYYY","Select","Select","Select","Select",0,{"$f":"IF(N386>VLOOKUP(M386,'Drop Down'!$A$3:$B$10,2,0),\"1\",\"0\")","v":"0"},0,{"$f":"SUM($N386,$P386)","v":0},{"$f":"IFERROR(IF(M386=\"Select\",\"Select Support Level\", PRODUCT($Q386,VLOOKUP($J386,'Drop Down'!K:M,3,0))),\"-\")","v":"Select Support Level"},{"$f":"IF(O386=\"1\",\"Cannot Bill\",\"Ok\")","v":"Ok"},0,{"$f":"IF($T386=\"\",0,ROUND(PRODUCT(T386,0.7),2))","v":0}]
["Select","-","-","-","-","Select",null,"DD/MM/YYYY","DD/MM/YYYY","Select","Select","Select","Select",0,{"$f":"IF(N387>VLOOKUP(M387,'Drop Down'!$A$3:$B$10,2,0),\"1\",\"0\")","v":"0"},0,0,{"$f":"IFERROR(IF(M387=\"Select\",\"Select Support Level\", PRODUCT($Q387,VLOOKUP($J387,'Drop Down'!K:M,3,0))),\"-\")","v":"Select Support Level"},"Ok",0,0]
["Select","-","-","-","-","Select",null,"DD/MM/YYYY","DD/MM/YYYY","Select","Select","Select","Select",0,{"$f":"IF(N388>VLOOKUP(M388,'Drop Down'!$A$3:$B$10,2,0),\"1\",\"0\")","v":"0"},0,0,{"$f":"IFERROR(IF(M388=\"Select\",\"Select Support Level\", PRODUCT($Q388,VLOOKUP($J388,'Drop Down'!K:M,3,0))),\"-\")","v":"Select Support Level"},"Ok",0,0]
["Select","-","-","-","-","Select",null,"DD/MM/YYYY","DD/MM/YYYY","Select","Select","Select","Select",0,{"$f":"IF(N389>VLOOKUP(M389,'Drop Down'!$A$3:$B$10,2,0),\"1\",\"0\")","v":"0"},0,0,{"$f":"IFERROR(IF(M389=\"Select\",\"Select Support Level\", PRODUCT($Q389,VLOOKUP($J389,'Drop Down'!K:M,3,0))),\"-\")","v":"Select Support Level"},"Ok",0,0]
["Select","-","-","-","-","Select",null,"DD/MM/YYYY","DD/MM/YYYY","Select","Select","Select","Select",0,{"$f":"IF(N390>VLOOKUP(M390,'Drop Down'!$A$3:$B$10,2,0),\"1\",\"0\")","v":"0"},0,0,{"$f":"IFERROR(IF(M390=\"Select\",\"Select Support Level\", PRODUCT($Q390,VLOOKUP($J390,'Drop Down'!K:M,3,0))),\"-\")","v":"Select Support Level"},"Ok",0,0]
["Select","-","-","-","-","Select",null,"DD/MM/YYYY","DD/MM/YYYY","Select","Select","Select","Select",0,{"$f":"IF(N391>VLOOKUP(M391,'Drop Down'!$A$3:$B$10,2,0),\"1\",\"0\")","v":"0"},0,0,{"$f":"IFERROR(IF(M391=\"Select\",\"Select Support Level\", PRODUCT($Q391,VLOOKUP($J391,'Drop Down'!K:M,3,0))),\"-\")","v":"Select Support Level"},"Ok",0,0]
["Select","-","-","-","-","Select",null,"DD/MM/YYYY","DD/MM/YYYY","Select","Select","Select","Select",0,{"$f":"IF(N392>VLOOKUP(M392,'Drop Down'!$A$3:$B$10,2,0),\"1\",\"0\")","v":"0"},0,0,{"$f":"IFERROR(IF(M392=\"Select\",\"Select Support Level\", PRODUCT($Q392,VLOOKUP($J392,'Drop Down'!K:M,3,0))),\"-\")","v":"Select Support Level"},"Ok",0,0]
["Select","-","-","-","-","Select",null,"DD/MM/YYYY","DD/MM/YYYY","Select","Select","Select","Select",0,{"$f":"IF(N393>VLOOKUP(M393,'Drop Down'!$A$3:$B$10,2,0),\"1\",\"0\")","v":"0"},0,0,{"$f":"IFERROR(IF(M393=\"Select\",\"Select Support Level\", PRODUCT($Q393,VLOOKUP($J393,'Drop Down'!K:M,3,0))),\"-\")","v":"Select Support Level"},"Ok",0,0]
["Select","-","-","-","-","Select",null,"DD/MM/YYYY","DD/MM/YYYY","Select","Select","Select","Select",0,{"$f":"IF(N394>VLOOKUP(M394,'Drop Down'!$A$3:$B$10,2,0),\"1\",\"0\")","v":"0"},0,0,{"$f":"IFERROR(IF(M394=\"Select\",\"Select Support Level\", PRODUCT($Q394,VLOOKUP($J394,'Drop Down'!K:M,3,0))),\"-\")","v":"Select Support Level"},"Ok",0,0]
["Select","-","-","-","-","Select",null,"DD/MM/YYYY","DD/MM/YYYY","Select","Select","Select","Select",0,{"$f":"IF(N395>VLOOKUP(M395,'Drop Down'!$A$3:$B$10,2,0),\"1\",\"0\")","v":"0"},0,0,{"$f":"IFERROR(IF(M395=\"Select\",\"Select Support Level\", PRODUCT($Q395,VLOOKUP($J395,'Drop Down'!K:M,3,0))),\"-\")","v":"Select Support Level"},"Ok",0,0]
["Select","-","-","-","-","Select",null,"DD/MM/YYYY","DD/MM/YYYY","Select","Select","Select","Select",0,{"$f":"IF(N396>VLOOKUP(M396,'Drop Down'!$A$3:$B$10,2,0),\"1\",\"0\")","v":"0"},0,0,{"$f":"IFERROR(IF(M396=\"Select\",\"Select Support Level\", PRODUCT($Q396,VLOOKUP($J396,'Drop Down'!K:M,3,0))),\"-\")","v":"Select Support Level"},"Ok",0,0]
["Select","-","-","-","-","Select",null,"DD/MM/YYYY","DD/MM/YYYY","Select","Select","Select","Select",0,{"$f":"IF(N397>VLOOKUP(M397,'Drop Down'!$A$3:$B$10,2,0),\"1\",\"0\")","v":"0"},0,0,{"$f":"IFERROR(IF(M397=\"Select\",\"Select Support Level\", PRODUCT($Q397,VLOOKUP($J397,'Drop Down'!K:M,3,0))),\"-\")","v":"Select Support Level"},"Ok",0,0]
["Select","-","-","-","-","Select",null,"DD/MM/YYYY","DD/MM/YYYY","Select","Select","Select","Select",0,{"$f":"IF(N398>VLOOKUP(M398,'Drop Down'!$A$3:$B$10,2,0),\"1\",\"0\")","v":"0"},0,0,{"$f":"IFERROR(IF(M398=\"Select\",\"Select Support Level\", PRODUCT($Q398,VLOOKUP($J398,'Drop Down'!K:M,3,0))),\"-\")","v":"Select Support Level"},"Ok",0,0]
["Select","-","-","-","-","Select",null,"DD/MM/YYYY","DD/MM/YYYY","Select","Select","Select","Select",0,{"$f":"IF(N399>VLOOKUP(M399,'Drop Down'!$A$3:$B$10,2,0),\"1\",\"0\")","v":"0"},0,0,{"$f":"IFERROR(IF(M399=\"Select\",\"Select Support Level\", PRODUCT($Q399,VLOOKUP($J399,'Drop Down'!K:M,3,0))),\"-\")","v":"Select Support Level"},"Ok",0,0]
["Select","-","-","-","-","Select",null,"DD/MM/YYYY","DD/MM/YYYY","Select","Select","Select","Select",0,{"$f":"IF(N400>VLOOKUP(M400,'Drop Down'!$A$3:$B$10,2,0),\"1\",\"0\")","v":"0"},0,0,{"$f":"IFERROR(IF(M400=\"Select\",\"Select Support Level\", PRODUCT($Q400,VLOOKUP($J400,'Drop Down'!K:M,3,0))),\"-\")","v":"Select Support Level"},"Ok",0,0]
["Select","-","-","-","-","Select",null,"DD/MM/YYYY","DD/MM/YYYY","Select","Select","Select","Select",0,{"$f":"IF(N401>VLOOKUP(M401,'Drop Down'!$A$3:$B$10,2,0),\"1\",\"0\")","v":"0"},0,0,{"$f":"IFERROR(IF(M401=\"Select\",\"Select Support Level\", PRODUCT($Q401,VLOOKUP($J401,'Drop Down'!K:M,3,0))),\"-\")","v":"Select Support Level"},"Ok",0,0]
["Select","-","-","-","-","Select",null,"DD/MM/YYYY","DD/MM/YYYY","Select","Select","Select","Select",0,{"$f":"IF(N402>VLOOKUP(M402,'Drop Down'!$A$3:$B$10,2,0),\"1\",\"0\")","v":"0"},0,0,{"$f":"IFERROR(IF(M402=\"Select\",\"Select Support Level\", PRODUCT($Q402,VLOOKUP($J402,'Drop Down'!K:M,3,0))),\"-\")","v":"Select Support Level"},"Ok",0,0]
["Select","-","-","-","-","Select",null,"DD/MM/YYYY","DD/MM/YYYY","Select","Select","Select","Select",0,{"$f":"IF(N403>VLOOKUP(M403,'Drop Down'!$A$3:$B$10,2,0),\"1\",\"0\")","v":"0"},0,0,{"$f":"IFERROR(IF(M403=\"Select\",\"Select Support Level\", PRODUCT($Q403,VLOOKUP($J403,'Drop Down'!K:M,3,0))),\"-\")","v":"Select Support Level"},"Ok",0,0]
["Select","-","-","-","-","Select",null,"DD/MM/YYYY","DD/MM/YYYY","Select","Select","Select","Select",0,{"$f":"IF(N404>VLOOKUP(M404,'Drop Down'!$A$3:$B$10,2,0),\"1\",\"0\")","v":"0"},0,0,{"$f":"IFERROR(IF(M404=\"Select\",\"Select Support Level\", PRODUCT($Q404,VLOOKUP($J404,'Drop Down'!K:M,3,0))),\"-\")","v":"Select Support Level"},"Ok",0,0]
["Select","-","-","-","-","Select",null,"DD/MM/YYYY","DD/MM/YYYY","Select","Select","Select","Select",0,{"$f":"IF(N405>VLOOKUP(M405,'Drop Down'!$A$3:$B$10,2,0),\"1\",\"0\")","v":"0"},0,0,{"$f":"IFERROR(IF(M405=\"Select\",\"Select Support Level\", PRODUCT($Q405,VLOOKUP($J405,'Drop Down'!K:M,3,0))),\"-\")","v":"Select Support Level"},"Ok",0,0]
["Select","-","-","-","-","Select",null,"DD/MM/YYYY","DD/MM/YYYY","Select","Select","Select","Select",0,{"$f":"IF(N406>VLOOKUP(M406,'Drop Down'!$A$3:$B$10,2,0),\"1\",\"0\")","v":"0"},0,0,{"$f":"IFERROR(IF(M406=\"Select\",\"Select Support Level\", PRODUCT($Q406,VLOOKUP($J406,'Drop Down'!K:M,3,0))),\"-\")","v":"Select Support Level"},"Ok",0,0]
["Select","-","-","-","-","Select",null,"DD/MM/YYYY","DD/MM/YYYY","Select","Select","Select","Select",0,{"$f":"IF(N407>VLOOKUP(M407,'Drop Down'!$A$3:$B$10,2,0),\"1\",\"0\")","v":"0"},0,0,{"$f":"IFERROR(IF(M407=\"Select\",\"Select Support Level\", PRODUCT($Q407,VLOOKUP($J407,'Drop Down'!K:M,3,0))),\"-\")","v":"Select Support Level"},"Ok",0,0]
["Select","-","-","-","-","Select",null,"DD/MM/YYYY","DD/MM/YYYY","Select","Select","Select","Select",0,{"$f":"IF(N408>VLOOKUP(M408,'Drop Down'!$A$3:$B$10,2,0),\"1\",\"0\")","v":"0"},0,0,{"$f":"IFERROR(IF(M408=\"Select\",\"Select Support Level\", PRODUCT($Q408,VLOOKUP($J408,'Drop Down'!K:M,3,0))),\"-\")","v":"Select Support Level"},"Ok",0,0]
["Select","-","-","-","-","Select",null,"DD/MM/YYYY","DD/MM/YYYY","Select","Select","Select","Select",0,{"$f":"IF(N409>VLOOKUP(M409,'Drop Down'!$A$3:$B$10,2,0),\"1\",\"0\")","v":"0"},0,0,{"$f":"IFERROR(IF(M409=\"Select\",\"Select Support Level\", PRODUCT($Q409,VLOOKUP($J409,'Drop Down'!K:M,3,0))),\"-\")","v":"Select Support Level"},"Ok",0,0]
["Select","-","-","-","-","Select",null,"DD/MM/YYYY","DD/MM/YYYY","Select","Select","Select","Select",0,{"$f":"IF(N410>VLOOKUP(M410,'Drop Down'!$A$3:$B$10,2,0),\"1\",\"0\")","v":"0"},0,0,{"$f":"IFERROR(IF(M410=\"Select\",\"Select Support Level\", PRODUCT($Q410,VLOOKUP($J410,'Drop Down'!K:M,3,0))),\"-\")","v":"Select Support Level"},"Ok",0,0]
["Select","-","-","-","-","Select",null,"DD/MM/YYYY","DD/MM/YYYY","Select","Select","Select","Select",0,{"$f":"IF(N411>VLOOKUP(M411,'Drop Down'!$A$3:$B$10,2,0),\"1\",\"0\")","v":"0"},0,0,{"$f":"IFERROR(IF(M411=\"Select\",\"Select Support Level\", PRODUCT($Q411,VLOOKUP($J411,'Drop Down'!K:M,3,0))),\"-\")","v":"Select Support Level"},"Ok",0,0]
["Select","-","-","-","-","Select",null,"DD/MM/YYYY","DD/MM/YYYY","Select","Select","Select","Select",0,{"$f":"IF(N412>VLOOKUP(M412,'Drop Down'!$A$3:$B$10,2,0),\"1\",\"0\")","v":"0"},0,0,{"$f":"IFERROR(IF(M412=\"Select\",\"Select Support Level\", PRODUCT($Q412,VLOOKUP($J412,'Drop Down'!K:M,3,0))),\"-\")","v":"Select Support Level"},"Ok",0,0]
["Select","-","-","-","-","Select",null,"DD/MM/YYYY","DD/MM/YYYY","Select","Select","Select","Select",0,{"$f":"IF(N413>VLOOKUP(M413,'Drop Down'!$A$3:$B$10,2,0),\"1\",\"0\")","v":"0"},0,0,{"$f":"IFERROR(IF(M413=\"Select\",\"Select Support Level\", PRODUCT($Q413,VLOOKUP($J413,'Drop Down'!K:M,3,0))),\"-\")","v":"Select Support Level"},"Ok",0,0]
["Select","-","-","-","-","Select",null,"DD/MM/YYYY","DD/MM/YYYY","Select","Select","Select","Select",0,{"$f":"IF(N414>VLOOKUP(M414,'Drop Down'!$A$3:$B$10,2,0),\"1\",\"0\")","v":"0"},0,0,{"$f":"IFERROR(IF(M414=\"Select\",\"Select Support Level\", PRODUCT($Q414,VLOOKUP($J414,'Drop Down'!K:M,3,0))),\"-\")","v":"Select Support Level"},"Ok",0,0]
["Select","-","-","-","-","Select",null,"DD/MM/YYYY","DD/MM/YYYY","Select","Select","Select","Select",0,{"$f":"IF(N415>VLOOKUP(M415,'Drop Down'!$A$3:$B$10,2,0),\"1\",\"0\")","v":"0"},0,0,{"$f":"IFERROR(IF(M415=\"Select\",\"Select Support Level\", PRODUCT($Q415,VLOOKUP($J415,'Drop Down'!K:M,3,0))),\"-\")","v":"Select Support Level"},"Ok",0,0]
["Select","-","-","-","-","Select",null,"DD/MM/YYYY","DD/MM/YYYY","Select","Select","Select","Select",0,{"$f":"IF(N416>VLOOKUP(M416,'Drop Down'!$A$3:$B$10,2,0),\"1\",\"0\")","v":"0"},0,0,{"$f":"IFERROR(IF(M416=\"Select\",\"Select Support Level\", PRODUCT($Q416,VLOOKUP($J416,'Drop Down'!K:M,3,0))),\"-\")","v":"Select Support Level"},"Ok",0,0]
["Select","-","-","-","-","Select",null,"DD/MM/YYYY","DD/MM/YYYY","Select","Select","Select","Select",0,{"$f":"IF(N417>VLOOKUP(M417,'Drop Down'!$A$3:$B$10,2,0),\"1\",\"0\")","v":"0"},0,0,{"$f":"IFERROR(IF(M417=\"Select\",\"Select Support Level\", PRODUCT($Q417,VLOOKUP($J417,'Drop Down'!K:M,3,0))),\"-\")","v":"Select Support Level"},"Ok",0,0]
["Select","-","-","-","-","Select",null,"DD/MM/YYYY","DD/MM/YYYY","Select","Select","Select","Select",0,{"$f":"IF(N418>VLOOKUP(M418,'Drop Down'!$A$3:$B$10,2,0),\"1\",\"0\")","v":"0"},0,0,{"$f":"IFERROR(IF(M418=\"Select\",\"Select Support Level\", PRODUCT($Q418,VLOOKUP($J418,'Drop Down'!K:M,3,0))),\"-\")","v":"Select Support Level"},"Ok",0,0]
["Select","-","-","-","-","Select",null,"DD/MM/YYYY","DD/MM/YYYY","Select","Select","Select","Select",0,{"$f":"IF(N419>VLOOKUP(M419,'Drop Down'!$A$3:$B$10,2,0),\"1\",\"0\")","v":"0"},0,0,{"$f":"IFERROR(IF(M419=\"Select\",\"Select Support Level\", PRODUCT($Q419,VLOOKUP($J419,'Drop Down'!K:M,3,0))),\"-\")","v":"Select Support Level"},"Ok",0,0]
["Select","-","-","-","-","Select",null,"DD/MM/YYYY","DD/MM/YYYY","Select","Select","Select","Select",0,{"$f":"IF(N420>VLOOKUP(M420,'Drop Down'!$A$3:$B$10,2,0),\"1\",\"0\")","v":"0"},0,0,{"$f":"IFERROR(IF(M420=\"Select\",\"Select Support Level\", PRODUCT($Q420,VLOOKUP($J420,'Drop Down'!K:M,3,0))),\"-\")","v":"Select Support Level"},"Ok",0,0]
["Select","-","-","-","-","Select",null,"DD/MM/YYYY","DD/MM/YYYY","Select","Select","Select","Select",0,{"$f":"IF(N421>VLOOKUP(M421,'Drop Down'!$A$3:$B$10,2,0),\"1\",\"0\")","v":"0"},0,0,{"$f":"IFERROR(IF(M421=\"Select\",\"Select Support Level\", PRODUCT($Q421,VLOOKUP($J421,'Drop Down'!K:M,3,0))),\"-\")","v":"Select Support Level"},"Ok",0,0]
["Select","-","-","-","-","Select",null,"DD/MM/YYYY","DD/MM/YYYY","Select","Select","Select","Select",0,{"$f":"IF(N422>VLOOKUP(M422,'Drop Down'!$A$3:$B$10,2,0),\"1\",\"0\")","v":"0"},0,0,{"$f":"IFERROR(IF(M422=\"Select\",\"Select Support Level\", PRODUCT($Q422,VLOOKUP($J422,'Drop Down'!K:M,3,0))),\"-\")","v":"Select Support Level"},"Ok",0,0]
["Select","-","-","-","-","Select",null,"DD/MM/YYYY","DD/MM/YYYY","Select","Select","Select","Select",0,{"$f":"IF(N423>VLOOKUP(M423,'Drop Down'!$A$3:$B$10,2,0),\"1\",\"0\")","v":"0"},0,0,{"$f":"IFERROR(IF(M423=\"Select\",\"Select Support Level\", PRODUCT($Q423,VLOOKUP($J423,'Drop Down'!K:M,3,0))),\"-\")","v":"Select Support Level"},"Ok",0,0]
["Select","-","-","-","-","Select",null,"DD/MM/YYYY","DD/MM/YYYY","Select","Select","Select","Select",0,{"$f":"IF(N424>VLOOKUP(M424,'Drop Down'!$A$3:$B$10,2,0),\"1\",\"0\")","v":"0"},0,0,{"$f":"IFERROR(IF(M424=\"Select\",\"Select Support Level\", PRODUCT($Q424,VLOOKUP($J424,'Drop Down'!K:M,3,0))),\"-\")","v":"Select Support Level"},"Ok",0,0]
["Select","-","-","-","-","Select",null,"DD/MM/YYYY","DD/MM/YYYY","Select","Select","Select","Select",0,{"$f":"IF(N425>VLOOKUP(M425,'Drop Down'!$A$3:$B$10,2,0),\"1\",\"0\")","v":"0"},0,0,{"$f":"IFERROR(IF(M425=\"Select\",\"Select Support Level\", PRODUCT($Q425,VLOOKUP($J425,'Drop Down'!K:M,3,0))),\"-\")","v":"Select Support Level"},"Ok",0,0]
["Select","-","-","-","-","Select",null,"DD/MM/YYYY","DD/MM/YYYY","Select","Select","Select","Select",0,{"$f":"IF(N426>VLOOKUP(M426,'Drop Down'!$A$3:$B$10,2,0),\"1\",\"0\")","v":"0"},0,0,{"$f":"IFERROR(IF(M426=\"Select\",\"Select Support Level\", PRODUCT($Q426,VLOOKUP($J426,'Drop Down'!K:M,3,0))),\"-\")","v":"Select Support Level"},"Ok",0,0]
["Select","-","-","-","-","Select",null,"DD/MM/YYYY","DD/MM/YYYY","Select","Select","Select","Select",0,{"$f":"IF(N427>VLOOKUP(M427,'Drop Down'!$A$3:$B$10,2,0),\"1\",\"0\")","v":"0"},0,0,{"$f":"IFERROR(IF(M427=\"Select\",\"Select Support Level\", PRODUCT($Q427,VLOOKUP($J427,'Drop Down'!K:M,3,0))),\"-\")","v":"Select Support Level"},"Ok",0,0]
["Select","-","-","-","-","Select",null,"DD/MM/YYYY","DD/MM/YYYY","Select","Select","Select","Select",0,{"$f":"IF(N428>VLOOKUP(M428,'Drop Down'!$A$3:$B$10,2,0),\"1\",\"0\")","v":"0"},0,0,{"$f":"IFERROR(IF(M428=\"Select\",\"Select Support Level\", PRODUCT($Q428,VLOOKUP($J428,'Drop Down'!K:M,3,0))),\"-\")","v":"Select Support Level"},"Ok",0,0]
["Select","-","-","-","-","Select",null,"DD/MM/YYYY","DD/MM/YYYY","Select","Select","Select","Select",0,{"$f":"IF(N429>VLOOKUP(M429,'Drop Down'!$A$3:$B$10,2,0),\"1\",\"0\")","v":"0"},0,0,{"$f":"IFERROR(IF(M429=\"Select\",\"Select Support Level\", PRODUCT($Q429,VLOOKUP($J429,'Drop Down'!K:M,3,0))),\"-\")","v":"Select Support Level"},"Ok",0,0]
["Select","-","-","-","-","Select",null,"DD/MM/YYYY","DD/MM/YYYY","Select","Select","Select","Select",0,{"$f":"IF(N430>VLOOKUP(M430,'Drop Down'!$A$3:$B$10,2,0),\"1\",\"0\")","v":"0"},0,0,{"$f":"IFERROR(IF(M430=\"Select\",\"Select Support Level\", PRODUCT($Q430,VLOOKUP($J430,'Drop Down'!K:M,3,0))),\"-\")","v":"Select Support Level"},"Ok",0,0]
["Select","-","-","-","-","Select",null,"DD/MM/YYYY","DD/MM/YYYY","Select","Select","Select","Select",0,{"$f":"IF(N431>VLOOKUP(M431,'Drop Down'!$A$3:$B$10,2,0),\"1\",\"0\")","v":"0"},0,0,{"$f":"IFERROR(IF(M431=\"Select\",\"Select Support Level\", PRODUCT($Q431,VLOOKUP($J431,'Drop Down'!K:M,3,0))),\"-\")","v":"Select Support Level"},"Ok",0,0]
["Select","-","-","-","-","Select",null,"DD/MM/YYYY","DD/MM/YYYY","Select","Select","Select","Select",0,{"$f":"IF(N432>VLOOKUP(M432,'Drop Down'!$A$3:$B$10,2,0),\"1\",\"0\")","v":"0"},0,0,{"$f":"IFERROR(IF(M432=\"Select\",\"Select Support Level\", PRODUCT($Q432,VLOOKUP($J432,'Drop Down'!K:M,3,0))),\"-\")","v":"Select Support Level"},"Ok",0,0]
["Select","-","-","-","-","Select",null,"DD/MM/YYYY","DD/MM/YYYY","Select","Select","Select","Select",0,{"$f":"IF(N433>VLOOKUP(M433,'Drop Down'!$A$3:$B$10,2,0),\"1\",\"0\")","v":"0"},0,0,{"$f":"IFERROR(IF(M433=\"Select\",\"Select Support Level\", PRODUCT($Q433,VLOOKUP($J433,'Drop Down'!K:M,3,0))),\"-\")","v":"Select Support Level"},"Ok",0,0]
["Select","-","-","-","-","Select",null,"DD/MM/YYYY","DD/MM/YYYY","Select","Select","Select","Select",0,{"$f":"IF(N434>VLOOKUP(M434,'Drop Down'!$A$3:$B$10,2,0),\"1\",\"0\")","v":"0"},0,0,{"$f":"IFERROR(IF(M434=\"Select\",\"Select Support Level\", PRODUCT($Q434,VLOOKUP($J434,'Drop Down'!K:M,3,0))),\"-\")","v":"Select Support Level"},"Ok",0,0]
["Select","-","-","-","-","Select",null,"DD/MM/YYYY","DD/MM/YYYY","Select","Select","Select","Select",0,{"$f":"IF(N435>VLOOKUP(M435,'Drop Down'!$A$3:$B$10,2,0),\"1\",\"0\")","v":"0"},0,0,{"$f":"IFERROR(IF(M435=\"Select\",\"Select Support Level\", PRODUCT($Q435,VLOOKUP($J435,'Drop Down'!K:M,3,0))),\"-\")","v":"Select Support Level"},"Ok",0,0]
["Select","-","-","-","-","Select",null,"DD/MM/YYYY","DD/MM/YYYY","Select","Select","Select","Select",0,{"$f":"IF(N436>VLOOKUP(M436,'Drop Down'!$A$3:$B$10,2,0),\"1\",\"0\")","v":"0"},0,0,{"$f":"IFERROR(IF(M436=\"Select\",\"Select Support Level\", PRODUCT($Q436,VLOOKUP($J436,'Drop Down'!K:M,3,0))),\"-\")","v":"Select Support Level"},"Ok",0,0]
["Select","-","-","-","-","Select",null,"DD/MM/YYYY","DD/MM/YYYY","Select","Select","Select","Select",0,{"$f":"IF(N437>VLOOKUP(M437,'Drop Down'!$A$3:$B$10,2,0),\"1\",\"0\")","v":"0"},0,0,{"$f":"IFERROR(IF(M437=\"Select\",\"Select Support Level\", PRODUCT($Q437,VLOOKUP($J437,'Drop Down'!K:M,3,0))),\"-\")","v":"Select Support Level"},"Ok",0,0]
["Select","-","-","-","-","Select",null,"DD/MM/YYYY","DD/MM/YYYY","Select","Select","Select","Select",0,{"$f":"IF(N438>VLOOKUP(M438,'Drop Down'!$A$3:$B$10,2,0),\"1\",\"0\")","v":"0"},0,0,{"$f":"IFERROR(IF(M438=\"Select\",\"Select Support Level\", PRODUCT($Q438,VLOOKUP($J438,'Drop Down'!K:M,3,0))),\"-\")","v":"Select Support Level"},"Ok",0,0]
["Select","-","-","-","-","Select",null,"DD/MM/YYYY","DD/MM/YYYY","Select","Select","Select","Select",0,{"$f":"IF(N439>VLOOKUP(M439,'Drop Down'!$A$3:$B$10,2,0),\"1\",\"0\")","v":"0"},0,0,{"$f":"IFERROR(IF(M439=\"Select\",\"Select Support Level\", PRODUCT($Q439,VLOOKUP($J439,'Drop Down'!K:M,3,0))),\"-\")","v":"Select Support Level"},"Ok",0,0]
["Select","-","-","-","-","Select",null,"DD/MM/YYYY","DD/MM/YYYY","Select","Select","Select","Select",0,{"$f":"IF(N440>VLOOKUP(M440,'Drop Down'!$A$3:$B$10,2,0),\"1\",\"0\")","v":"0"},0,0,{"$f":"IFERROR(IF(M440=\"Select\",\"Select Support Level\", PRODUCT($Q440,VLOOKUP($J440,'Drop Down'!K:M,3,0))),\"-\")","v":"Select Support Level"},"Ok",0,0]
["Select","-","-","-","-","Select",null,"DD/MM/YYYY","DD/MM/YYYY","Select","Select","Select","Select",0,{"$f":"IF(N441>VLOOKUP(M441,'Drop Down'!$A$3:$B$10,2,0),\"1\",\"0\")","v":"0"},0,0,{"$f":"IFERROR(IF(M441=\"Select\",\"Select Support Level\", PRODUCT($Q441,VLOOKUP($J441,'Drop Down'!K:M,3,0))),\"-\")","v":"Select Support Level"},"Ok",0,0]
["Select","-","-","-","-","Select",null,"DD/MM/YYYY","DD/MM/YYYY","Select","Select","Select","Select",0,{"$f":"IF(N442>VLOOKUP(M442,'Drop Down'!$A$3:$B$10,2,0),\"1\",\"0\")","v":"0"},0,0,{"$f":"IFERROR(IF(M442=\"Select\",\"Select Support Level\", PRODUCT($Q442,VLOOKUP($J442,'Drop Down'!K:M,3,0))),\"-\")","v":"Select Support Level"},"Ok",0,0]
["Select","-","-","-","-","Select",null,"DD/MM/YYYY","DD/MM/YYYY","Select","Select","Select","Select",0,{"$f":"IF(N443>VLOOKUP(M443,'Drop Down'!$A$3:$B$10,2,0),\"1\",\"0\")","v":"0"},0,0,{"$f":"IFERROR(IF(M443=\"Select\",\"Select Support Level\", PRODUCT($Q443,VLOOKUP($J443,'Drop Down'!K:M,3,0))),\"-\")","v":"Select Support Level"},"Ok",0,0]
["Select","-","-","-","-","Select",null,"DD/MM/YYYY","DD/MM/YYYY","Select","Select","Select","Select",0,{"$f":"IF(N444>VLOOKUP(M444,'Drop Down'!$A$3:$B$10,2,0),\"1\",\"0\")","v":"0"},0,0,{"$f":"IFERROR(IF(M444=\"Select\",\"Select Support Level\", PRODUCT($Q444,VLOOKUP($J444,'Drop Down'!K:M,3,0))),\"-\")","v":"Select Support Level"},"Ok",0,0]
["Select","-","-","-","-","Select",null,"DD/MM/YYYY","DD/MM/YYYY","Select","Select","Select","Select",0,{"$f":"IF(N445>VLOOKUP(M445,'Drop Down'!$A$3:$B$10,2,0),\"1\",\"0\")","v":"0"},0,0,{"$f":"IFERROR(IF(M445=\"Select\",\"Select Support Level\", PRODUCT($Q445,VLOOKUP($J445,'Drop Down'!K:M,3,0))),\"-\")","v":"Select Support Level"},"Ok",0,0]
["Select","-","-","-","-","Select",null,"DD/MM/YYYY","DD/MM/YYYY","Select","Select","Select","Select",0,{"$f":"IF(N446>VLOOKUP(M446,'Drop Down'!$A$3:$B$10,2,0),\"1\",\"0\")","v":"0"},0,0,{"$f":"IFERROR(IF(M446=\"Select\",\"Select Support Level\", PRODUCT($Q446,VLOOKUP($J446,'Drop Down'!K:M,3,0))),\"-\")","v":"Select Support Level"},"Ok",0,0]
["Select","-","-","-","-","Select",null,"DD/MM/YYYY","DD/MM/YYYY","Select","Select","Select","Select",0,{"$f":"IF(N447>VLOOKUP(M447,'Drop Down'!$A$3:$B$10,2,0),\"1\",\"0\")","v":"0"},0,0,{"$f":"IFERROR(IF(M447=\"Select\",\"Select Support Level\", PRODUCT($Q447,VLOOKUP($J447,'Drop Down'!K:M,3,0))),\"-\")","v":"Select Support Level"},"Ok",0,0]
["Select","-","-","-","-","Select",null,"DD/MM/YYYY","DD/MM/YYYY","Select","Select","Select","Select",0,{"$f":"IF(N448>VLOOKUP(M448,'Drop Down'!$A$3:$B$10,2,0),\"1\",\"0\")","v":"0"},0,0,{"$f":"IFERROR(IF(M448=\"Select\",\"Select Support Level\", PRODUCT($Q448,VLOOKUP($J448,'Drop Down'!K:M,3,0))),\"-\")","v":"Select Support Level"},"Ok",0,0]
["Select","-","-","-","-","Select",null,"DD/MM/YYYY","DD/MM/YYYY","Select","Select","Select","Select",0,{"$f":"IF(N449>VLOOKUP(M449,'Drop Down'!$A$3:$B$10,2,0),\"1\",\"0\")","v":"0"},0,0,{"$f":"IFERROR(IF(M449=\"Select\",\"Select Support Level\", PRODUCT($Q449,VLOOKUP($J449,'Drop Down'!K:M,3,0))),\"-\")","v":"Select Support Level"},"Ok",0,0]
["Select","-","-","-","-","Select",null,"DD/MM/YYYY","DD/MM/YYYY","Select","Select","Select","Select",0,{"$f":"IF(N450>VLOOKUP(M450,'Drop Down'!$A$3:$B$10,2,0),\"1\",\"0\")","v":"0"},0,{"$f":"SUM($N450,$P450)","v":0},{"$f":"IFERROR(IF(M450=\"Select\",\"Select Support Level\", PRODUCT($Q450,VLOOKUP($J450,'Drop Down'!K:M,3,0))),\"-\")","v":"Select Support Level"},{"$f":"IF(O450=\"1\",\"Cannot Bill\",\"Ok\")","v":"Ok"},0,{"$f":"IF($T450=\"\",0,ROUND(PRODUCT(T450,0.7),2))","v":0}]
["Select","-","-","-","-","Select",null,"DD/MM/YYYY","DD/MM/YYYY","Select","Select","Select","Select",0,{"$f":"IF(N451>VLOOKUP(M451,'Drop Down'!$A$3:$B$10,2,0),\"1\",\"0\")","v":"0"},0,0,{"$f":"IFERROR(IF(M451=\"Select\",\"Select Support Level\", PRODUCT($Q451,VLOOKUP($J451,'Drop Down'!K:M,3,0))),\"-\")","v":"Select Support Level"},"Ok",0,0]
["Select","-","-","-","-","Select",null,"DD/MM/YYYY","DD/MM/YYYY","Select","Select","Select","Select",0,{"$f":"IF(N452>VLOOKUP(M452,'Drop Down'!$A$3:$B$10,2,0),\"1\",\"0\")","v":"0"},0,0,{"$f":"IFERROR(IF(M452=\"Select\",\"Select Support Level\", PRODUCT($Q452,VLOOKUP($J452,'Drop Down'!K:M,3,0))),\"-\")","v":"Select Support Level"},"Ok",0,0]
["Select","-","-","-","-","Select",null,"DD/MM/YYYY","DD/MM/YYYY","Select","Select","Select","Select",0,{"$f":"IF(N453>VLOOKUP(M453,'Drop Down'!$A$3:$B$10,2,0),\"1\",\"0\")","v":"0"},0,0,{"$f":"IFERROR(IF(M453=\"Select\",\"Select Support Level\", PRODUCT($Q453,VLOOKUP($J453,'Drop Down'!K:M,3,0))),\"-\")","v":"Select Support Level"},"Ok",0,0]
["Select","-","-","-","-","Select",null,"DD/MM/YYYY","DD/MM/YYYY","Select","Select","Select","Select",0,{"$f":"IF(N454>VLOOKUP(M454,'Drop Down'!$A$3:$B$10,2,0),\"1\",\"0\")","v":"0"},0,0,{"$f":"IFERROR(IF(M454=\"Select\",\"Select Support Level\", PRODUCT($Q454,VLOOKUP($J454,'Drop Down'!K:M,3,0))),\"-\")","v":"Select Support Level"},"Ok",0,0]
["Select","-","-","-","-","Select",null,"DD/MM/YYYY","DD/MM/YYYY","Select","Select","Select","Select",0,{"$f":"IF(N455>VLOOKUP(M455,'Drop Down'!$A$3:$B$10,2,0),\"1\",\"0\")","v":"0"},0,0,{"$f":"IFERROR(IF(M455=\"Select\",\"Select Support Level\", PRODUCT($Q455,VLOOKUP($J455,'Drop Down'!K:M,3,0))),\"-\")","v":"Select Support Level"},"Ok",0,0]
["Select","-","-","-","-","Select",null,"DD/MM/YYYY","DD/MM/YYYY","Select","Select","Select","Select",0,{"$f":"IF(N456>VLOOKUP(M456,'Drop Down'!$A$3:$B$10,2,0),\"1\",\"0\")","v":"0"},0,0,{"$f":"IFERROR(IF(M456=\"Select\",\"Select Support Level\", PRODUCT($Q456,VLOOKUP($J456,'Drop Down'!K:M,3,0))),\"-\")","v":"Select Support Level"},"Ok",0,0]
["Select","-","-","-","-","Select",null,"DD/MM/YYYY","DD/MM/YYYY","Select","Select","Select","Select",0,{"$f":"IF(N457>VLOOKUP(M457,'Drop Down'!$A$3:$B$10,2,0),\"1\",\"0\")","v":"0"},0,0,{"$f":"IFERROR(IF(M457=\"Select\",\"Select Support Level\", PRODUCT($Q457,VLOOKUP($J457,'Drop Down'!K:M,3,0))),\"-\")","v":"Select Support Level"},"Ok",0,0]
["Select","-","-","-","-","Select",null,"DD/MM/YYYY","DD/MM/YYYY","Select","Select","Select","Select",0,{"$f":"IF(N458>VLOOKUP(M458,'Drop Down'!$A$3:$B$10,2,0),\"1\",\"0\")","v":"0"},0,0,{"$f":"IFERROR(IF(M458=\"Select\",\"Select Support Level\", PRODUCT($Q458,VLOOKUP($J458,'Drop Down'!K:M,3,0))),\"-\")","v":"Select Support Level"},"Ok",0,0]
["Select","-","-","-","-","Select",null,"DD/MM/YYYY","DD/MM/YYYY","Select","Select","Select","Select",0,{"$f":"IF(N459>VLOOKUP(M459,'Drop Down'!$A$3:$B$10,2,0),\"1\",\"0\")","v":"0"},0,0,{"$f":"IFERROR(IF(M459=\"Select\",\"Select Support Level\", PRODUCT($Q459,VLOOKUP($J459,'Drop Down'!K:M,3,0))),\"-\")","v":"Select Support Level"},"Ok",0,0]
["Select","-","-","-","-","Select",null,"DD/MM/YYYY","DD/MM/YYYY","Select","Select","Select","Select",0,{"$f":"IF(N460>VLOOKUP(M460,'Drop Down'!$A$3:$B$10,2,0),\"1\",\"0\")","v":"0"},0,0,{"$f":"IFERROR(IF(M460=\"Select\",\"Select Support Level\", PRODUCT($Q460,VLOOKUP($J460,'Drop Down'!K:M,3,0))),\"-\")","v":"Select Support Level"},"Ok",0,0]
["Select","-","-","-","-","Select",null,"DD/MM/YYYY","DD/MM/YYYY","Select","Select","Select","Select",0,{"$f":"IF(N461>VLOOKUP(M461,'Drop Down'!$A$3:$B$10,2,0),\"1\",\"0\")","v":"0"},0,0,{"$f":"IFERROR(IF(M461=\"Select\",\"Select Support Level\", PRODUCT($Q461,VLOOKUP($J461,'Drop Down'!K:M,3,0))),\"-\")","v":"Select Support Level"},"Ok",0,0]
["Select","-","-","-","-","Select",null,"DD/MM/YYYY","DD/MM/YYYY","Select","Select","Select","Select",0,{"$f":"IF(N462>VLOOKUP(M462,'Drop Down'!$A$3:$B$10,2,0),\"1\",\"0\")","v":"0"},0,0,{"$f":"IFERROR(IF(M462=\"Select\",\"Select Support Level\", PRODUCT($Q462,VLOOKUP($J462,'Drop Down'!K:M,3,0))),\"-\")","v":"Select Support Level"},"Ok",0,0]
["Select","-","-","-","-","Select",null,"DD/MM/YYYY","DD/MM/YYYY","Select","Select","Select","Select",0,{"$f":"IF(N463>VLOOKUP(M463,'Drop Down'!$A$3:$B$10,2,0),\"1\",\"0\")","v":"0"},0,0,{"$f":"IFERROR(IF(M463=\"Select\",\"Select Support Level\", PRODUCT($Q463,VLOOKUP($J463,'Drop Down'!K:M,3,0))),\"-\")","v":"Select Support Level"},"Ok",0,0]
["Select","-","-","-","-","Select",null,"DD/MM/YYYY","DD/MM/YYYY","Select","Select","Select","Select",0,{"$f":"IF(N464>VLOOKUP(M464,'Drop Down'!$A$3:$B$10,2,0),\"1\",\"0\")","v":"0"},0,0,{"$f":"IFERROR(IF(M464=\"Select\",\"Select Support Level\", PRODUCT($Q464,VLOOKUP($J464,'Drop Down'!K:M,3,0))),\"-\")","v":"Select Support Level"},"Ok",0,0]
["Select","-","-","-","-","Select",null,"DD/MM/YYYY","DD/MM/YYYY","Select","Select","Select","Select",0,{"$f":"IF(N465>VLOOKUP(M465,'Drop Down'!$A$3:$B$10,2,0),\"1\",\"0\")","v":"0"},0,0,{"$f":"IFERROR(IF(M465=\"Select\",\"Select Support Level\", PRODUCT($Q465,VLOOKUP($J465,'Drop Down'!K:M,3,0))),\"-\")","v":"Select Support Level"},"Ok",0,0]
["Select","-","-","-","-","Select",null,"DD/MM/YYYY","DD/MM/YYYY","Select","Select","Select","Select",0,{"$f":"IF(N466>VLOOKUP(M466,'Drop Down'!$A$3:$B$10,2,0),\"1\",\"0\")","v":"0"},0,0,{"$f":"IFERROR(IF(M466=\"Select\",\"Select Support Level\", PRODUCT($Q466,VLOOKUP($J466,'Drop Down'!K:M,3,0))),\"-\")","v":"Select Support Level"},"Ok",0,0]
["Select","-","-","-","-","Select",null,"DD/MM/YYYY","DD/MM/YYYY","Select","Select","Select","Select",0,{"$f":"IF(N467>VLOOKUP(M467,'Drop Down'!$A$3:$B$10,2,0),\"1\",\"0\")","v":"0"},0,0,{"$f":"IFERROR(IF(M467=\"Select\",\"Select Support Level\", PRODUCT($Q467,VLOOKUP($J467,'Drop Down'!K:M,3,0))),\"-\")","v":"Select Support Level"},"Ok",0,0]
["Select","-","-","-","-","Select",null,"DD/MM/YYYY","DD/MM/YYYY","Select","Select","Select","Select",0,{"$f":"IF(N468>VLOOKUP(M468,'Drop Down'!$A$3:$B$10,2,0),\"1\",\"0\")","v":"0"},0,0,{"$f":"IFERROR(IF(M468=\"Select\",\"Select Support Level\", PRODUCT($Q468,VLOOKUP($J468,'Drop Down'!K:M,3,0))),\"-\")","v":"Select Support Level"},"Ok",0,0]
["Select","-","-","-","-","Select",null,"DD/MM/YYYY","DD/MM/YYYY","Select","Select","Select","Select",0,{"$f":"IF(N469>VLOOKUP(M469,'Drop Down'!$A$3:$B$10,2,0),\"1\",\"0\")","v":"0"},0,0,{"$f":"IFERROR(IF(M469=\"Select\",\"Select Support Level\", PRODUCT($Q469,VLOOKUP($J469,'Drop Down'!K:M,3,0))),\"-\")","v":"Select Support Level"},"Ok",0,0]
["Select","-","-","-","-","Select",null,"DD/MM/YYYY","DD/MM/YYYY","Select","Select","Select","Select",0,{"$f":"IF(N470>VLOOKUP(M470,'Drop Down'!$A$3:$B$10,2,0),\"1\",\"0\")","v":"0"},0,0,{"$f":"IFERROR(IF(M470=\"Select\",\"Select Support Level\", PRODUCT($Q470,VLOOKUP($J470,'Drop Down'!K:M,3,0))),\"-\")","v":"Select Support Level"},"Ok",0,0]
["Select","-","-","-","-","Select",null,"DD/MM/YYYY","DD/MM/YYYY","Select","Select","Select","Select",0,{"$f":"IF(N471>VLOOKUP(M471,'Drop Down'!$A$3:$B$10,2,0),\"1\",\"0\")","v":"0"},0,0,{"$f":"IFERROR(IF(M471=\"Select\",\"Select Support Level\", PRODUCT($Q471,VLOOKUP($J471,'Drop Down'!K:M,3,0))),\"-\")","v":"Select Support Level"},"Ok",0,0]
["Select","-","-","-","-","Select",null,"DD/MM/YYYY","DD/MM/YYYY","Select","Select","Select","Select",0,{"$f":"IF(N472>VLOOKUP(M472,'Drop Down'!$A$3:$B$10,2,0),\"1\",\"0\")","v":"0"},0,0,{"$f":"IFERROR(IF(M472=\"Select\",\"Select Support Level\", PRODUCT($Q472,VLOOKUP($J472,'Drop Down'!K:M,3,0))),\"-\")","v":"Select Support Level"},"Ok",0,0]
["Select","-","-","-","-","Select",null,"DD/MM/YYYY","DD/MM/YYYY","Select","Select","Select","Select",0,{"$f":"IF(N473>VLOOKUP(M473,'Drop Down'!$A$3:$B$10,2,0),\"1\",\"0\")","v":"0"},0,0,{"$f":"IFERROR(IF(M473=\"Select\",\"Select Support Level\", PRODUCT($Q473,VLOOKUP($J473,'Drop Down'!K:M,3,0))),\"-\")","v":"Select Support Level"},"Ok",0,0]
["Select","-","-","-","-","Select",null,"DD/MM/YYYY","DD/MM/YYYY","Select","Select","Select","Select",0,{"$f":"IF(N474>VLOOKUP(M474,'Drop Down'!$A$3:$B$10,2,0),\"1\",\"0\")","v":"0"},0,0,{"$f":"IFERROR(IF(M474=\"Select\",\"Select Support Level\", PRODUCT($Q474,VLOOKUP($J474,'Drop Down'!K:M,3,0))),\"-\")","v":"Select Support Level"},"Ok",0,0]
["Select","-","-","-","-","Select",null,"DD/MM/YYYY","DD/MM/YYYY","Select","Select","Select","Select",0,{"$f":"IF(N475>VLOOKUP(M475,'Drop Down'!$A$3:$B$10,2,0),\"1\",\"0\")","v":"0"},0,0,{"$f":"IFERROR(IF(M475=\"Select\",\"Select Support Level\", PRODUCT($Q475,VLOOKUP($J475,'Drop Down'!K:M,3,0))),\"-\")","v":"Select Support Level"},"Ok",0,0]
["Select","-","-","-","-","Select",null,"DD/MM/YYYY","DD/MM/YYYY","Select","Select","Select","Select",0,{"$f":"IF(N476>VLOOKUP(M476,'Drop Down'!$A$3:$B$10,2,0),\"1\",\"0\")","v":"0"},0,0,{"$f":"IFERROR(IF(M476=\"Select\",\"Select Support Level\", PRODUCT($Q476,VLOOKUP($J476,'Drop Down'!K:M,3,0))),\"-\")","v":"Select Support Level"},"Ok",0,0]
["Select","-","-","-","-","Select",null,"DD/MM/YYYY","DD/MM/YYYY","Select","Select","Select","Select",0,{"$f":"IF(N477>VLOOKUP(M477,'Drop Down'!$A$3:$B$10,2,0),\"1\",\"0\")","v":"0"},0,0,{"$f":"IFERROR(IF(M477=\"Select\",\"Select Support Level\", PRODUCT($Q477,VLOOKUP($J477,'Drop Down'!K:M,3,0))),\"-\")","v":"Select Support Level"},"Ok",0,0]
["Select","-","-","-","-","Select",null,"DD/MM/YYYY","DD/MM/YYYY","Select","Select","Select","Select",0,{"$f":"IF(N478>VLOOKUP(M478,'Drop Down'!$A$3:$B$10,2,0),\"1\",\"0\")","v":"0"},0,0,{"$f":"IFERROR(IF(M478=\"Select\",\"Select Support Level\", PRODUCT($Q478,VLOOKUP($J478,'Drop Down'!K:M,3,0))),\"-\")","v":"Select Support Level"},"Ok",0,0]
["Select","-","-","-","-","Select",null,"DD/MM/YYYY","DD/MM/YYYY","Select","Select","Select","Select",0,{"$f":"IF(N479>VLOOKUP(M479,'Drop Down'!$A$3:$B$10,2,0),\"1\",\"0\")","v":"0"},0,0,{"$f":"IFERROR(IF(M479=\"Select\",\"Select Support Level\", PRODUCT($Q479,VLOOKUP($J479,'Drop Down'!K:M,3,0))),\"-\")","v":"Select Support Level"},"Ok",0,0]
["Select","-","-","-","-","Select",null,"DD/MM/YYYY","DD/MM/YYYY","Select","Select","Select","Select",0,{"$f":"IF(N480>VLOOKUP(M480,'Drop Down'!$A$3:$B$10,2,0),\"1\",\"0\")","v":"0"},0,0,{"$f":"IFERROR(IF(M480=\"Select\",\"Select Support Level\", PRODUCT($Q480,VLOOKUP($J480,'Drop Down'!K:M,3,0))),\"-\")","v":"Select Support Level"},"Ok",0,0]
["Select","-","-","-","-","Select",null,"DD/MM/YYYY","DD/MM/YYYY","Select","Select","Select","Select",0,{"$f":"IF(N481>VLOOKUP(M481,'Drop Down'!$A$3:$B$10,2,0),\"1\",\"0\")","v":"0"},0,0,{"$f":"IFERROR(IF(M481=\"Select\",\"Select Support Level\", PRODUCT($Q481,VLOOKUP($J481,'Drop Down'!K:M,3,0))),\"-\")","v":"Select Support Level"},"Ok",0,0]
["Select","-","-","-","-","Select",null,"DD/MM/YYYY","DD/MM/YYYY","Select","Select","Select","Select",0,{"$f":"IF(N482>VLOOKUP(M482,'Drop Down'!$A$3:$B$10,2,0),\"1\",\"0\")","v":"0"},0,0,{"$f":"IFERROR(IF(M482=\"Select\",\"Select Support Level\", PRODUCT($Q482,VLOOKUP($J482,'Drop Down'!K:M,3,0))),\"-\")","v":"Select Support Level"},"Ok",0,0]
["Select","-","-","-","-","Select",null,"DD/MM/YYYY","DD/MM/YYYY","Select","Select","Select","Select",0,{"$f":"IF(N483>VLOOKUP(M483,'Drop Down'!$A$3:$B$10,2,0),\"1\",\"0\")","v":"0"},0,0,{"$f":"IFERROR(IF(M483=\"Select\",\"Select Support Level\", PRODUCT($Q483,VLOOKUP($J483,'Drop Down'!K:M,3,0))),\"-\")","v":"Select Support Level"},"Ok",0,0]
["Select","-","-","-","-","Select",null,"DD/MM/YYYY","DD/MM/YYYY","Select","Select","Select","Select",0,{"$f":"IF(N484>VLOOKUP(M484,'Drop Down'!$A$3:$B$10,2,0),\"1\",\"0\")","v":"0"},0,0,{"$f":"IFERROR(IF(M484=\"Select\",\"Select Support Level\", PRODUCT($Q484,VLOOKUP($J484,'Drop Down'!K:M,3,0))),\"-\")","v":"Select Support Level"},"Ok",0,0]
["Select","-","-","-","-","Select",null,"DD/MM/YYYY","DD/MM/YYYY","Select","Select","Select","Select",0,{"$f":"IF(N485>VLOOKUP(M485,'Drop Down'!$A$3:$B$10,2,0),\"1\",\"0\")","v":"0"},0,0,{"$f":"IFERROR(IF(M485=\"Select\",\"Select Support Level\", PRODUCT($Q485,VLOOKUP($J485,'Drop Down'!K:M,3,0))),\"-\")","v":"Select Support Level"},"Ok",0,0]
["Select","-","-","-","-","Select",null,"DD/MM/YYYY","DD/MM/YYYY","Select","Select","Select","Select",0,{"$f":"IF(N486>VLOOKUP(M486,'Drop Down'!$A$3:$B$10,2,0),\"1\",\"0\")","v":"0"},0,0,{"$f":"IFERROR(IF(M486=\"Select\",\"Select Support Level\", PRODUCT($Q486,VLOOKUP($J486,'Drop Down'!K:M,3,0))),\"-\")","v":"Select Support Level"},"Ok",0,0]
["Select","-","-","-","-","Select",null,"DD/MM/YYYY","DD/MM/YYYY","Select","Select","Select","Select",0,{"$f":"IF(N487>VLOOKUP(M487,'Drop Down'!$A$3:$B$10,2,0),\"1\",\"0\")","v":"0"},0,0,{"$f":"IFERROR(IF(M487=\"Select\",\"Select Support Level\", PRODUCT($Q487,VLOOKUP($J487,'Drop Down'!K:M,3,0))),\"-\")","v":"Select Support Level"},"Ok",0,0]
["Select","-","-","-","-","Select",null,"DD/MM/YYYY","DD/MM/YYYY","Select","Select","Select","Select",0,{"$f":"IF(N488>VLOOKUP(M488,'Drop Down'!$A$3:$B$10,2,0),\"1\",\"0\")","v":"0"},0,0,{"$f":"IFERROR(IF(M488=\"Select\",\"Select Support Level\", PRODUCT($Q488,VLOOKUP($J488,'Drop Down'!K:M,3,0))),\"-\")","v":"Select Support Level"},"Ok",0,0]
["Select","-","-","-","-","Select",null,"DD/MM/YYYY","DD/MM/YYYY","Select","Select","Select","Select",0,{"$f":"IF(N489>VLOOKUP(M489,'Drop Down'!$A$3:$B$10,2,0),\"1\",\"0\")","v":"0"},0,0,{"$f":"IFERROR(IF(M489=\"Select\",\"Select Support Level\", PRODUCT($Q489,VLOOKUP($J489,'Drop Down'!K:M,3,0))),\"-\")","v":"Select Support Level"},"Ok",0,0]
["Select","-","-","-","-","Select",null,"DD/MM/YYYY","DD/MM/YYYY","Select","Select","Select","Select",0,{"$f":"IF(N490>VLOOKUP(M490,'Drop Down'!$A$3:$B$10,2,0),\"1\",\"0\")","v":"0"},0,0,{"$f":"IFERROR(IF(M490=\"Select\",\"Select Support Level\", PRODUCT($Q490,VLOOKUP($J490,'Drop Down'!K:M,3,0))),\"-\")","v":"Select Support Level"},"Ok",0,0]
["Select","-","-","-","-","Select",null,"DD/MM/YYYY","DD/MM/YYYY","Select","Select","Select","Select",0,{"$f":"IF(N491>VLOOKUP(M491,'Drop Down'!$A$3:$B$10,2,0),\"1\",\"0\")","v":"0"},0,0,{"$f":"IFERROR(IF(M491=\"Select\",\"Select Support Level\", PRODUCT($Q491,VLOOKUP($J491,'Drop Down'!K:M,3,0))),\"-\")","v":"Select Support Level"},"Ok",0,0]
["Select","-","-","-","-","Select",null,"DD/MM/YYYY","DD/MM/YYYY","Select","Select","Select","Select",0,{"$f":"IF(N492>VLOOKUP(M492,'Drop Down'!$A$3:$B$10,2,0),\"1\",\"0\")","v":"0"},0,0,{"$f":"IFERROR(IF(M492=\"Select\",\"Select Support Level\", PRODUCT($Q492,VLOOKUP($J492,'Drop Down'!K:M,3,0))),\"-\")","v":"Select Support Level"},"Ok",0,0]
["Select","-","-","-","-","Select",null,"DD/MM/YYYY","DD/MM/YYYY","Select","Select","Select","Select",0,{"$f":"IF(N493>VLOOKUP(M493,'Drop Down'!$A$3:$B$10,2,0),\"1\",\"0\")","v":"0"},0,0,{"$f":"IFERROR(IF(M493=\"Select\",\"Select Support Level\", PRODUCT($Q493,VLOOKUP($J493,'Drop Down'!K:M,3,0))),\"-\")","v":"Select Support Level"},"Ok",0,0]
["Select","-","-","-","-","Select",null,"DD/MM/YYYY","DD/MM/YYYY","Select","Select","Select","Select",0,{"$f":"IF(N494>VLOOKUP(M494,'Drop Down'!$A$3:$B$10,2,0),\"1\",\"0\")","v":"0"},0,0,{"$f":"IFERROR(IF(M494=\"Select\",\"Select Support Level\", PRODUCT($Q494,VLOOKUP($J494,'Drop Down'!K:M,3,0))),\"-\")","v":"Select Support Level"},"Ok",0,0]

{"sheet":"Provider Level","index":3,"n_rows":494,"n_cols":14,"rows_kept":494,"cut":false,"hidden":false,"merged":[]}
["Month of Service","Child Name","Child ID","Case Name","Case Number","Is Youth TPO?","Tribe Name","Opt in Date","Opt Out Date","County Where Youth Resides","DCYF Case Region","DCYF Case Office","Child Support Level","Has Payment Been Opened for Provider Resource Support"]
["Select","-","-","-","-","Select",null,"DD/MM/YYYY","DD/MM/YYYY","Select","Select","Select","Select","Select"]
["Select","-","-","-","-","Select",null,"DD/MM/YYYY","DD/MM/YYYY","Select","Select","Select","Select","Select"]
["Select","-","-","-","-","Select",null,"DD/MM/YYYY","DD/MM/YYYY","Select","Select","Select","Select","Select"]
["Select","-","-","-","-","Select",null,"DD/MM/YYYY","DD/MM/YYYY","Select","Select","Select","Select","Select"]
["Select","-","-","-","-","Select",null,"DD/MM/YYYY","DD/MM/YYYY","Select","Select","Select","Select","Select"]
["Select","-","-","-","-","Select",null,"DD/MM/YYYY","DD/MM/YYYY","Select","Select","Select","Select","Select"]
["Select","-","-","-","-","Select",null,"DD/MM/YYYY","DD/MM/YYYY","Select","Select","Select","Select","Select"]
["Select","-","-","-","-","Select",null,"DD/MM/YYYY","DD/MM/YYYY","Select","Select","Select","Select","Select"]
["Select","-","-","-","-","Select",null,"DD/MM/YYYY","DD/MM/YYYY","Select","Select","Select","Select","Select"]
["Select","-","-","-","-","Select",null,"DD/MM/YYYY","DD/MM/YYYY","Select","Select","Select","Select","Select"]
["Select","-","-","-","-","Select",null,"DD/MM/YYYY","DD/MM/YYYY","Select","Select","Select","Select","Select"]
["Select","-","-","-","-","Select",null,"DD/MM/YYYY","DD/MM/YYYY","Select","Select","Select","Select","Select"]
["Select","-","-","-","-","Select",null,"DD/MM/YYYY","DD/MM/YYYY","Select","Select","Select","Select","Select"]
["Select","-","-","-","-","Select",null,"DD/MM/YYYY","DD/MM/YYYY","Select","Select","Select","Select","Select"]
["Select","-","-","-","-","Select",null,"DD/MM/YYYY","DD/MM/YYYY","Select","Select","Select","Select","Select"]
["Select","-","-","-","-","Select",null,"DD/MM/YYYY","DD/MM/YYYY","Select","Select","Select","Select","Select"]
["Select","-","-","-","-","Select",null,"DD/MM/YYYY","DD/MM/YYYY","Select","Select","Select","Select","Select"]
["Select","-","-","-","-","Select",null,"DD/MM/YYYY","DD/MM/YYYY","Select","Select","Select","Select","Select"]
["Select","-","-","-","-","Select",null,"DD/MM/YYYY","DD/MM/YYYY","Select","Select","Select","Select","Select"]
["Select","-","-","-","-","Select",null,"DD/MM/YYYY","DD/MM/YYYY","Select","Select","Select","Select","Select"]
["Select","-","-","-","-","Select",null,"DD/MM/YYYY","DD/MM/YYYY","Select","Select","Select","Select","Select"]
["Select","-","-","-","-","Select",null,"DD/MM/YYYY","DD/MM/YYYY","Select","Select","Select","Select","Select"]
["Select","-","-","-","-","Select",null,"DD/MM/YYYY","DD/MM/YYYY","Select","Select","Select","Select","Select"]
["Select","-","-","-","-","Select",null,"DD/MM/YYYY","DD/MM/YYYY","Select","Select","Select","Select","Select"]
["Select","-","-","-","-","Select",null,"DD/MM/YYYY","DD/MM/YYYY","Select","Select","Select","Select","Select"]
["Select","-","-","-","-","Select",null,"DD/MM/YYYY","DD/MM/YYYY","Select","Select","Select","Select","Select"]
["Select","-","-","-","-","Select",null,"DD/MM/YYYY","DD/MM/YYYY","Select","Select","Select","Select","Select"]
["Select","-","-","-","-","Select",null,"DD/MM/YYYY","DD/MM/YYYY","Select","Select","Select","Select","Select"]
["Select","-","-","-","-","Select",null,"DD/MM/YYYY","DD/MM/YYYY","Select","Select","Select","Select","Select"]
["Select","-","-","-","-","Select",null,"DD/MM/YYYY","DD/MM/YYYY","Select","Select","Select","Select","Select"]
["Select","-","-","-","-","Select",null,"DD/MM/YYYY","DD/MM/YYYY","Select","Select","Select","Select","Select"]
["Select","-","-","-","-","Select",null,"DD/MM/YYYY","DD/MM/YYYY","Select","Select","Select","Select","Select"]
["Select","-","-","-","-","Select",null,"DD/MM/YYYY","DD/MM/YYYY","Select","Select","Select","Select","Select"]
["Select","-","-","-","-","Select",null,"DD/MM/YYYY","DD/MM/YYYY","Select","Select","Select","Select","Select"]
["Select","-","-","-","-","Select",null,"DD/MM/YYYY","DD/MM/YYYY","Select","Select","Select","Select","Select"]
["Select","-","-","-","-","Select",null,"DD/MM/YYYY","DD/MM/YYYY","Select","Select","Select","Select","Select"]
["Select","-","-","-","-","Select",null,"DD/MM/YYYY","DD/MM/YYYY","Select","Select","Select","Select","Select"]
["Select","-","-","-","-","Select",null,"DD/MM/YYYY","DD/MM/YYYY","Select","Select","Select","Select","Select"]
["Select","-","-","-","-","Select",null,"DD/MM/YYYY","DD/MM/YYYY","Select","Select","Select","Select","Select"]
["Select","-","-","-","-","Select",null,"DD/MM/YYYY","DD/MM/YYYY","Select","Select","Select","Select","Select"]
["Select","-","-","-","-","Select",null,"DD/MM/YYYY","DD/MM/YYYY","Select","Select","Select","Select","Select"]
["Select","-","-","-","-","Select",null,"DD/MM/YYYY","DD/MM/YYYY","Select","Select","Select","Select","Select"]
["Select","-","-","-","-","Select",null,"DD/MM/YYYY","DD/MM/YYYY","Select","Select","Select","Select","Select"]
["Select","-","-","-","-","Select",null,"DD/MM/YYYY","DD/MM/YYYY","Select","Select","Select","Select","Select"]
["Select","-","-","-","-","Select",null,"DD/MM/YYYY","DD/MM/YYYY","Select","Select","Select","Select","Select"]
["Select","-","-","-","-","Select",null,"DD/MM/YYYY","DD/MM/YYYY","Select","Select","Select","Select","Select"]
["Select","-","-","-","-","Select",null,"DD/MM/YYYY","DD/MM/YYYY","Select","Select","Select","Select","Select"]
["Select","-","-","-","-","Select",null,"DD/MM/YYYY","DD/MM/YYYY","Select","Select","Select","Select","Select"]
["Select","-","-","-","-","Select",null,"DD/MM/YYYY","DD/MM/YYYY","Select","Select","Select","Select","Select"]
["Select","-","-","-","-","Select",null,"DD/MM/YYYY","DD/MM/YYYY","Select","Select","Select","Select","Select"]
["Select","-","-","-","-","Select",null,"DD/MM/YYYY","DD/MM/YYYY","Select","Select","Select","Select","Select"]
["Select","-","-","-","-","Select",null,"DD/MM/YYYY","DD/MM/YYYY","Select","Select","Select","Select","Select"]
["Select","-","-","-","-","Select",null,"DD/MM/YYYY","DD/MM/YYYY","Select","Select","Select","Select","Select"]
["Select","-","-","-","-","Select",null,"DD/MM/YYYY","DD/MM/YYYY","Select","Select","Select","Select","Select"]
["Select","-","-","-","-","Select",null,"DD/MM/YYYY","DD/MM/YYYY","Select","Select","Select","Select","Select"]
["Select","-","-","-","-","Select",null,"DD/MM/YYYY","DD/MM/YYYY","Select","Select","Select","Select","Select"]
["Select","-","-","-","-","Select",null,"DD/MM/YYYY","DD/MM/YYYY","Select","Select","Select","Select","Select"]
["Select","-","-","-","-","Select",null,"DD/MM/YYYY","DD/MM/YYYY","Select","Select","Select","Select","Select"]
["Select","-","-","-","-","Select",null,"DD/MM/YYYY","DD/MM/YYYY","Select","Select","Select","Select","Select"]
["Select","-","-","-","-","Select",null,"DD/MM/YYYY","DD/MM/YYYY","Select","Select","Select","Select","Select"]
["Select","-","-","-","-","Select",null,"DD/MM/YYYY","DD/MM/YYYY","Select","Select","Select","Select","Select"]
["Select","-","-","-","-","Select",null,"DD/MM/YYYY","DD/MM/YYYY","Select","Select","Select","Select","Select"]
["Select","-","-","-","-","Select",null,"DD/MM/YYYY","DD/MM/YYYY","Select","Select","Select","Select","Select"]
["Select","-","-","-","-","Select",null,"DD/MM/YYYY","DD/MM/YYYY","Select","Select","Select","Select","Select"]
["Select","-","-","-","-","Select",null,"DD/MM/YYYY","DD/MM/YYYY","Select","Select","Select","Select","Select"]
["Select","-","-","-","-","Select",null,"DD/MM/YYYY","DD/MM/YYYY","Select","Select","Select","Select","Select"]
["Select","-","-","-","-","Select",null,"DD/MM/YYYY","DD/MM/YYYY","Select","Select","Select","Select","Select"]
["Select","-","-","-","-","Select",null,"DD/MM/YYYY","DD/MM/YYYY","Select","Select","Select","Select","Select"]
["Select","-","-","-","-","Select",null,"DD/MM/YYYY","DD/MM/YYYY","Select","Select","Select","Select","Select"]
["Select","-","-","-","-","Select",null,"DD/MM/YYYY","DD/MM/YYYY","Select","Select","Select","Select","Select"]
["Select","-","-","-","-","Select",null,"DD/MM/YYYY","DD/MM/YYYY","Select","Select","Select","Select","Select"]
["Select","-","-","-","-","Select",null,"DD/MM/YYYY","DD/MM/YYYY","Select","Select","Select","Select","Select"]
["Select","-","-","-","-","Select",null,"DD/MM/YYYY","DD/MM/YYYY","Select","Select","Select","Select","Select"]
["Select","-","-","-","-","Select",null,"DD/MM/YYYY","DD/MM/YYYY","Select","Select","Select","Select","Select"]
["Select","-","-","-","-","Select",null,"DD/MM/YYYY","DD/MM/YYYY","Select","Select","Select","Select","Select"]
["Select","-","-","-","-","Select",null,"DD/MM/YYYY","DD/MM/YYYY","Select","Select","Select","Select","Select"]
["Select","-","-","-","-","Select",null,"DD/MM/YYYY","DD/MM/YYYY","Select","Select","Select","Select","Select"]
["Select","-","-","-","-","Select",null,"DD/MM/YYYY","DD/MM/YYYY","Select","Select","Select","Select","Select"]
["Select","-","-","-","-","Select",null,"DD/MM/YYYY","DD/MM/YYYY","Select","Select","Select","Select","Select"]
["Select","-","-","-","-","Select",null,"DD/MM/YYYY","DD/MM/YYYY","Select","Select","Select","Select","Select"]
["Select","-","-","-","-","Select",null,"DD/MM/YYYY","DD/MM/YYYY","Select","Select","Select","Select","Select"]
["Select","-","-","-","-","Select",null,"DD/MM/YYYY","DD/MM/YYYY","Select","Select","Select","Select","Select"]
["Select","-","-","-","-","Select",null,"DD/MM/YYYY","DD/MM/YYYY","Select","Select","Select","Select","Select"]
["Select","-","-","-","-","Select",null,"DD/MM/YYYY","DD/MM/YYYY","Select","Select","Select","Select","Select"]
["Select","-","-","-","-","Select",null,"DD/MM/YYYY","DD/MM/YYYY","Select","Select","Select","Select","Select"]
["Select","-","-","-","-","Select",null,"DD/MM/YYYY","DD/MM/YYYY","Select","Select","Select","Select","Select"]
["Select","-","-","-","-","Select",null,"DD/MM/YYYY","DD/MM/YYYY","Select","Select","Select","Select","Select"]
["Select","-","-","-","-","Select",null,"DD/MM/YYYY","DD/MM/YYYY","Select","Select","Select","Select","Select"]
["Select","-","-","-","-","Select",null,"DD/MM/YYYY","DD/MM/YYYY","Select","Select","Select","Select","Select"]
["Select","-","-","-","-","Select",null,"DD/MM/YYYY","DD/MM/YYYY","Select","Select","Select","Select","Select"]
["Select","-","-","-","-","Select",null,"DD/MM/YYYY","DD/MM/YYYY","Select","Select","Select","Select","Select"]
["Select","-","-","-","-","Select",null,"DD/MM/YYYY","DD/MM/YYYY","Select","Select","Select","Select","Select"]
["Select","-","-","-","-","Select",null,"DD/MM/YYYY","DD/MM/YYYY","Select","Select","Select","Select","Select"]
["Select","-","-","-","-","Select",null,"DD/MM/YYYY","DD/MM/YYYY","Select","Select","Select","Select","Select"]
["Select","-","-","-","-","Select",null,"DD/MM/YYYY","DD/MM/YYYY","Select","Select","Select","Select","Select"]
["Select","-","-","-","-","Select",null,"DD/MM/YYYY","DD/MM/YYYY","Select","Select","Select","Select","Select"]
["Select","-","-","-","-","Select",null,"DD/MM/YYYY","DD/MM/YYYY","Select","Select","Select","Select","Select"]
["Select","-","-","-","-","Select",null,"DD/MM/YYYY","DD/MM/YYYY","Select","Select","Select","Select","Select"]
["Select","-","-","-","-","Select",null,"DD/MM/YYYY","DD/MM/YYYY","Select","Select","Select","Select","Select"]
["Select","-","-","-","-","Select",null,"DD/MM/YYYY","DD/MM/YYYY","Select","Select","Select","Select","Select"]
["Select","-","-","-","-","Select",null,"DD/MM/YYYY","DD/MM/YYYY","Select","Select","Select","Select","Select"]
["Select","-","-","-","-","Select",null,"DD/MM/YYYY","DD/MM/YYYY","Select","Select","Select","Select","Select"]
["Select","-","-","-","-","Select",null,"DD/MM/YYYY","DD/MM/YYYY","Select","Select","Select","Select","Select"]
["Select","-","-","-","-","Select",null,"DD/MM/YYYY","DD/MM/YYYY","Select","Select","Select","Select","Select"]
["Select","-","-","-","-","Select",null,"DD/MM/YYYY","DD/MM/YYYY","Select","Select","Select","Select","Select"]
["Select","-","-","-","-","Select",null,"DD/MM/YYYY","DD/MM/YYYY","Select","Select","Select","Select","Select"]
["Select","-","-","-","-","Select",null,"DD/MM/YYYY","DD/MM/YYYY","Select","Select","Select","Select","Select"]
["Select","-","-","-","-","Select",null,"DD/MM/YYYY","DD/MM/YYYY","Select","Select","Select","Select","Select"]
["Select","-","-","-","-","Select",null,"DD/MM/YYYY","DD/MM/YYYY","Select","Select","Select","Select","Select"]
["Select","-","-","-","-","Select",null,"DD/MM/YYYY","DD/MM/YYYY","Select","Select","Select","Select","Select"]
["Select","-","-","-","-","Select",null,"DD/MM/YYYY","DD/MM/YYYY","Select","Select","Select","Select","Select"]
["Select","-","-","-","-","Select",null,"DD/MM/YYYY","DD/MM/YYYY","Select","Select","Select","Select","Select"]
["Select","-","-","-","-","Select",null,"DD/MM/YYYY","DD/MM/YYYY","Select","Select","Select","Select","Select"]
["Select","-","-","-","-","Select",null,"DD/MM/YYYY","DD/MM/YYYY","Select","Select","Select","Select","Select"]
["Select","-","-","-","-","Select",null,"DD/MM/YYYY","DD/MM/YYYY","Select","Select","Select","Select","Select"]
["Select","-","-","-","-","Select",null,"DD/MM/YYYY","DD/MM/YYYY","Select","Select","Select","Select","Select"]
["Select","-","-","-","-","Select",null,"DD/MM/YYYY","DD/MM/YYYY","Select","Select","Select","Select","Select"]
["Select","-","-","-","-","Select",null,"DD/MM/YYYY","DD/MM/YYYY","Select","Select","Select","Select","Select"]
["Select","-","-","-","-","Select",null,"DD/MM/YYYY","DD/MM/YYYY","Select","Select","Select","Select","Select"]
["Select","-","-","-","-","Select",null,"DD/MM/YYYY","DD/MM/YYYY","Select","Select","Select","Select","Select"]
["Select","-","-","-","-","Select",null,"DD/MM/YYYY","DD/MM/YYYY","Select","Select","Select","Select","Select"]
["Select","-","-","-","-","Select",null,"DD/MM/YYYY","DD/MM/YYYY","Select","Select","Select","Select","Select"]
["Select","-","-","-","-","Select",null,"DD/MM/YYYY","DD/MM/YYYY","Select","Select","Select","Select","Select"]
["Select","-","-","-","-","Select",null,"DD/MM/YYYY","DD/MM/YYYY","Select","Select","Select","Select","Select"]
["Select","-","-","-","-","Select",null,"DD/MM/YYYY","DD/MM/YYYY","Select","Select","Select","Select","Select"]
["Select","-","-","-","-","Select",null,"DD/MM/YYYY","DD/MM/YYYY","Select","Select","Select","Select","Select"]
["Select","-","-","-","-","Select",null,"DD/MM/YYYY","DD/MM/YYYY","Select","Select","Select","Select","Select"]
["Select","-","-","-","-","Select",null,"DD/MM/YYYY","DD/MM/YYYY","Select","Select","Select","Select","Select"]
["Select","-","-","-","-","Select",null,"DD/MM/YYYY","DD/MM/YYYY","Select","Select","Select","Select","Select"]
["Select","-","-","-","-","Select",null,"DD/MM/YYYY","DD/MM/YYYY","Select","Select","Select","Select","Select"]
["Select","-","-","-","-","Select",null,"DD/MM/YYYY","DD/MM/YYYY","Select","Select","Select","Select","Select"]
["Select","-","-","-","-","Select",null,"DD/MM/YYYY","DD/MM/YYYY","Select","Select","Select","Select","Select"]
["Select","-","-","-","-","Select",null,"DD/MM/YYYY","DD/MM/YYYY","Select","Select","Select","Select","Select"]
["Select","-","-","-","-","Select",null,"DD/MM/YYYY","DD/MM/YYYY","Select","Select","Select","Select","Select"]
["Select","-","-","-","-","Select",null,"DD/MM/YYYY","DD/MM/YYYY","Select","Select","Select","Select","Select"]
["Select","-","-","-","-","Select",null,"DD/MM/YYYY","DD/MM/YYYY","Select","Select","Select","Select","Select"]
["Select","-","-","-","-","Select",null,"DD/MM/YYYY","DD/MM/YYYY","Select","Select","Select","Select","Select"]
["Select","-","-","-","-","Select",null,"DD/MM/YYYY","DD/MM/YYYY","Select","Select","Select","Select","Select"]
["Select","-","-","-","-","Select",null,"DD/MM/YYYY","DD/MM/YYYY","Select","Select","Select","Select","Select"]
["Select","-","-","-","-","Select",null,"DD/MM/YYYY","DD/MM/YYYY","Select","Select","Select","Select","Select"]
["Select","-","-","-","-","Select",null,"DD/MM/YYYY","DD/MM/YYYY","Select","Select","Select","Select","Select"]
["Select","-","-","-","-","Select",null,"DD/MM/YYYY","DD/MM/YYYY","Select","Select","Select","Select","Select"]
["Select","-","-","-","-","Select",null,"DD/MM/YYYY","DD/MM/YYYY","Select","Select","Select","Select","Select"]
["Select","-","-","-","-","Select",null,"DD/MM/YYYY","DD/MM/YYYY","Select","Select","Select","Select","Select"]
["Select","-","-","-","-","Select",null,"DD/MM/YYYY","DD/MM/YYYY","Select","Select","Select","Select","Select"]
["Select","-","-","-","-","Select",null,"DD/MM/YYYY","DD/MM/YYYY","Select","Select","Select","Select","Select"]
["Select","-","-","-","-","Select",null,"DD/MM/YYYY","DD/MM/YYYY","Select","Select","Select","Select","Select"]
["Select","-","-","-","-","Select",null,"DD/MM/YYYY","DD/MM/YYYY","Select","Select","Select","Select","Select"]
["Select","-","-","-","-","Select",null,"DD/MM/YYYY","DD/MM/YYYY","Select","Select","Select","Select","Select"]
["Select","-","-","-","-","Select",null,"DD/MM/YYYY","DD/MM/YYYY","Select","Select","Select","Select","Select"]
["Select","-","-","-","-","Select",null,"DD/MM/YYYY","DD/MM/YYYY","Select","Select","Select","Select","Select"]
["Select","-","-","-","-","Select",null,"DD/MM/YYYY","DD/MM/YYYY","Select","Select","Select","Select","Select"]
["Select","-","-","-","-","Select",null,"DD/MM/YYYY","DD/MM/YYYY","Select","Select","Select","Select","Select"]
["Select","-","-","-","-","Select",null,"DD/MM/YYYY","DD/MM/YYYY","Select","Select","Select","Select","Select"]
["Select","-","-","-","-","Select",null,"DD/MM/YYYY","DD/MM/YYYY","Select","Select","Select","Select","Select"]
["Select","-","-","-","-","Select",null,"DD/MM/YYYY","DD/MM/YYYY","Select","Select","Select","Select","Select"]
["Select","-","-","-","-","Select",null,"DD/MM/YYYY","DD/MM/YYYY","Select","Select","Select","Select","Select"]
["Select","-","-","-","-","Select",null,"DD/MM/YYYY","DD/MM/YYYY","Select","Select","Select","Select","Select"]
["Select","-","-","-","-","Select",null,"DD/MM/YYYY","DD/MM/YYYY","Select","Select","Select","Select","Select"]
["Select","-","-","-","-","Select",null,"DD/MM/YYYY","DD/MM/YYYY","Select","Select","Select","Select","Select"]
["Select","-","-","-","-","Select",null,"DD/MM/YYYY","DD/MM/YYYY","Select","Select","Select","Select","Select"]
["Select","-","-","-","-","Select",null,"DD/MM/YYYY","DD/MM/YYYY","Select","Select","Select","Select","Select"]
["Select","-","-","-","-","Select",null,"DD/MM/YYYY","DD/MM/YYYY","Select","Select","Select","Select","Select"]
["Select","-","-","-","-","Select",null,"DD/MM/YYYY","DD/MM/YYYY","Select","Select","Select","Select","Select"]
["Select","-","-","-","-","Select",null,"DD/MM/YYYY","DD/MM/YYYY","Select","Select","Select","Select","Select"]
["Select","-","-","-","-","Select",null,"DD/MM/YYYY","DD/MM/YYYY","Select","Select","Select","Select","Select"]
["Select","-","-","-","-","Select",null,"DD/MM/YYYY","DD/MM/YYYY","Select","Select","Select","Select","Select"]
["Select","-","-","-","-","Select",null,"DD/MM/YYYY","DD/MM/YYYY","Select","Select","Select","Select","Select"]
["Select","-","-","-","-","Select",null,"DD/MM/YYYY","DD/MM/YYYY","Select","Select","Select","Select","Select"]
["Select","-","-","-","-","Select",null,"DD/MM/YYYY","DD/MM/YYYY","Select","Select","Select","Select","Select"]
["Select","-","-","-","-","Select",null,"DD/MM/YYYY","DD/MM/YYYY","Select","Select","Select","Select","Select"]
["Select","-","-","-","-","Select",null,"DD/MM/YYYY","DD/MM/YYYY","Select","Select","Select","Select","Select"]
["Select","-","-","-","-","Select",null,"DD/MM/YYYY","DD/MM/YYYY","Select","Select","Select","Select","Select"]
["Select","-","-","-","-","Select",null,"DD/MM/YYYY","DD/MM/YYYY","Select","Select","Select","Select","Select"]
["Select","-","-","-","-","Select",null,"DD/MM/YYYY","DD/MM/YYYY","Select","Select","Select","Select","Select"]
["Select","-","-","-","-","Select",null,"DD/MM/YYYY","DD/MM/YYYY","Select","Select","Select","Select","Select"]
["Select","-","-","-","-","Select",null,"DD/MM/YYYY","DD/MM/YYYY","Select","Select","Select","Select","Select"]
["Select","-","-","-","-","Select",null,"DD/MM/YYYY","DD/MM/YYYY","Select","Select","Select","Select","Select"]
["Select","-","-","-","-","Select",null,"DD/MM/YYYY","DD/MM/YYYY","Select","Select","Select","Select","Select"]
["Select","-","-","-","-","Select",null,"DD/MM/YYYY","DD/MM/YYYY","Select","Select","Select","Select","Select"]
["Select","-","-","-","-","Select",null,"DD/MM/YYYY","DD/MM/YYYY","Select","Select","Select","Select","Select"]
["Select","-","-","-","-","Select",null,"DD/MM/YYYY","DD/MM/YYYY","Select","Select","Select","Select","Select"]
["Select","-","-","-","-","Select",null,"DD/MM/YYYY","DD/MM/YYYY","Select","Select","Select","Select","Select"]
["Select","-","-","-","-","Select",null,"DD/MM/YYYY","DD/MM/YYYY","Select","Select","Select","Select","Select"]
["Select","-","-","-","-","Select",null,"DD/MM/YYYY","DD/MM/YYYY","Select","Select","Select","Select","Select"]
["Select","-","-","-","-","Select",null,"DD/MM/YYYY","DD/MM/YYYY","Select","Select","Select","Select","Select"]
["Select","-","-","-","-","Select",null,"DD/MM/YYYY","DD/MM/YYYY","Select","Select","Select","Select","Select"]
["Select","-","-","-","-","Select",null,"DD/MM/YYYY","DD/MM/YYYY","Select","Select","Select","Select","Select"]
["Select","-","-","-","-","Select",null,"DD/MM/YYYY","DD/MM/YYYY","Select","Select","Select","Select","Select"]
["Select","-","-","-","-","Select",null,"DD/MM/YYYY","DD/MM/YYYY","Select","Select","Select","Select","Select"]
["Select","-","-","-","-","Select",null,"DD/MM/YYYY","DD/MM/YYYY","Select","Select","Select","Select","Select"]
["Select","-","-","-","-","Select",null,"DD/MM/YYYY","DD/MM/YYYY","Select","Select","Select","Select","Select"]
["Select","-","-","-","-","Select",null,"DD/MM/YYYY","DD/MM/YYYY","Select","Select","Select","Select","Select"]
["Select","-","-","-","-","Select",null,"DD/MM/YYYY","DD/MM/YYYY","Select","Select","Select","Select","Select"]
["Select","-","-","-","-","Select",null,"DD/MM/YYYY","DD/MM/YYYY","Select","Select","Select","Select","Select"]
["Select","-","-","-","-","Select",null,"DD/MM/YYYY","DD/MM/YYYY","Select","Select","Select","Select","Select"]
["Select","-","-","-","-","Select",null,"DD/MM/YYYY","DD/MM/YYYY","Select","Select","Select","Select","Select"]
["Select","-","-","-","-","Select",null,"DD/MM/YYYY","DD/MM/YYYY","Select","Select","Select","Select","Select"]
["Select","-","-","-","-","Select",null,"DD/MM/YYYY","DD/MM/YYYY","Select","Select","Select","Select","Select"]
["Select","-","-","-","-","Select",null,"DD/MM/YYYY","DD/MM/YYYY","Select","Select","Select","Select","Select"]
["Select","-","-","-","-","Select",null,"DD/MM/YYYY","DD/MM/YYYY","Select","Select","Select","Select","Select"]
["Select","-","-","-","-","Select",null,"DD/MM/YYYY","DD/MM/YYYY","Select","Select","Select","Select","Select"]
["Select","-","-","-","-","Select",null,"DD/MM/YYYY","DD/MM/YYYY","Select","Select","Select","Select","Select"]
["Select","-","-","-","-","Select",null,"DD/MM/YYYY","DD/MM/YYYY","Select","Select","Select","Select","Select"]
["Select","-","-","-","-","Select",null,"DD/MM/YYYY","DD/MM/YYYY","Select","Select","Select","Select","Select"]
["Select","-","-","-","-","Select",null,"DD/MM/YYYY","DD/MM/YYYY","Select","Select","Select","Select","Select"]
["Select","-","-","-","-","Select",null,"DD/MM/YYYY","DD/MM/YYYY","Select","Select","Select","Select","Select"]
["Select","-","-","-","-","Select",null,"DD/MM/YYYY","DD/MM/YYYY","Select","Select","Select","Select","Select"]
["Select","-","-","-","-","Select",null,"DD/MM/YYYY","DD/MM/YYYY","Select","Select","Select","Select","Select"]
["Select","-","-","-","-","Select",null,"DD/MM/YYYY","DD/MM/YYYY","Select","Select","Select","Select","Select"]
["Select","-","-","-","-","Select",null,"DD/MM/YYYY","DD/MM/YYYY","Select","Select","Select","Select","Select"]
["Select","-","-","-","-","Select",null,"DD/MM/YYYY","DD/MM/YYYY","Select","Select","Select","Select","Select"]
["Select","-","-","-","-","Select",null,"DD/MM/YYYY","DD/MM/YYYY","Select","Select","Select","Select","Select"]
["Select","-","-","-","-","Select",null,"DD/MM/YYYY","DD/MM/YYYY","Select","Select","Select","Select","Select"]
["Select","-","-","-","-","Select",null,"DD/MM/YYYY","DD/MM/YYYY","Select","Select","Select","Select","Select"]
["Select","-","-","-","-","Select",null,"DD/MM/YYYY","DD/MM/YYYY","Select","Select","Select","Select","Select"]
["Select","-","-","-","-","Select",null,"DD/MM/YYYY","DD/MM/YYYY","Select","Select","Select","Select","Select"]
["Select","-","-","-","-","Select",null,"DD/MM/YYYY","DD/MM/YYYY","Select","Select","Select","Select","Select"]
["Select","-","-","-","-","Select",null,"DD/MM/YYYY","DD/MM/YYYY","Select","Select","Select","Select","Select"]
["Select","-","-","-","-","Select",null,"DD/MM/YYYY","DD/MM/YYYY","Select","Select","Select","Select","Select"]
["Select","-","-","-","-","Select",null,"DD/MM/YYYY","DD/MM/YYYY","Select","Select","Select","Select","Select"]
["Select","-","-","-","-","Select",null,"DD/MM/YYYY","DD/MM/YYYY","Select","Select","Select","Select","Select"]
["Select","-","-","-","-","Select",null,"DD/MM/YYYY","DD/MM/YYYY","Select","Select","Select","Select","Select"]
["Select","-","-","-","-","Select",null,"DD/MM/YYYY","DD/MM/YYYY","Select","Select","Select","Select","Select"]
["Select","-","-","-","-","Select",null,"DD/MM/YYYY","DD/MM/YYYY","Select","Select","Select","Select","Select"]
["Select","-","-","-","-","Select",null,"DD/MM/YYYY","DD/MM/YYYY","Select","Select","Select","Select","Select"]
["Select","-","-","-","-","Select",null,"DD/MM/YYYY","DD/MM/YYYY","Select","Select","Select","Select","Select"]
["Select","-","-","-","-","Select",null,"DD/MM/YYYY","DD/MM/YYYY","Select","Select","Select","Select","Select"]
["Select","-","-","-","-","Select",null,"DD/MM/YYYY","DD/MM/YYYY","Select","Select","Select","Select","Select"]
["Select","-","-","-","-","Select",null,"DD/MM/YYYY","DD/MM/YYYY","Select","Select","Select","Select","Select"]
["Select","-","-","-","-","Select",null,"DD/MM/YYYY","DD/MM/YYYY","Select","Select","Select","Select","Select"]
["Select","-","-","-","-","Select",null,"DD/MM/YYYY","DD/MM/YYYY","Select","Select","Select","Select","Select"]
["Select","-","-","-","-","Select",null,"DD/MM/YYYY","DD/MM/YYYY","Select","Select","Select","Select","Select"]
["Select","-","-","-","-","Select",null,"DD/MM/YYYY","DD/MM/YYYY","Select","Select","Select","Select","Select"]
["Select","-","-","-","-","Select",null,"DD/MM/YYYY","DD/MM/YYYY","Select","Select","Select","Select","Select"]
["Select","-","-","-","-","Select",null,"DD/MM/YYYY","DD/MM/YYYY","Select","Select","Select","Select","Select"]
["Select","-","-","-","-","Select",null,"DD/MM/YYYY","DD/MM/YYYY","Select","Select","Select","Select","Select"]
["Select","-","-","-","-","Select",null,"DD/MM/YYYY","DD/MM/YYYY","Select","Select","Select","Select","Select"]
["Select","-","-","-","-","Select",null,"DD/MM/YYYY","DD/MM/YYYY","Select","Select","Select","Select","Select"]
["Select","-","-","-","-","Select",null,"DD/MM/YYYY","DD/MM/YYYY","Select","Select","Select","Select","Select"]
["Select","-","-","-","-","Select",null,"DD/MM/YYYY","DD/MM/YYYY","Select","Select","Select","Select","Select"]
["Select","-","-","-","-","Select",null,"DD/MM/YYYY","DD/MM/YYYY","Select","Select","Select","Select","Select"]
["Select","-","-","-","-","Select",null,"DD/MM/YYYY","DD/MM/YYYY","Select","Select","Select","Select","Select"]
["Select","-","-","-","-","Select",null,"DD/MM/YYYY","DD/MM/YYYY","Select","Select","Select","Select","Select"]
["Select","-","-","-","-","Select",null,"DD/MM/YYYY","DD/MM/YYYY","Select","Select","Select","Select","Select"]
["Select","-","-","-","-","Select",null,"DD/MM/YYYY","DD/MM/YYYY","Select","Select","Select","Select","Select"]
["Select","-","-","-","-","Select",null,"DD/MM/YYYY","DD/MM/YYYY","Select","Select","Select","Select","Select"]
["Select","-","-","-","-","Select",null,"DD/MM/YYYY","DD/MM/YYYY","Select","Select","Select","Select","Select"]
["Select","-","-","-","-","Select",null,"DD/MM/YYYY","DD/MM/YYYY","Select","Select","Select","Select","Select"]
["Select","-","-","-","-","Select",null,"DD/MM/YYYY","DD/MM/YYYY","Select","Select","Select","Select","Select"]
["Select","-","-","-","-","Select",null,"DD/MM/YYYY","DD/MM/YYYY","Select","Select","Select","Select","Select"]
["Select","-","-","-","-","Select",null,"DD/MM/YYYY","DD/MM/YYYY","Select","Select","Select","Select","Select"]
["Select","-","-","-","-","Select",null,"DD/MM/YYYY","DD/MM/YYYY","Select","Select","Select","Select","Select"]
["Select","-","-","-","-","Select",null,"DD/MM/YYYY","DD/MM/YYYY","Select","Select","Select","Select","Select"]
["Select","-","-","-","-","Select",null,"DD/MM/YYYY","DD/MM/YYYY","Select","Select","Select","Select","Select"]
["Select","-","-","-","-","Select",null,"DD/MM/YYYY","DD/MM/YYYY","Select","Select","Select","Select","Select"]
["Select","-","-","-","-","Select",null,"DD/MM/YYYY","DD/MM/YYYY","Select","Select","Select","Select","Select"]
["Select","-","-","-","-","Select",null,"DD/MM/YYYY","DD/MM/YYYY","Select","Select","Select","Select","Select"]
["Select","-","-","-","-","Select",null,"DD/MM/YYYY","DD/MM/YYYY","Select","Select","Select","Select","Select"]
["Select","-","-","-","-","Select",null,"DD/MM/YYYY","DD/MM/YYYY","Select","Select","Select","Select","Select"]
["Select","-","-","-","-","Select",null,"DD/MM/YYYY","DD/MM/YYYY","Select","Select","Select","Select","Select"]
["Select","-","-","-","-","Select",null,"DD/MM/YYYY","DD/MM/YYYY","Select","Select","Select","Select","Select"]
["Select","-","-","-","-","Select",null,"DD/MM/YYYY","DD/MM/YYYY","Select","Select","Select","Select","Select"]
["Select","-","-","-","-","Select",null,"DD/MM/YYYY","DD/MM/YYYY","Select","Select","Select","Select","Select"]
["Select","-","-","-","-","Select",null,"DD/MM/YYYY","DD/MM/YYYY","Select","Select","Select","Select","Select"]
["Select","-","-","-","-","Select",null,"DD/MM/YYYY","DD/MM/YYYY","Select","Select","Select","Select","Select"]
["Select","-","-","-","-","Select",null,"DD/MM/YYYY","DD/MM/YYYY","Select","Select","Select","Select","Select"]
["Select","-","-","-","-","Select",null,"DD/MM/YYYY","DD/MM/YYYY","Select","Select","Select","Select","Select"]
["Select","-","-","-","-","Select",null,"DD/MM/YYYY","DD/MM/YYYY","Select","Select","Select","Select","Select"]
["Select","-","-","-","-","Select",null,"DD/MM/YYYY","DD/MM/YYYY","Select","Select","Select","Select","Select"]
["Select","-","-","-","-","Select",null,"DD/MM/YYYY","DD/MM/YYYY","Select","Select","Select","Select","Select"]
["Select","-","-","-","-","Select",null,"DD/MM/YYYY","DD/MM/YYYY","Select","Select","Select","Select","Select"]
["Select","-","-","-","-","Select",null,"DD/MM/YYYY","DD/MM/YYYY","Select","Select","Select","Select","Select"]
["Select","-","-","-","-","Select",null,"DD/MM/YYYY","DD/MM/YYYY","Select","Select","Select","Select","Select"]
["Select","-","-","-","-","Select",null,"DD/MM/YYYY","DD/MM/YYYY","Select","Select","Select","Select","Select"]
["Select","-","-","-","-","Select",null,"DD/MM/YYYY","DD/MM/YYYY","Select","Select","Select","Select","Select"]
["Select","-","-","-","-","Select",null,"DD/MM/YYYY","DD/MM/YYYY","Select","Select","Select","Select","Select"]
["Select","-","-","-","-","Select",null,"DD/MM/YYYY","DD/MM/YYYY","Select","Select","Select","Select","Select"]
["Select","-","-","-","-","Select",null,"DD/MM/YYYY","DD/MM/YYYY","Select","Select","Select","Select","Select"]
["Select","-","-","-","-","Select",null,"DD/MM/YYYY","DD/MM/YYYY","Select","Select","Select","Select","Select"]
["Select","-","-","-","-","Select",null,"DD/MM/YYYY","DD/MM/YYYY","Select","Select","Select","Select","Select"]
["Select","-","-","-","-","Select",null,"DD/MM/YYYY","DD/MM/YYYY","Select","Select","Select","Select","Select"]
["Select","-","-","-","-","Select",null,"DD/MM/YYYY","DD/MM/YYYY","Select","Select","Select","Select","Select"]
["Select","-","-","-","-","Select",null,"DD/MM/YYYY","DD/MM/YYYY","Select","Select","Select","Select","Select"]
["Select","-","-","-","-","Select",null,"DD/MM/YYYY","DD/MM/YYYY","Select","Select","Select","Select","Select"]
["Select","-","-","-","-","Select",null,"DD/MM/YYYY","DD/MM/YYYY","Select","Select","Select","Select","Select"]
["Select","-","-","-","-","Select",null,"DD/MM/YYYY","DD/MM/YYYY","Select","Select","Select","Select","Select"]
["Select","-","-","-","-","Select",null,"DD/MM/YYYY","DD/MM/YYYY","Select","Select","Select","Select","Select"]
["Select","-","-","-","-","Select",null,"DD/MM/YYYY","DD/MM/YYYY","Select","Select","Select","Select","Select"]
["Select","-","-","-","-","Select",null,"DD/MM/YYYY","DD/MM/YYYY","Select","Select","Select","Select","Select"]
["Select","-","-","-","-","Select",null,"DD/MM/YYYY","DD/MM/YYYY","Select","Select","Select","Select","Select"]
["Select","-","-","-","-","Select",null,"DD/MM/YYYY","DD/MM/YYYY","Select","Select","Select","Select","Select"]
["Select","-","-","-","-","Select",null,"DD/MM/YYYY","DD/MM/YYYY","Select","Select","Select","Select","Select"]
["Select","-","-","-","-","Select",null,"DD/MM/YYYY","DD/MM/YYYY","Select","Select","Select","Select","Select"]
["Select","-","-","-","-","Select",null,"DD/MM/YYYY","DD/MM/YYYY","Select","Select","Select","Select","Select"]
["Select","-","-","-","-","Select",null,"DD/MM/YYYY","DD/MM/YYYY","Select","Select","Select","Select","Select"]
["Select","-","-","-","-","Select",null,"DD/MM/YYYY","DD/MM/YYYY","Select","Select","Select","Select","Select"]
["Select","-","-","-","-","Select",null,"DD/MM/YYYY","DD/MM/YYYY","Select","Select","Select","Select","Select"]
["Select","-","-","-","-","Select",null,"DD/MM/YYYY","DD/MM/YYYY","Select","Select","Select","Select","Select"]
["Select","-","-","-","-","Select",null,"DD/MM/YYYY","DD/MM/YYYY","Select","Select","Select","Select","Select"]
["Select","-","-","-","-","Select",null,"DD/MM/YYYY","DD/MM/YYYY","Select","Select","Select","Select","Select"]
["Select","-","-","-","-","Select",null,"DD/MM/YYYY","DD/MM/YYYY","Select","Select","Select","Select","Select"]
["Select","-","-","-","-","Select",null,"DD/MM/YYYY","DD/MM/YYYY","Select","Select","Select","Select","Select"]
["Select","-","-","-","-","Select",null,"DD/MM/YYYY","DD/MM/YYYY","Select","Select","Select","Select","Select"]
["Select","-","-","-","-","Select",null,"DD/MM/YYYY","DD/MM/YYYY","Select","Select","Select","Select","Select"]
["Select","-","-","-","-","Select",null,"DD/MM/YYYY","DD/MM/YYYY","Select","Select","Select","Select","Select"]
["Select","-","-","-","-","Select",null,"DD/MM/YYYY","DD/MM/YYYY","Select","Select","Select","Select","Select"]
["Select","-","-","-","-","Select",null,"DD/MM/YYYY","DD/MM/YYYY","Select","Select","Select","Select","Select"]
["Select","-","-","-","-","Select",null,"DD/MM/YYYY","DD/MM/YYYY","Select","Select","Select","Select","Select"]
["Select","-","-","-","-","Select",null,"DD/MM/YYYY","DD/MM/YYYY","Select","Select","Select","Select","Select"]
["Select","-","-","-","-","Select",null,"DD/MM/YYYY","DD/MM/YYYY","Select","Select","Select","Select","Select"]
["Select","-","-","-","-","Select",null,"DD/MM/YYYY","DD/MM/YYYY","Select","Select","Select","Select","Select"]
["Select","-","-","-","-","Select",null,"DD/MM/YYYY","DD/MM/YYYY","Select","Select","Select","Select","Select"]
["Select","-","-","-","-","Select",null,"DD/MM/YYYY","DD/MM/YYYY","Select","Select","Select","Select","Select"]
["Select","-","-","-","-","Select",null,"DD/MM/YYYY","DD/MM/YYYY","Select","Select","Select","Select","Select"]
["Select","-","-","-","-","Select",null,"DD/MM/YYYY","DD/MM/YYYY","Select","Select","Select","Select","Select"]
["Select","-","-","-","-","Select",null,"DD/MM/YYYY","DD/MM/YYYY","Select","Select","Select","Select","Select"]
["Select","-","-","-","-","Select",null,"DD/MM/YYYY","DD/MM/YYYY","Select","Select","Select","Select","Select"]
["Select","-","-","-","-","Select",null,"DD/MM/YYYY","DD/MM/YYYY","Select","Select","Select","Select","Select"]
["Select","-","-","-","-","Select",null,"DD/MM/YYYY","DD/MM/YYYY","Select","Select","Select","Select","Select"]
["Select","-","-","-","-","Select",null,"DD/MM/YYYY","DD/MM/YYYY","Select","Select","Select","Select","Select"]
["Select","-","-","-","-","Select",null,"DD/MM/YYYY","DD/MM/YYYY","Select","Select","Select","Select","Select"]
["Select","-","-","-","-","Select",null,"DD/MM/YYYY","DD/MM/YYYY","Select","Select","Select","Select","Select"]
["Select","-","-","-","-","Select",null,"DD/MM/YYYY","DD/MM/YYYY","Select","Select","Select","Select","Select"]
["Select","-","-","-","-","Select",null,"DD/MM/YYYY","DD/MM/YYYY","Select","Select","Select","Select","Select"]
["Select","-","-","-","-","Select",null,"DD/MM/YYYY","DD/MM/YYYY","Select","Select","Select","Select","Select"]
["Select","-","-","-","-","Select",null,"DD/MM/YYYY","DD/MM/YYYY","Select","Select","Select","Select","Select"]
["Select","-","-","-","-","Select",null,"DD/MM/YYYY","DD/MM/YYYY","Select","Select","Select","Select","Select"]
["Select","-","-","-","-","Select",null,"DD/MM/YYYY","DD/MM/YYYY","Select","Select","Select","Select","Select"]
["Select","-","-","-","-","Select",null,"DD/MM/YYYY","DD/MM/YYYY","Select","Select","Select","Select","Select"]
["Select","-","-","-","-","Select",null,"DD/MM/YYYY","DD/MM/YYYY","Select","Select","Select","Select","Select"]
["Select","-","-","-","-","Select",null,"DD/MM/YYYY","DD/MM/YYYY","Select","Select","Select","Select","Select"]
["Select","-","-","-","-","Select",null,"DD/MM/YYYY","DD/MM/YYYY","Select","Select","Select","Select","Select"]
["Select","-","-","-","-","Select",null,"DD/MM/YYYY","DD/MM/YYYY","Select","Select","Select","Select","Select"]
["Select","-","-","-","-","Select",null,"DD/MM/YYYY","DD/MM/YYYY","Select","Select","Select","Select","Select"]
["Select","-","-","-","-","Select",null,"DD/MM/YYYY","DD/MM/YYYY","Select","Select","Select","Select","Select"]
["Select","-","-","-","-","Select",null,"DD/MM/YYYY","DD/MM/YYYY","Select","Select","Select","Select","Select"]
["Select","-","-","-","-","Select",null,"DD/MM/YYYY","DD/MM/YYYY","Select","Select","Select","Select","Select"]
["Select","-","-","-","-","Select",null,"DD/MM/YYYY","DD/MM/YYYY","Select","Select","Select","Select","Select"]
["Select","-","-","-","-","Select",null,"DD/MM/YYYY","DD/MM/YYYY","Select","Select","Select","Select","Select"]
["Select","-","-","-","-","Select",null,"DD/MM/YYYY","DD/MM/YYYY","Select","Select","Select","Select","Select"]
["Select","-","-","-","-","Select",null,"DD/MM/YYYY","DD/MM/YYYY","Select","Select","Select","Select","Select"]
["Select","-","-","-","-","Select",null,"DD/MM/YYYY","DD/MM/YYYY","Select","Select","Select","Select","Select"]
["Select","-","-","-","-","Select",null,"DD/MM/YYYY","DD/MM/YYYY","Select","Select","Select","Select","Select"]
["Select","-","-","-","-","Select",null,"DD/MM/YYYY","DD/MM/YYYY","Select","Select","Select","Select","Select"]
["Select","-","-","-","-","Select",null,"DD/MM/YYYY","DD/MM/YYYY","Select","Select","Select","Select","Select"]
["Select","-","-","-","-","Select",null,"DD/MM/YYYY","DD/MM/YYYY","Select","Select","Select","Select","Select"]
["Select","-","-","-","-","Select",null,"DD/MM/YYYY","DD/MM/YYYY","Select","Select","Select","Select","Select"]
["Select","-","-","-","-","Select",null,"DD/MM/YYYY","DD/MM/YYYY","Select","Select","Select","Select","Select"]
["Select","-","-","-","-","Select",null,"DD/MM/YYYY","DD/MM/YYYY","Select","Select","Select","Select","Select"]
["Select","-","-","-","-","Select",null,"DD/MM/YYYY","DD/MM/YYYY","Select","Select","Select","Select","Select"]
["Select","-","-","-","-","Select",null,"DD/MM/YYYY","DD/MM/YYYY","Select","Select","Select","Select","Select"]
["Select","-","-","-","-","Select",null,"DD/MM/YYYY","DD/MM/YYYY","Select","Select","Select","Select","Select"]
["Select","-","-","-","-","Select",null,"DD/MM/YYYY","DD/MM/YYYY","Select","Select","Select","Select","Select"]
["Select","-","-","-","-","Select",null,"DD/MM/YYYY","DD/MM/YYYY","Select","Select","Select","Select","Select"]
["Select","-","-","-","-","Select",null,"DD/MM/YYYY","DD/MM/YYYY","Select","Select","Select","Select","Select"]
["Select","-","-","-","-","Select",null,"DD/MM/YYYY","DD/MM/YYYY","Select","Select","Select","Select","Select"]
["Select","-","-","-","-","Select",null,"DD/MM/YYYY","DD/MM/YYYY","Select","Select","Select","Select","Select"]
["Select","-","-","-","-","Select",null,"DD/MM/YYYY","DD/MM/YYYY","Select","Select","Select","Select","Select"]
["Select","-","-","-","-","Select",null,"DD/MM/YYYY","DD/MM/YYYY","Select","Select","Select","Select","Select"]
["Select","-","-","-","-","Select",null,"DD/MM/YYYY","DD/MM/YYYY","Select","Select","Select","Select","Select"]
["Select","-","-","-","-","Select",null,"DD/MM/YYYY","DD/MM/YYYY","Select","Select","Select","Select","Select"]
["Select","-","-","-","-","Select",null,"DD/MM/YYYY","DD/MM/YYYY","Select","Select","Select","Select","Select"]
["Select","-","-","-","-","Select",null,"DD/MM/YYYY","DD/MM/YYYY","Select","Select","Select","Select","Select"]
["Select","-","-","-","-","Select",null,"DD/MM/YYYY","DD/MM/YYYY","Select","Select","Select","Select","Select"]
["Select","-","-","-","-","Select",null,"DD/MM/YYYY","DD/MM/YYYY","Select","Select","Select","Select","Select"]
["Select","-","-","-","-","Select",null,"DD/MM/YYYY","DD/MM/YYYY","Select","Select","Select","Select","Select"]
["Select","-","-","-","-","Select",null,"DD/MM/YYYY","DD/MM/YYYY","Select","Select","Select","Select","Select"]
["Select","-","-","-","-","Select",null,"DD/MM/YYYY","DD/MM/YYYY","Select","Select","Select","Select","Select"]
["Select","-","-","-","-","Select",null,"DD/MM/YYYY","DD/MM/YYYY","Select","Select","Select","Select","Select"]
["Select","-","-","-","-","Select",null,"DD/MM/YYYY","DD/MM/YYYY","Select","Select","Select","Select","Select"]
["Select","-","-","-","-","Select",null,"DD/MM/YYYY","DD/MM/YYYY","Select","Select","Select","Select","Select"]
["Select","-","-","-","-","Select",null,"DD/MM/YYYY","DD/MM/YYYY","Select","Select","Select","Select","Select"]
["Select","-","-","-","-","Select",null,"DD/MM/YYYY","DD/MM/YYYY","Select","Select","Select","Select","Select"]
["Select","-","-","-","-","Select",null,"DD/MM/YYYY","DD/MM/YYYY","Select","Select","Select","Select","Select"]
["Select","-","-","-","-","Select",null,"DD/MM/YYYY","DD/MM/YYYY","Select","Select","Select","Select","Select"]
["Select","-","-","-","-","Select",null,"DD/MM/YYYY","DD/MM/YYYY","Select","Select","Select","Select","Select"]
["Select","-","-","-","-","Select",null,"DD/MM/YYYY","DD/MM/YYYY","Select","Select","Select","Select","Select"]
["Select","-","-","-","-","Select",null,"DD/MM/YYYY","DD/MM/YYYY","Select","Select","Select","Select","Select"]
["Select","-","-","-","-","Select",null,"DD/MM/YYYY","DD/MM/YYYY","Select","Select","Select","Select","Select"]
["Select","-","-","-","-","Select",null,"DD/MM/YYYY","DD/MM/YYYY","Select","Select","Select","Select","Select"]
["Select","-","-","-","-","Select",null,"DD/MM/YYYY","DD/MM/YYYY","Select","Select","Select","Select","Select"]
["Select","-","-","-","-","Select",null,"DD/MM/YYYY","DD/MM/YYYY","Select","Select","Select","Select","Select"]
["Select","-","-","-","-","Select",null,"DD/MM/YYYY","DD/MM/YYYY","Select","Select","Select","Select","Select"]
["Select","-","-","-","-","Select",null,"DD/MM/YYYY","DD/MM/YYYY","Select","Select","Select","Select","Select"]
["Select","-","-","-","-","Select",null,"DD/MM/YYYY","DD/MM/YYYY","Select","Select","Select","Select","Select"]
["Select","-","-","-","-","Select",null,"DD/MM/YYYY","DD/MM/YYYY","Select","Select","Select","Select","Select"]
["Select","-","-","-","-","Select",null,"DD/MM/YYYY","DD/MM/YYYY","Select","Select","Select","Select","Select"]
["Select","-","-","-","-","Select",null,"DD/MM/YYYY","DD/MM/YYYY","Select","Select","Select","Select","Select"]
["Select","-","-","-","-","Select",null,"DD/MM/YYYY","DD/MM/YYYY","Select","Select","Select","Select","Select"]
["Select","-","-","-","-","Select",null,"DD/MM/YYYY","DD/MM/YYYY","Select","Select","Select","Select","Select"]
["Select","-","-","-","-","Select",null,"DD/MM/YYYY","DD/MM/YYYY","Select","Select","Select","Select","Select"]
["Select","-","-","-","-","Select",null,"DD/MM/YYYY","DD/MM/YYYY","Select","Select","Select","Select","Select"]
["Select","-","-","-","-","Select",null,"DD/MM/YYYY","DD/MM/YYYY","Select","Select","Select","Select","Select"]
["Select","-","-","-","-","Select",null,"DD/MM/YYYY","DD/MM/YYYY","Select","Select","Select","Select","Select"]
["Select","-","-","-","-","Select",null,"DD/MM/YYYY","DD/MM/YYYY","Select","Select","Select","Select","Select"]
["Select","-","-","-","-","Select",null,"DD/MM/YYYY","DD/MM/YYYY","Select","Select","Select","Select","Select"]
["Select","-","-","-","-","Select",null,"DD/MM/YYYY","DD/MM/YYYY","Select","Select","Select","Select","Select"]
["Select","-","-","-","-","Select",null,"DD/MM/YYYY","DD/MM/YYYY","Select","Select","Select","Select","Select"]
["Select","-","-","-","-","Select",null,"DD/MM/YYYY","DD/MM/YYYY","Select","Select","Select","Select","Select"]
["Select","-","-","-","-","Select",null,"DD/MM/YYYY","DD/MM/YYYY","Select","Select","Select","Select","Select"]
["Select","-","-","-","-","Select",null,"DD/MM/YYYY","DD/MM/YYYY","Select","Select","Select","Select","Select"]
["Select","-","-","-","-","Select",null,"DD/MM/YYYY","DD/MM/YYYY","Select","Select","Select","Select","Select"]
["Select","-","-","-","-","Select",null,"DD/MM/YYYY","DD/MM/YYYY","Select","Select","Select","Select","Select"]
["Select","-","-","-","-","Select",null,"DD/MM/YYYY","DD/MM/YYYY","Select","Select","Select","Select","Select"]
["Select","-","-","-","-","Select",null,"DD/MM/YYYY","DD/MM/YYYY","Select","Select","Select","Select","Select"]
["Select","-","-","-","-","Select",null,"DD/MM/YYYY","DD/MM/YYYY","Select","Select","Select","Select","Select"]
["Select","-","-","-","-","Select",null,"DD/MM/YYYY","DD/MM/YYYY","Select","Select","Select","Select","Select"]
["Select","-","-","-","-","Select",null,"DD/MM/YYYY","DD/MM/YYYY","Select","Select","Select","Select","Select"]
["Select","-","-","-","-","Select",null,"DD/MM/YYYY","DD/MM/YYYY","Select","Select","Select","Select","Select"]
["Select","-","-","-","-","Select",null,"DD/MM/YYYY","DD/MM/YYYY","Select","Select","Select","Select","Select"]
["Select","-","-","-","-","Select",null,"DD/MM/YYYY","DD/MM/YYYY","Select","Select","Select","Select","Select"]
["Select","-","-","-","-","Select",null,"DD/MM/YYYY","DD/MM/YYYY","Select","Select","Select","Select","Select"]
["Select","-","-","-","-","Select",null,"DD/MM/YYYY","DD/MM/YYYY","Select","Select","Select","Select","Select"]
["Select","-","-","-","-","Select",null,"DD/MM/YYYY","DD/MM/YYYY","Select","Select","Select","Select","Select"]
["Select","-","-","-","-","Select",null,"DD/MM/YYYY","DD/MM/YYYY","Select","Select","Select","Select","Select"]
["Select","-","-","-","-","Select",null,"DD/MM/YYYY","DD/MM/YYYY","Select","Select","Select","Select","Select"]
["Select","-","-","-","-","Select",null,"DD/MM/YYYY","DD/MM/YYYY","Select","Select","Select","Select","Select"]
["Select","-","-","-","-","Select",null,"DD/MM/YYYY","DD/MM/YYYY","Select","Select","Select","Select","Select"]
["Select","-","-","-","-","Select",null,"DD/MM/YYYY","DD/MM/YYYY","Select","Select","Select","Select","Select"]
["Select","-","-","-","-","Select",null,"DD/MM/YYYY","DD/MM/YYYY","Select","Select","Select","Select","Select"]
["Select","-","-","-","-","Select",null,"DD/MM/YYYY","DD/MM/YYYY","Select","Select","Select","Select","Select"]
["Select","-","-","-","-","Select",null,"DD/MM/YYYY","DD/MM/YYYY","Select","Select","Select","Select","Select"]
["Select","-","-","-","-","Select",null,"DD/MM/YYYY","DD/MM/YYYY","Select","Select","Select","Select","Select"]
["Select","-","-","-","-","Select",null,"DD/MM/YYYY","DD/MM/YYYY","Select","Select","Select","Select","Select"]
["Select","-","-","-","-","Select",null,"DD/MM/YYYY","DD/MM/YYYY","Select","Select","Select","Select","Select"]
["Select","-","-","-","-","Select",null,"DD/MM/YYYY","DD/MM/YYYY","Select","Select","Select","Select","Select"]
["Select","-","-","-","-","Select",null,"DD/MM/YYYY","DD/MM/YYYY","Select","Select","Select","Select","Select"]
["Select","-","-","-","-","Select",null,"DD/MM/YYYY","DD/MM/YYYY","Select","Select","Select","Select","Select"]
["Select","-","-","-","-","Select",null,"DD/MM/YYYY","DD/MM/YYYY","Select","Select","Select","Select","Select"]
["Select","-","-","-","-","Select",null,"DD/MM/YYYY","DD/MM/YYYY","Select","Select","Select","Select","Select"]
["Select","-","-","-","-","Select",null,"DD/MM/YYYY","DD/MM/YYYY","Select","Select","Select","Select","Select"]
["Select","-","-","-","-","Select",null,"DD/MM/YYYY","DD/MM/YYYY","Select","Select","Select","Select","Select"]
["Select","-","-","-","-","Select",null,"DD/MM/YYYY","DD/MM/YYYY","Select","Select","Select","Select","Select"]
["Select","-","-","-","-","Select",null,"DD/MM/YYYY","DD/MM/YYYY","Select","Select","Select","Select","Select"]
["Select","-","-","-","-","Select",null,"DD/MM/YYYY","DD/MM/YYYY","Select","Select","Select","Select","Select"]
["Select","-","-","-","-","Select",null,"DD/MM/YYYY","DD/MM/YYYY","Select","Select","Select","Select","Select"]
["Select","-","-","-","-","Select",null,"DD/MM/YYYY","DD/MM/YYYY","Select","Select","Select","Select","Select"]
["Select","-","-","-","-","Select",null,"DD/MM/YYYY","DD/MM/YYYY","Select","Select","Select","Select","Select"]
["Select","-","-","-","-","Select",null,"DD/MM/YYYY","DD/MM/YYYY","Select","Select","Select","Select","Select"]
["Select","-","-","-","-","Select",null,"DD/MM/YYYY","DD/MM/YYYY","Select","Select","Select","Select","Select"]
["Select","-","-","-","-","Select",null,"DD/MM/YYYY","DD/MM/YYYY","Select","Select","Select","Select","Select"]
["Select","-","-","-","-","Select",null,"DD/MM/YYYY","DD/MM/YYYY","Select","Select","Select","Select","Select"]
["Select","-","-","-","-","Select",null,"DD/MM/YYYY","DD/MM/YYYY","Select","Select","Select","Select","Select"]
["Select","-","-","-","-","Select",null,"DD/MM/YYYY","DD/MM/YYYY","Select","Select","Select","Select","Select"]
["Select","-","-","-","-","Select",null,"DD/MM/YYYY","DD/MM/YYYY","Select","Select","Select","Select","Select"]
["Select","-","-","-","-","Select",null,"DD/MM/YYYY","DD/MM/YYYY","Select","Select","Select","Select","Select"]
["Select","-","-","-","-","Select",null,"DD/MM/YYYY","DD/MM/YYYY","Select","Select","Select","Select","Select"]
["Select","-","-","-","-","Select",null,"DD/MM/YYYY","DD/MM/YYYY","Select","Select","Select","Select","Select"]
["Select","-","-","-","-","Select",null,"DD/MM/YYYY","DD/MM/YYYY","Select","Select","Select","Select","Select"]
["Select","-","-","-","-","Select",null,"DD/MM/YYYY","DD/MM/YYYY","Select","Select","Select","Select","Select"]
["Select","-","-","-","-","Select",null,"DD/MM/YYYY","DD/MM/YYYY","Select","Select","Select","Select","Select"]
["Select","-","-","-","-","Select",null,"DD/MM/YYYY","DD/MM/YYYY","Select","Select","Select","Select","Select"]
["Select","-","-","-","-","Select",null,"DD/MM/YYYY","DD/MM/YYYY","Select","Select","Select","Select","Select"]
["Select","-","-","-","-","Select",null,"DD/MM/YYYY","DD/MM/YYYY","Select","Select","Select","Select","Select"]
["Select","-","-","-","-","Select",null,"DD/MM/YYYY","DD/MM/YYYY","Select","Select","Select","Select","Select"]
["Select","-","-","-","-","Select",null,"DD/MM/YYYY","DD/MM/YYYY","Select","Select","Select","Select","Select"]
["Select","-","-","-","-","Select",null,"DD/MM/YYYY","DD/MM/YYYY","Select","Select","Select","Select","Select"]
["Select","-","-","-","-","Select",null,"DD/MM/YYYY","DD/MM/YYYY","Select","Select","Select","Select","Select"]
["Select","-","-","-","-","Select",null,"DD/MM/YYYY","DD/MM/YYYY","Select","Select","Select","Select","Select"]
["Select","-","-","-","-","Select",null,"DD/MM/YYYY","DD/MM/YYYY","Select","Select","Select","Select","Select"]
["Select","-","-","-","-","Select",null,"DD/MM/YYYY","DD/MM/YYYY","Select","Select","Select","Select","Select"]
["Select","-","-","-","-","Select",null,"DD/MM/YYYY","DD/MM/YYYY","Select","Select","Select","Select","Select"]
["Select","-","-","-","-","Select",null,"DD/MM/YYYY","DD/MM/YYYY","Select","Select","Select","Select","Select"]
["Select","-","-","-","-","Select",null,"DD/MM/YYYY","DD/MM/YYYY","Select","Select","Select","Select","Select"]
["Select","-","-","-","-","Select",null,"DD/MM/YYYY","DD/MM/YYYY","Select","Select","Select","Select","Select"]
["Select","-","-","-","-","Select",null,"DD/MM/YYYY","DD/MM/YYYY","Select","Select","Select","Select","Select"]
["Select","-","-","-","-","Select",null,"DD/MM/YYYY","DD/MM/YYYY","Select","Select","Select","Select","Select"]
["Select","-","-","-","-","Select",null,"DD/MM/YYYY","DD/MM/YYYY","Select","Select","Select","Select","Select"]
["Select","-","-","-","-","Select",null,"DD/MM/YYYY","DD/MM/YYYY","Select","Select","Select","Select","Select"]
["Select","-","-","-","-","Select",null,"DD/MM/YYYY","DD/MM/YYYY","Select","Select","Select","Select","Select"]
["Select","-","-","-","-","Select",null,"DD/MM/YYYY","DD/MM/YYYY","Select","Select","Select","Select","Select"]
["Select","-","-","-","-","Select",null,"DD/MM/YYYY","DD/MM/YYYY","Select","Select","Select","Select","Select"]
["Select","-","-","-","-","Select",null,"DD/MM/YYYY","DD/MM/YYYY","Select","Select","Select","Select","Select"]
["Select","-","-","-","-","Select",null,"DD/MM/YYYY","DD/MM/YYYY","Select","Select","Select","Select","Select"]
["Select","-","-","-","-","Select",null,"DD/MM/YYYY","DD/MM/YYYY","Select","Select","Select","Select","Select"]
["Select","-","-","-","-","Select",null,"DD/MM/YYYY","DD/MM/YYYY","Select","Select","Select","Select","Select"]
["Select","-","-","-","-","Select",null,"DD/MM/YYYY","DD/MM/YYYY","Select","Select","Select","Select","Select"]
["Select","-","-","-","-","Select",null,"DD/MM/YYYY","DD/MM/YYYY","Select","Select","Select","Select","Select"]
["Select","-","-","-","-","Select",null,"DD/MM/YYYY","DD/MM/YYYY","Select","Select","Select","Select","Select"]
["Select","-","-","-","-","Select",null,"DD/MM/YYYY","DD/MM/YYYY","Select","Select","Select","Select","Select"]
["Select","-","-","-","-","Select",null,"DD/MM/YYYY","DD/MM/YYYY","Select","Select","Select","Select","Select"]
["Select","-","-","-","-","Select",null,"DD/MM/YYYY","DD/MM/YYYY","Select","Select","Select","Select","Select"]
["Select","-","-","-","-","Select",null,"DD/MM/YYYY","DD/MM/YYYY","Select","Select","Select","Select","Select"]
["Select","-","-","-","-","Select",null,"DD/MM/YYYY","DD/MM/YYYY","Select","Select","Select","Select","Select"]
["Select","-","-","-","-","Select",null,"DD/MM/YYYY","DD/MM/YYYY","Select","Select","Select","Select","Select"]
["Select","-","-","-","-","Select",null,"DD/MM/YYYY","DD/MM/YYYY","Select","Select","Select","Select","Select"]
["Select","-","-","-","-","Select",null,"DD/MM/YYYY","DD/MM/YYYY","Select","Select","Select","Select","Select"]
["Select","-","-","-","-","Select",null,"DD/MM/YYYY","DD/MM/YYYY","Select","Select","Select","Select","Select"]
["Select","-","-","-","-","Select",null,"DD/MM/YYYY","DD/MM/YYYY","Select","Select","Select","Select","Select"]
["Select","-","-","-","-","Select",null,"DD/MM/YYYY","DD/MM/YYYY","Select","Select","Select","Select","Select"]
["Select","-","-","-","-","Select",null,"DD/MM/YYYY","DD/MM/YYYY","Select","Select","Select","Select","Select"]
["Select","-","-","-","-","Select",null,"DD/MM/YYYY","DD/MM/YYYY","Select","Select","Select","Select","Select"]

{"sheet":"Fee Table","index":4,"n_rows":106,"n_cols":17,"rows_kept":106,"cut":false,"hidden":false,"merged":[[32,2,32,16],[1,2,1,16],[2,2,2,16],[4,2,4,16],[6,3,6,4],[6,5,6,8],[6,9,6,13],[26,2,26,16],[28,3,28,4],[28,5,28,8],[28,9,28,14],[28,15,28,16],[45,2,45,16],[58,2,58,16],[62,2,62,3],[82,2,86,2],[87,2,105,2]]}
[]
[null,null,"Caregiver Fee Table "]
[null,null,"Effective April 1, 2024\nreviesed June 7, 2024"]
[]
[null,null,"Base Case Rate and Hourly Rate"]
[]
[null,null,null,"Zone 1",null,"Zone 2",null,null,null,"Zone 3",null,null,null,null,"Zone 4"]
[null,null,null,"Northeast","South-Central","Pacific Mountain","South-East","North-Central ","Central ","South-West","Olympic","Tacoma-Pierce","Snohomish","North-West","Seattle-King"]
[]
[null,null,"Estimated Daily census"]
[]
[null,null,"Resource Support Lvl 1",495,495,529,529,529,529,508,508,508,508,508,564]
[null,null,"Resource Support Lvl 2",532,532,569,569,569,569,547,547,547,547,547,607]
[null,null,"Resource Support Lvl 3",577,577,616,616,616,616,592,592,592,592,592,657]
[null,null,"Resource Support Lvl 4",631,631,673,673,673,673,648,648,648,648,648,718]
[null,null,"Resource Support Lvl 5",782,782,834,834,834,834,803,803,803,803,803,890]
[null,null,"Resource Support Lvl 6",833,833,889,889,889,889,855,855,855,855,855,948]
[null,null,"Resource Support Lvl 7",961,961,1025,1025,1025,1025,987,987,987,987,987,1093]
[]
[]
[null,null,"Case Aide Hourly ",55.78,55.78,57.84,57.84,57.84,57.84,56.72,56.72,56.72,56.72,56.72,62.68]
[]
[]
[]
[]
[]
[]
[]
[null,null,null,"Zone 1",null,"Zone 2",null,null,null,"Zone 3",null,null,null,null,null,"Zone 4"]
[null,null,null,"North-East","South-Central","Pacific Mountain","South-East","North-Central","Central","South-West","Olympic","Pierce-North","Pierce-South","Snohomish","North-West","King-North","King-South"]
[]
[]
[null,null,"Capacity Payment - Per Full Time Equivelant Per Month"]
[]
[null,null,"Portion of the total Caregiver rate paid as capacity versus fee for service.",0.48]
[]
[]
[null,null,"Case Aide - Per FTE per month",4641.2976709933037,4641.2976709933037,4812.3138800349716,4812.3138800349716,4812.3138800349716,4812.3138800349716,4719.10149997386,4719.10149997386,4719.10149997386,4719.10149997386,4719.10149997386,4719.10149997386,5214.7820844238604,5214.7820844238604]
[null,null,"Maximum billable FTEs per month",26.8,12.7,21.2,14.4,2.5,9,18.600000000000001,9.4,13.9,14.5,14.3,8.1999999999999993,12.1,11.7]
[]
[null,null,"Placement Support Manager per FTE per month",5166.8904915061239,5166.8904915061239,5503.2802902913818,5503.2802902913818,5503.2802902913818,5503.2802902913818,5299.8856538200143,5299.8856538200143,5299.8856538200143,5299.8856538200143,5299.8856538200143,5299.8856538200143,5863.0336228853994,5863.0336228853994]
[null,null,"Maximum billable FTEs per month",28.799999999999997,13.649999999999999,22.725000000000001,15.450000000000001,2.7,9.6750000000000007,19.950000000000003,10.125,14.924999999999999,15.600000000000001,15.375,8.8500000000000014,13.049999999999999,12.524999999999999]
[]
[]
[]
[null,null,"Fee For Service"]
[]
[null,null,null,"Zone 1",null,null,null,"Zone 2",null,null,null,"Zone 3",null,null,null,"Zone 4"]
[]
[null,null,"Placement Support - Per Child/Youth Per Month Case Rate","Monthly Case Rate"]
[null,null,"Catchment Provider Resource Level Lv1 ",257,null,null,null,275,null,null,null,264,null,null,null,293]
[null,null,"Catchment Provider Resource Level Lv2",277,null,null,null,296,null,null,null,284,null,null,null,316]
[null,null,"Catchment Provider Resource Level Lv3",300,null,null,null,320,null,null,null,308,null,null,null,342]
[null,null,"Catchment Provider Resource Level Lv4",328,null,null,null,350,null,null,null,337,null,null,null,373]
[null,null,"Catchment Provider Resource Level Lv5",407,null,null,null,434,null,null,null,418,null,null,null,463]
[null,null,"Catchment Provider Resource Level Lv6",433,null,null,null,462,null,null,null,445,null,null,null,493]
[null,null,"Catchment Provider Resource Level Lv7",500,null,null,null,533,null,null,null,513,null,null,null,568]
[]
[null,null,"Case Aide Hourly Rate "]
[]
[null,null,null,29.005600000000001,null,null,null,30.076800000000002,null,null,null,29.494399999999999,null,null,null,32.590000000000003]
[]
[null,null,"Authorized hours of Case Aide Services Per month, per level, per child/youth"]
[null,null,"Behavioral Case Aide  Lvl 3",9]
[null,null,"Behavioral Case Aide  Lvl 4",12]
[null,null,"Behavioral Case Aide  Lvl 5",15]
[null,null,"Behavioral Case Aide  Lvl 6",17]
[null,null,"Behavioral Case Aide  Lvl 7",20]
[]
[]
[]
[]
[]
[]
[]
[null,null,"Milage reimbursed at posted OFM rate","Travel | Office of Financial Management (wa.gov)"]
[]
[]
[]
[]
[]
[]
[null,null,"Zone",null,null,"Olympic"]
[null,null,null,null,"Central ","Snohomish"]
[null,null,null,null,"North-Central ","Northwest"]
[null,null,null,"Northeast","Pacific Mountain","Southwest"]
[null,null,null,"South Central","South-East","Tacoma-Pierce","Seattle-King"]
[null,null,"County","Lincoln","Chelan","Island","King"]
[null,null,null,"Pend Oreille","Douglas","San Juan"]
[null,null,null,"Spokane","Grant","Skagit"]
[null,null,null,"Stevens","Kittitas","Whatcom"]
[null,null,null,"Klickitat","Ferry","Clallam"]
[null,null,null,"Yakima","Okanogan","Jefferson"]
[null,null,null,null,"Grays Harbor","Kitsap"]
[null,null,null,null,"Lewis","Snohomish"]
[null,null,null,null,"Mason","Clark"]
[null,null,null,null,"Pacific","Cowlitz"]
[null,null,null,null,"Thurston","Skamania"]
[null,null,null,null,"Columbia","Wahkiakum"]
[null,null,null,null,"Franklin","Pierce"]
[null,null,null,null,"Garfield"]
[null,null,null,null,"Walla Walla"]
[null,null,null,null,"Whitman"]
[null,null,null,null,"Adams"]
[null,null,null,null,"Asotin"]
[null,null,null,null,"Benton"]

{"sheet":"Offices","index":5,"n_rows":123,"n_cols":20,"rows_kept":123,"cut":false,"hidden":true,"merged":[]}
["cd_dept_unit","tx_dept_unit","cd_dept_unit","tx_ofc_div",null,null,null,"Reasions",null,null,"Select"]
[772,"DJR Region 1",772,"Region 1",{"$error":"#N/A"},null,null,"[Select]",null,null,"Finished",null,null,"Select","Select","Select","Select","Select","Select","Select"]
[721,"Clarkston",721,"Region 1",5,null,null,"PCA Issue",null,null,"Not Finished",null,null,null,"Clarkston","White Salmon","Tribal Payment Only","Martin Luther King Jr. ","Parkland (Satellite)","Forks"]
[717,"Republic",717,"Region 1",7,null,null,"Insufficient Info In CLU",null,null,null,null,null,null,"Republic","Goldendale","Region 3 Adoptions"," Office of Indian Child Welfare - R04","R5 S'Klallam Tribe","Port Townsend"]
[716,"Colfax",716,"Region 1",16,null,null,"FA Error",null,null,null,null,null,null,"Colfax","Region 2 Facility Investigation","Region 3 Facility Investigation","Region 4 Family Treatment Court","Puyallup ","Olympia DCFS (Tumwater)"]
[715,"Colville",715,"Region 1",12,null,null,"Placement Correction",null,null,null,null,null,null,"Colville","Sunnyside","Sky Valley","King West DCFS","Region 5 Facility Investigation","South Bend"]
[714,"Spokane Central",714,"Region 1",9,null,null,"Provider Issue",null,null,null,null,null,null,"Spokane Central","Toppenish","Friday Harbor","King South-West","Tacoma ","Shelton"]
[713,"Omak",713,"Region 1",22,null,null,"FamLink Error",null,null,null,null,null,null,"Omak","Yakima","Oak Harbor","Region 4 Adoptions","Bremerton","Centralia"]
[712,"Moses Lake",712,"Region 1",18,null,null,"Insufficient Paperwork",null,null,null,null,null,null,"Moses Lake","Walla Walla","Smokey Point","West Seattle DCFS","Region 5 Adoptions","Aberdeen"]
[711,"Wenatchee",711,"Region 1",19,null,null,"Weekend Placement",null,null,null,null,null,null,"Wenatchee","Ellensburg DCFS","Lynnwood","King East DCFS","Lakewood","Kelso"]
[710,"Newport",710,"Region 1",10,null,null,"Respite",null,null,null,null,null,null,"Newport","Tri-Cities","Bellingham","Reg 4 AS","Vancouver - Clark","Vancouver - Cascade"]
[709,"Lincoln County (Spokane/Lincoln)",709,"Region 1",17,null,null,null,null,null,null,null,null,null,"Lincoln County (Spokane/Lincoln)","Region 2 ","Everett","King South-East","Reg 5 AS","Port Angeles"]
[708,"Region 1 Facility Investigation",708,"Region 1",{"$error":"#N/A"},null,null,null,null,null,null,null,null,null,"Region 1 Facility Investigation","Region 2 Adoptions","Mount Vernon","Martin Luther King Jr. Office","Tacoma","Long Beach"]
[701,"Region 1 ",701,"Region 1",88,null,null,null,null,null,null,null,null,null,"Region 1 ","Reg 2 AS","Bellingham","Office of Indian Child Welfare - R04","Bremerton","Stevenson"]
[695,"Spokane ICW",695,"Region 1",77,null,null,null,null,null,null,null,null,null,"Spokane ICW","Ellensburg",null,null,"Parkland","Vancouver - Columbia"]
[694,"Spokane Valley",694,"Region 1",76,null,null,null,null,null,null,null,null,null,"Spokane Valley","Region 2 Office",null,null,"Puyallup Office","Reg 6 AS"]
[693,"Spokane North",693,"Region 1",11,null,null,null,null,null,null,null,null,null,"Spokane North",null,null,null,"Tacoma Office","Vancouver"]
[681,"Region 1 Adoptions",null,"Region 1",null,null,null,null,null,null,null,null,null,null,"Region 1 Adoptions",null,null,null,"Region 5 Office","Olympia"]
[601,"Reg 1 AS",601,"Region 1",{"$error":"#N/A"},null,null,null,null,null,null,null,null,null,"Reg 1 AS",null,null,null,null,"Aberdeen"]
[null,"Spokane",null,"Region 1",null,null,null,null,null,null,null,null,null,null,"Spokane",null,null,null,null,"Forks DCYF"]
[773,"DJR Region 2",773,"Region 2",{"$error":"#N/A"},null,null,null,null,null,null,null,null,null,null,null,null,null,null,"Region 6 Office"]
[765,"White Salmon",765,"Region 2",66]
[756,"Goldendale",756,"Region 2",65]
[728,"Region 2 Facility Investigation",728,"Region 2",{"$error":"#N/A"}]
[727,"Sunnyside",727,"Region 2",3]
[726,"Toppenish",726,"Region 2",4]
[725,"Yakima",725,"Region 2",68]
[724,"Walla Walla",724,"Region 2",6]
[723,"Ellensburg DCFS",723,"Region 2",64]
[722,"Tri-Cities",722,"Region 2",1]
[702,"Region 2 ",702,"Region 2",{"$error":"#N/A"}]
[682,"Region 2 Adoptions",null,"Region 2"]
[602,"Reg 2 AS",602,"Region 2",{"$error":"#N/A"}]
[null,"Ellensburg",null,"Region 2"]
[null,"Region 2 Office",null,"Region 2"]
[809,"Tribal Payment Only",809,"Region 3",62]
[801,"Region 3 Adoptions",801,"Region 3",{"$error":"#N/A"}]
[793,"Reg 3 Lummi Tribe",793,"Region 3",61]
[774,"DJR Region 3",774,"Region 3",{"$error":"#N/A"}]
[740,"Region 3 Facility Investigation",740,"Region 3",{"$error":"#N/A"}]
[739,"Native American ",739,"Region 3",{"$error":"#N/A"}]
[738,"Sky Valley",738,"Region 3",47]
[737,"Friday Harbor",737,"Region 3",24]
[736,"Oak Harbor",736,"Region 3",23]
[735,"Smokey Point",735,"Region 3",60]
[734,"Lynnwood",734,"Region 3",58]
[733,"Bellingham",733,"Region 3",26]
[732,"Everett",732,"Region 3",57]
[731,"Mount Vernon",731,"Region 3",25]
[730,"Region 3 After-Hours",730,"Region 3",{"$error":"#N/A"}]
[729,"Region 3 Out of Home Licensing",729,"Region 3",{"$error":"#N/A"}]
[703,"Region 3 ",703,"Region 3",{"$error":"#N/A"}]
[603,"Reg 3 AS",603,"Region 3",63]
[null,"Bellingham",null,"Region 3"]
[798,"Martin Luther King Jr. ",798,"Region 4",45]
[796," Office of Indian Child Welfare - R04",796,"Region 4",46]
[780,"Region 4 Family Treatment Court",780,"Region 4",52]
[775,"DJR Region 4",775,"Region 4",{"$error":"#N/A"}]
[747,"King West DCFS",747,"Region 4",56]
[746,"Reg 4 OCCP-See 983 and 984",746,"Region 4",49]
[745,"King Central Services - R04",745,"Region 4",54]
[744,"King South-West",744,"Region 4",41]
[743,"Region 4 Adoptions",743,"Region 4",51]
[742,"West Seattle DCFS",742,"Region 4",53]
[741,"King East DCFS",741,"Region 4",55]
[704,"Region 4 ",704,"Region 4",50]
[604,"Reg 4 AS",604,"Region 4",48]
[271,"King South-East",271,"Region 4",42]
[null,"Martin Luther King Jr. Office",null,"Region 4"]
[null,"Office of Indian Child Welfare - R04",null,"Region 4"]
[817,"Parkland (Satellite)",817,"Region 5",79]
[797,"R5 S'Klallam Tribe",797,"Region 5",82]
[790,"Puyallup ",790,"Region 5",80]
[776,"DJR Region 5",776,"Region 5",{"$error":"#N/A"}]
[755,"Region 5 Centralized Services",755,"Region 5",86]
[754,"Region 5 Facility Investigation",754,"Region 5",87]
[752,"Tacoma ",752,"Region 5",81]
[751,"Bremerton",751,"Region 5",29]
[705,"Region 5 ",705,"Region 5",84]
[698,"Region 5 Adoptions",698,"Region 5",85]
[697,"Lakewood",697,"Region 5",78]
[691,"Vancouver - Clark",691,"Region 5",73]
[605,"Reg 5 AS",605,"Region 5",83]
[null,"Tacoma",null,"Region 5"]
[null,"Bremerton",null,"Region 5"]
[null,"Parkland",null,"Region 5"]
[null,"Puyallup Office",null,"Region 5"]
[null,"Tacoma Office",null,"Region 5"]
[null,"Region 5 Office",null,"Region 5"]
[808,"Region 6 Centralized Services",808,"Region 6",{"$error":"#N/A"}]
[807,"Region 6 Adoptions",807,"Region 6",{"$error":"#N/A"}]
[795,"Reg 6 Quinault Tribe",795,"Region 6",39]
[794,"Reg 6 Makah Tribe",794,"Region 6",38]
[779,"Morton DCFS  SEE 765",779,"Region 6",{"$error":"#N/A"}]
[778,"Taholah DCFS   SEE 771",778,"Region 6",{"$error":"#N/A"}]
[777,"DJR Region 6",777,"Region 6",{"$error":"#N/A"}]
[771,"Forks",771,"Region 6",27]
[770,"Port Townsend",770,"Region 6",31]
[769,"Olympia DCFS (Tumwater)",769,"Region 6",37]
[768,"South Bend",768,"Region 6",36,null,null,null,{"$f":"TODAY()","v":"2025-01-13"}]
[767,"Shelton",767,"Region 6",34]
[766,"Centralia",766,"Region 6",40]
[764,"Aberdeen",764,"Region 6",32]
[763,"Kelso",763,"Region 6",71]
[762,"Vancouver - Cascade",762,"Region 6",69]
[761,"Port Angeles",761,"Region 6",30]
[760,"Long Beach",760,"Region 6",35]
[759,"Region 6 Facility Investigation",null,"Region 6"]
[758,"Region 6 Out of Home Licensing",758,"Region 6",{"$error":"#N/A"}]
[757,"Stevenson",757,"Region 6",67]
[706,"Region 6 ",706,"Region 6",{"$error":"#N/A"}]
[696,"Vancouver - Columbia",696,"Region 6",70]
[606,"Reg 6 AS",606,"Region 6",{"$error":"#N/A"}]
[null,"Vancouver",null,"Region 6"]
[null,"Olympia",null,"Region 6"]
[null,"Aberdeen",null,"Region 6"]
[null,"Forks DCYF",null,"Region 6"]
[null,"Region 6 Office",null,"Region 6"]
[999,"SSPS Control",999,"Region 7",{"$error":"#N/A"}]
[989,"Central Intake",989,"Region 7",{"$error":"#N/A"}]
[799,"DCFS HQ Test ",799,"Region 7",{"$error":"#N/A"}]
[748,"Foster Care Medical",748,"Region 7",{"$error":"#N/A"}]
[700,"Head Quarters - (OB-2)",700,"Region 7",{"$error":"#N/A"}]

{"sheet":"Drop Down","index":6,"n_rows":63,"n_cols":20,"rows_kept":63,"cut":false,"hidden":true,"merged":[]}
[]
[]
["Select",0,null,"Select","Select","Select","Select","Select","Select",null,"Select",null,"Case Aide","Support Services Lvl 1","Support Services Lvl 2","Support Services Lvl 3","Support Services Lvl 4","Support Services Lvl 5","Support Services Lvl 6","Support Services Lvl 7"]
["Catchment Provider Resource Level Lv1 ",0,null,"Yes","One",1,"One",2023,"January",null,"Select","Select County",0,0,0,0,0,0,0,0]
["Catchment Provider Resource Level Lv2",0,null,"No","Two",2,"Two",2024,"February",null,"Lincoln","Zone 1",29.005600000000001,495,532,577,631,782,833,961]
["Catchment Provider Resource Level Lv3",9,null,null,"Three",3,"Three",2025,"March",null,"Klickitat","Zone 1",29.005600000000001,495,532,577,631,782,833,961]
["Catchment Provider Resource Level Lv4",12,null,null,"Four",4,"Four",2026,"April",null,"Pend Oreille","Zone 1",29.005600000000001,495,532,577,631,782,833,961]
["Catchment Provider Resource Level Lv5",15,null,null,"Five",5,"Five",2027,"May",null,"Spokane","Zone 1",29.005600000000001,495,532,577,631,782,833,961]
["Catchment Provider Resource Level Lv6",17,null,null,"Six",6,"Six",2028,"June",null,"Stevens","Zone 1",29.005600000000001,495,532,577,631,782,833,961]
["Catchment Provider Resource Level Lv7",20,null,null,null,null,null,2029,"July",null,"Yakima","Zone 1",29.005600000000001,495,532,577,631,782,833,961]
[null,null,null,null,null,null,null,2030,"August",null,"Adams","Zone 2",30.076800000000002,529,569,616,673,834,889,1025]
[null,null,null,null,null,null,null,2031,"September",null,"Asotin","Zone 2",30.076800000000002,529,569,616,673,834,889,1025]
[null,null,null,null,null,null,null,2032,"October",null,"Benton","Zone 2",30.076800000000002,529,569,616,673,834,889,1025]
[null,null,null,null,null,null,null,2033,"November",null,"Chelan","Zone 2",30.076800000000002,529,569,616,673,834,889,1025]
[null,null,null,null,null,null,null,2034,"December",null,"Columbia","Zone 2",30.076800000000002,529,569,616,673,834,889,1025]
[null,null,null,null,null,null,null,null,null,null,"Douglas","Zone 2",30.076800000000002,529,569,616,673,834,889,1025]
[null,null,null,null,"Zone 1","Support Services Lvl 3",{"$f":"INDEX(D36:D42,MATCH(1,(B36:B42=E17)*(C36:C42=F17),0))","v":577},null,null,null,"Ferry","Zone 2",30.076800000000002,529,569,616,673,834,889,1025]
[null,null,null,null,null,null,null,null,null,null,"Franklin","Zone 2",30.076800000000002,529,569,616,673,834,889,1025]
[null,null,null,null,null,null,null,null,null,null,"Garfield","Zone 2",30.076800000000002,529,569,616,673,834,889,1025]
[null,null,null,null,null,null,null,null,null,null,"Grant","Zone 2",30.076800000000002,529,569,616,673,834,889,1025]
[null,null,null,null,null,null,null,null,null,null,"Grays Harbor","Zone 2",30.076800000000002,529,569,616,673,834,889,1025]
[null,null,null,null,null,null,null,null,null,null,"Kittitas","Zone 2",30.076800000000002,529,569,616,673,834,889,1025]
[null,null,"Support Services Lvl 1","Support Services Lvl 2","Support Services Lvl 3","Support Services Lvl 4","Support Services Lvl 5","Support Services Lvl 6","Support Services Lvl 7",null,"Lewis","Zone 2",30.076800000000002,529,569,616,673,834,889,1025]
[null,"Zone 1",495,532,577,631,782,833,961,null,"Mason","Zone 2",30.076800000000002,529,569,616,673,834,889,1025]
[null,"Zone 2",529,569,616,673,834,889,1025,null,"Okanogan","Zone 2",30.076800000000002,529,569,616,673,834,889,1025]
[null,"Zone 3",508,547,592,648,803,855,987,null,"Pacific","Zone 2",30.076800000000002,529,569,616,673,834,889,1025]
[null,"Zone 4",564,607,657,718,890,948,1093,null,"Thurston","Zone 2",30.076800000000002,529,569,616,673,834,889,1025]
[null,null,null,null,null,null,null,null,null,null,"Walla Walla","Zone 2",30.076800000000002,529,569,616,673,834,889,1025]
[null,null,"Support Services Lvl 1","Support Services Lvl 2","Support Services Lvl 3","Support Services Lvl 4","Support Services Lvl 5","Support Services Lvl 6","Support Services Lvl 7",null,"Whitman","Zone 2",30.076800000000002,529,569,616,673,834,889,1025]
[null,"Zone 1",495,532,577,631,782,833,961,null,"Island","Zone 3",29.494399999999999,508,547,592,648,803,855,987]
[null,"Zone 2",529,569,616,673,834,889,1025,null,"Clallam","Zone 3",29.494399999999999,508,547,592,648,803,855,987]
[null,"Zone 3",508,547,592,648,803,855,987,null,"Clark","Zone 3",29.494399999999999,508,547,592,648,803,855,987]
[null,"Zone 4",564,607,657,718,890,948,1093,null,"Cowlitz","Zone 3",29.494399999999999,508,547,592,648,803,855,987]
[null,null,null,null,null,null,null,null,null,null,"Jefferson","Zone 3",29.494399999999999,508,547,592,648,803,855,987]
[null,null,null,null,null,null,null,null,null,null,"Kitsap","Zone 3",29.494399999999999,508,547,592,648,803,855,987]
[null,"Zone 1","Support Services Lvl 1",495,null,null,null,null,null,null,"Pierce","Zone 3",29.494399999999999,508,547,592,648,803,855,987]
[null,"Zone 1","Support Services Lvl 2",532,null,null,null,null,null,null,"San Juan","Zone 3",29.494399999999999,508,547,592,648,803,855,987]
[null,"Zone 1","Support Services Lvl 3",577,null,null,null,null,null,null,"Skagit","Zone 3",29.494399999999999,508,547,592,648,803,855,987]
[null,"Zone 1","Support Services Lvl 4",631,null,null,null,null,null,null,"Skamania","Zone 3",29.494399999999999,508,547,592,648,803,855,987]
[null,"Zone 1","Support Services Lvl 5",782,null,null,null,null,null,null,"Snohomish","Zone 3",29.494399999999999,508,547,592,648,803,855,987]
[null,"Zone 1","Support Services Lvl 6",833,null,null,null,null,null,null,"Wahkiakum","Zone 3",29.494399999999999,508,547,592,648,803,855,987]
[null,"Zone 1","Support Services Lvl 7",961,null,null,null,null,null,null,"Whatcom","Zone 3",29.494399999999999,508,547,592,648,803,855,987]
[null,"Zone 2","Support Services Lvl 1",529,null,null,null,null,null,null,"King","Zone 4",32.590000000000003,564,607,657,718,890,948,1093]
[null,"Zone 2","Support Services Lvl 2",569]
[null,"Zone 2","Support Services Lvl 3",616]
[null,"Zone 2","Support Services Lvl 4",673]
[null,"Zone 2","Support Services Lvl 5",834]
[null,"Zone 2","Support Services Lvl 6",889]
[null,"Zone 2","Support Services Lvl 7",1025]
[null,"Zone 3","Support Services Lvl 1",508]
[null,"Zone 3","Support Services Lvl 2",547]
[null,"Zone 3","Support Services Lvl 3",592]
[null,"Zone 3","Support Services Lvl 4",648]
[null,"Zone 3","Support Services Lvl 5",803,null,null,null,{"$f":"INDEX(IndexMatch!C:C,MATCH(1,(IndexMatch!A:A=VLOOKUP('Case Aide'!J2,K:L,2,0))*(IndexMatch!B:B=F17),0))","v":{"$error":"#N/A"}}]
[null,"Zone 3","Support Services Lvl 6",855]
[null,"Zone 3","Support Services Lvl 7",987]
[null,"Zone 4","Support Services Lvl 1",564]
[null,"Zone 4","Support Services Lvl 2",607]
[null,"Zone 4","Support Services Lvl 3",657]
[null,"Zone 4","Support Services Lvl 4",718]
[null,"Zone 4","Support Services Lvl 5",890]
[null,"Zone 4","Support Services Lvl 6",948]
[null,"Zone 4","Support Services Lvl 7",1093]

{"sheet":"IndexMatch","index":7,"n_rows":35,"n_cols":3,"rows_kept":35,"cut":false,"hidden":true,"merged":[]}
["Select","Catchment Provider Resource Level Lv1 ",0]
["Select","Catchment Provider Resource Level Lv2",0]
["Select","Catchment Provider Resource Level Lv3",0]
["Select","Catchment Provider Resource Level Lv4",0]
["Select","Catchment Provider Resource Level Lv5",0]
["Select","Catchment Provider Resource Level Lv6",0]
["Select","Catchment Provider Resource Level Lv7",0]
["Zone 1","Catchment Provider Resource Level Lv1 ",257]
["Zone 1","Catchment Provider Resource Level Lv2",277]
["Zone 1","Catchment Provider Resource Level Lv3",300]
["Zone 1","Catchment Provider Resource Level Lv4",328]
["Zone 1","Catchment Provider Resource Level Lv5",407]
["Zone 1","Catchment Provider Resource Level Lv6",433]
["Zone 1","Catchment Provider Resource Level Lv7",500]
["Zone 2","Catchment Provider Resource Level Lv1 ",275]
["Zone 2","Catchment Provider Resource Level Lv2",296]
["Zone 2","Catchment Provider Resource Level Lv3",320]
["Zone 2","Catchment Provider Resource Level Lv4",350]
["Zone 2","Catchment Provider Resource Level Lv5",434]
["Zone 2","Catchment Provider Resource Level Lv6",462]
["Zone 2","Catchment Provider Resource Level Lv7",533]
["Zone 3","Catchment Provider Resource Level Lv1 ",264]
["Zone 3","Catchment Provider Resource Level Lv2",284]
["Zone 3","Catchment Provider Resource Level Lv3",308]
["Zone 3","Catchment Provider Resource Level Lv4",337]
["Zone 3","Catchment Provider Resource Level Lv5",418]
["Zone 3","Catchment Provider Resource Level Lv6",445]
["Zone 3","Catchment Provider Resource Level Lv7",513]
["Zone 4","Catchment Provider Resource Level Lv1 ",293]
["Zone 4","Catchment Provider Resource Level Lv2",316]
["Zone 4","Catchment Provider Resource Level Lv3",342]
["Zone 4","Catchment Provider Resource Level Lv4",373]
["Zone 4","Catchment Provider Resource Level Lv5",463]
["Zone 4","Catchment Provider Resource Level Lv6",493]
["Zone 4","Catchment Provider Resource Level Lv7",568]